Department family,Entity,Date,Expense type,Expense area,Supplier,Transaction number,Amount,Description
MOJ,LAA,01/03/18,Civil Representation,LEGAL AID FUND,A & N CARE SOLICITORS,1413318:3000002080860006,28011.06 ,Legal Aid Civil Representation
MOJ,LAA,01/03/18,Lower Crime,LEGAL AID FUND,ABBEY SOLICITORS,1418257:149097807,25200.00 ,Legal Aid Lower Crime
MOJ,LAA,01/03/18,Legal Help,LEGAL AID FUND,ABBOTSTONE LAW LLP,1416218:149097491,56230.00 ,Legal Aid Legal Help
MOJ,LAA,01/03/18,Lower Crime,LEGAL AID FUND,ABRAHAM SOLICITORS LTD,1418770:149098032,25004.00 ,Legal Aid Lower Crime
MOJ,LAA,01/03/18,Lower Crime,LEGAL AID FUND,ABV SOLICITORS,1418705:149097629,50000.00 ,Legal Aid Lower Crime
MOJ,LAA,01/03/18,Lower Crime,LEGAL AID FUND,ACA LAW LTD,1417275:149098183,27437.00 ,Legal Aid Lower Crime
MOJ,LAA,01/03/18,Higher Crime,LEGAL AID FUND,ACHILLEA & CO,1416501:149099452,65479.71 ,Legal Aid Higher Crime
MOJ,LAA,01/03/18,Higher Crime,LEGAL AID FUND,ACHILLEA & CO-ADVOCATE,1418500:149063825,26797.08 ,Legal Aid Higher Crime
MOJ,LAA,01/03/18,Higher Crime,LEGAL AID FUND,AGI CRIMINAL SOLICITORS LTD,1414411:149063319,107574.07 ,Legal Aid Higher Crime
MOJ,LAA,01/03/18,Higher Crime,LEGAL AID FUND,ALAN P KENT QC,1418203:149111204,25866.94 ,Legal Aid Higher Crime
MOJ,LAA,01/03/18,Legal Help,LEGAL AID FUND,ALASTAIR BATEMAN & CO,1417354:149096842,33822.00 ,Legal Aid Legal Help
MOJ,LAA,01/03/18,Lower Crime,LEGAL AID FUND,ALBIN & CO LTD,1418268:149097846,30000.00 ,Legal Aid Lower Crime
MOJ,LAA,01/03/18,Lower Crime,LEGAL AID FUND,ALLEN HOOLE SOLICITORS,1418448:149098964,42306.00 ,Legal Aid Lower Crime
MOJ,LAA,01/03/18,Lower Crime,LEGAL AID FUND,ALLEN HOOLE SOLICITORS,1413986:149097870,41500.00 ,Legal Aid Lower Crime
MOJ,LAA,01/03/18,Lower Crime,LEGAL AID FUND,ALLEN HOOLE SOLICITORS,1415305:149097862,28600.00 ,Legal Aid Lower Crime
MOJ,LAA,01/03/18,Higher Crime,LEGAL AID FUND,ALTAF SOLICITORS LTD,1413953:149110182,59721.61 ,Legal Aid Higher Crime
MOJ,LAA,01/03/18,Civil Representation,LEGAL AID FUND,AMY J EPHGRAVE,1415585:3000002719920008,29144.88 ,Legal Aid Civil Representation
MOJ,LAA,01/03/18,Higher Crime,LEGAL AID FUND,ANDREW J O'BYRNE QC,1416428:149086257,35146.80 ,Legal Aid Higher Crime
MOJ,LAA,01/03/18,Higher Crime,LEGAL AID FUND,ANDREW R S TUCKER,1413819:149110968,26974.44 ,Legal Aid Higher Crime
MOJ,LAA,01/03/18,Lower Crime,LEGAL AID FUND,ANDREW STORCH SOLICITORS LTD,1414499:149097845,35100.00 ,Legal Aid Lower Crime
MOJ,LAA,01/03/18,Lower Crime,LEGAL AID FUND,ANGELA PORTER SOLICITORS,1418292:149098475,44286.00 ,Legal Aid Lower Crime
MOJ,LAA,01/03/18,Civil Representation,LEGAL AID FUND,ANTHONY COLLINS LLP,1418389:3000001695100013,37094.44 ,Legal Aid Civil Representation
MOJ,LAA,01/03/18,Legal Help,LEGAL AID FUND,APPLEMAN LEGAL,1416213:149097496,46875.00 ,Legal Aid Legal Help
MOJ,LAA,01/03/18,Higher Crime,LEGAL AID FUND,ASHCOTT SOLICITORS LTD,1414879:149071107,109233.29 ,Legal Aid Higher Crime
MOJ,LAA,01/03/18,Higher Crime,LEGAL AID FUND,ASHCOTT SOLICITORS LTD,1414879:149100315,27916.94 ,Legal Aid Higher Crime
MOJ,LAA,01/03/18,Higher Crime,LEGAL AID FUND,ASHCOTT SOLICITORS LTD,1414879:149100318,27916.94 ,Legal Aid Higher Crime
MOJ,LAA,01/03/18,Higher Crime,LEGAL AID FUND,ASHCOTT SOLICITORS LTD,1414879:149100317,-26169.33 ,Legal Aid Higher Crime
MOJ,LAA,01/03/18,Lower Crime,LEGAL AID FUND,BAILEY NICHOLSON GRAYSON,1416876:149097602,35400.00 ,Legal Aid Lower Crime
MOJ,LAA,01/03/18,Civil Representation,LEGAL AID FUND,BAILEY WRIGHT & CO,1418798:3000000827800014,27759.41 ,Legal Aid Civil Representation
MOJ,LAA,01/03/18,Lower Crime,LEGAL AID FUND,BAINS SOLICITORS,1416875:149098060,26667.00 ,Legal Aid Lower Crime
MOJ,LAA,01/03/18,Higher Crime,LEGAL AID FUND,BAL DHALIWAL SOLICITORS,1416529:149111375,89975.11 ,Legal Aid Higher Crime
MOJ,LAA,01/03/18,Higher Crime,LEGAL AID FUND,BARK & CO,1414057:149071374,31855.55 ,Legal Aid Higher Crime
MOJ,LAA,01/03/18,Legal Help,LEGAL AID FUND,BARNES HARRILD & DYER,1418801:149096903,39230.00 ,Legal Aid Legal Help
MOJ,LAA,01/03/18,Legal Help,LEGAL AID FUND,BARNES HARRILD & DYER,1415110:149097333,33458.00 ,Legal Aid Legal Help
MOJ,LAA,01/03/18,Lower Crime,LEGAL AID FUND,BASSETS,1416915:149097812,30400.00 ,Legal Aid Lower Crime
MOJ,LAA,01/03/18,Civil Representation,LEGAL AID FUND,BASTIAN LLOYD MORRIS SOLICITOR ADVOCATES,1413464:3000001676000017,29245.51 ,Legal Aid Civil Representation
MOJ,LAA,01/03/18,Lower Crime,LEGAL AID FUND,BDH SOLICITORS LTD,1413999:149097788,27400.00 ,Legal Aid Lower Crime
MOJ,LAA,01/03/18,Lower Crime,LEGAL AID FUND,BELMORES SOLICITORS LTD,1418754:149098104,44128.00 ,Legal Aid Lower Crime
MOJ,LAA,01/03/18,Higher Crime,LEGAL AID FUND,BEN WALKER-NOLAN,1415170:149070944,27804.77 ,Legal Aid Higher Crime
MOJ,LAA,01/03/18,Civil Representation,LEGAL AID FUND,BEST SOLICITORS,1416070:149081514,50351.35 ,Legal Aid Civil Representation
MOJ,LAA,01/03/18,Lower Crime,LEGAL AID FUND,BESWICKS SOLICITORS LLP,1418364:149098548,40202.00 ,Legal Aid Lower Crime
MOJ,LAA,01/03/18,Lower Crime,LEGAL AID FUND,BHATIA BEST LTD,1415375:149097546,89800.00 ,Legal Aid Lower Crime
MOJ,LAA,01/03/18,Lower Crime,LEGAL AID FUND,BHATIA BEST LTD,1415373:149097550,40900.00 ,Legal Aid Lower Crime
MOJ,LAA,01/03/18,Civil Representation,LEGAL AID FUND,BHATT MURPHY SOLICITORS,1416969:149067554,-32976.59 ,Legal Aid Civil Representation
MOJ,LAA,01/03/18,Higher Crime,LEGAL AID FUND,BINDMANS LLP,1416487:149068538,32820.82 ,Legal Aid Higher Crime
MOJ,LAA,01/03/18,Legal Help,LEGAL AID FUND,BINDMANS LLP,1416487:149096481,32600.00 ,Legal Aid Legal Help
MOJ,LAA,01/03/18,Higher Crime,LEGAL AID FUND,BINDMANS LLP,1416487:149063205,26789.20 ,Legal Aid Higher Crime
MOJ,LAA,01/03/18,Higher Crime,LEGAL AID FUND,BIRD & CO SOLICITORS LLP,1415706:149070378,42526.08 ,Legal Aid Higher Crime
MOJ,LAA,01/03/18,Lower Crime,LEGAL AID FUND,BIRDS SOLICITORS LTD,1418213:149097618,72000.00 ,Legal Aid Lower Crime
MOJ,LAA,01/03/18,Lower Crime,LEGAL AID FUND,BISHOP & LIGHT SOLICITORS LTD,1417413:149097828,29300.00 ,Legal Aid Lower Crime
MOJ,LAA,01/03/18,Legal Help,LEGAL AID FUND,BISON SOLICITORS LTD,1416225:149082614,99000.00 ,Legal Aid Legal Help
MOJ,LAA,01/03/18,Legal Help,LEGAL AID FUND,BISON SOLICITORS LTD,1416225:149082615,46861.00 ,Legal Aid Legal Help
MOJ,LAA,01/03/18,Lower Crime,LEGAL AID FUND,BLACKFORDS LLP,1417388:149098156,56789.00 ,Legal Aid Lower Crime
MOJ,LAA,01/03/18,Higher Crime,LEGAL AID FUND,BLACKFORDS LLP-ADVOCATE,1417587:149063801,28369.30 ,Legal Aid Higher Crime
MOJ,LAA,01/03/18,Civil Representation,LEGAL AID FUND,BLACKHURST BUDD LTD,1414021:3000002212560006,48050.06 ,Legal Aid Civil Representation
MOJ,LAA,01/03/18,Lower Crime,LEGAL AID FUND,BLACKWELLS,1418234:149097744,35000.00 ,Legal Aid Lower Crime
MOJ,LAA,01/03/18,Lower Crime,LEGAL AID FUND,BOBBETTS MACKAN,1417915:149097860,42000.00 ,Legal Aid Lower Crime
MOJ,LAA,01/03/18,Lower Crime,LEGAL AID FUND,BOND JOSEPH,1417357:149098441,74287.00 ,Legal Aid Lower Crime
MOJ,LAA,01/03/18,Higher Crime,LEGAL AID FUND,BOYCE & CO,1414562:149064408,107574.07 ,Legal Aid Higher Crime
MOJ,LAA,01/03/18,Lower Crime,LEGAL AID FUND,BREYDONS SOLICITORS LTD,1416197:149098657,44393.00 ,Legal Aid Lower Crime
MOJ,LAA,01/03/18,Legal Help,LEGAL AID FUND,BRIGHTON HOUSING TRUST,1415608:149097218,45541.00 ,Legal Aid Legal Help
MOJ,LAA,01/03/18,Lower Crime,LEGAL AID FUND,BULLIVANT LAW LTD,1413521:149097604,31600.00 ,Legal Aid Lower Crime
MOJ,LAA,01/03/18,Legal Help,LEGAL AID FUND,BURKE NIAZI  LTD,1413540:149082612,98000.00 ,Legal Aid Legal Help
MOJ,LAA,01/03/18,Civil Representation,LEGAL AID FUND,BURTON & CO LLP,1415317:149113433,28185.41 ,Legal Aid Civil Representation
MOJ,LAA,01/03/18,Civil Representation,LEGAL AID FUND,BURTON & CO LLP,1415317:149113509,28185.41 ,Legal Aid Civil Representation
MOJ,LAA,01/03/18,Lower Crime,LEGAL AID FUND,BURTON COPELAND LLP,1416136:149098419,44840.00 ,Legal Aid Lower Crime
MOJ,LAA,01/03/18,Legal Help,LEGAL AID FUND,BUTLER & CO,1418759:149096411,36500.00 ,Legal Aid Legal Help
MOJ,LAA,01/03/18,Lower Crime,LEGAL AID FUND,CARR & CO,1414487:149097742,32800.00 ,Legal Aid Lower Crime
MOJ,LAA,01/03/18,Lower Crime,LEGAL AID FUND,CARRINGTONS SOLICITORS,1413506:149098064,240595.00 ,Legal Aid Lower Crime
MOJ,LAA,01/03/18,Higher Crime,LEGAL AID FUND,CARTER MOORE SOLICITORS LTD,1418731:149100174,27586.64 ,Legal Aid Higher Crime
MOJ,LAA,01/03/18,Lower Crime,LEGAL AID FUND,CARTER OSBORNE LTD,1415703:149098061,85897.00 ,Legal Aid Lower Crime
MOJ,LAA,01/03/18,Legal Help,LEGAL AID FUND,CARTWRIGHT KING LTD,1417809:149097060,77765.00 ,Legal Aid Legal Help
MOJ,LAA,01/03/18,Lower Crime,LEGAL AID FUND,CARTWRIGHT KING LTD,1417015:149098793,36796.00 ,Legal Aid Lower Crime
MOJ,LAA,01/03/18,Lower Crime,LEGAL AID FUND,CARTWRIGHT KING LTD,1417809:149098070,33166.00 ,Legal Aid Lower Crime
MOJ,LAA,01/03/18,Lower Crime,LEGAL AID FUND,CARTWRIGHT KING LTD,1417807:149098073,27969.00 ,Legal Aid Lower Crime
MOJ,LAA,01/03/18,Lower Crime,LEGAL AID FUND,CARTWRIGHT KING LTD,1417808:149098072,25302.00 ,Legal Aid Lower Crime
MOJ,LAA,01/03/18,Civil Representation,LEGAL AID FUND,CHARLES STRACHAN SOLICITORS LTD,1418276:149080947,33460.86 ,Legal Aid Civil Representation
MOJ,LAA,01/03/18,Lower Crime,LEGAL AID FUND,CHIVERS SOLICITORS,1416857:149098319,36129.00 ,Legal Aid Lower Crime
MOJ,LAA,01/03/18,Civil Representation,LEGAL AID FUND,CHRISTOPHER WILSON-SMITH QC,1416296:149091719,52065.00 ,Legal Aid Civil Representation
MOJ,LAA,01/03/18,Lower Crime,LEGAL AID FUND,CHURCHERS SOLICITORS,1413996:149098459,45649.00 ,Legal Aid Lower Crime
MOJ,LAA,01/03/18,Legal Help,LEGAL AID FUND,CJCH SOLICITORS,1416188:149097499,40375.00 ,Legal Aid Legal Help
MOJ,LAA,01/03/18,Lower Crime,LEGAL AID FUND,CJH GREENHILL COOPER SOLICITORS,1416861:149097570,40000.00 ,Legal Aid Lower Crime
MOJ,LAA,01/03/18,Lower Crime,LEGAL AID FUND,CLARKE KIERNAN LLP,1417363:149098430,31935.00 ,Legal Aid Lower Crime
MOJ,LAA,01/03/18,Legal Help,LEGAL AID FUND,CMHT SOLICITORS LLP,1418372:149096633,66507.00 ,Legal Aid Legal Help
MOJ,LAA,01/03/18,Lower Crime,LEGAL AID FUND,COBAINS SOLICITORS,1416830:149097795,30000.00 ,Legal Aid Lower Crime
MOJ,LAA,01/03/18,Higher Crime,LEGAL AID FUND,COBLEYS SOLICITORS LTD,1417278:149063326,105857.75 ,Legal Aid Higher Crime
MOJ,LAA,01/03/18,Lower Crime,LEGAL AID FUND,COBLEYS SOLICITORS LTD,1417278:149098248,38308.00 ,Legal Aid Lower Crime
MOJ,LAA,01/03/18,Higher Crime,LEGAL AID FUND,COHEN CRAMER,1417775:149086311,28042.53 ,Legal Aid Higher Crime
MOJ,LAA,01/03/18,Legal Help,LEGAL AID FUND,CONFREYS,1417878:149096766,30497.00 ,Legal Aid Legal Help
MOJ,LAA,01/03/18,Lower Crime,LEGAL AID FUND,CONNOR ROSS-BROWN SOLICITORS,1413244:149097945,35000.00 ,Legal Aid Lower Crime
MOJ,LAA,01/03/18,Higher Crime,LEGAL AID FUND,COURTENAY GRIFFITHS QC,1414670:149082508,96000.00 ,Legal Aid Higher Crime
MOJ,LAA,01/03/18,Higher Crime,LEGAL AID FUND,CREDENCE LAW GROUP,1416078:149086317,72737.01 ,Legal Aid Higher Crime
MOJ,LAA,01/03/18,Lower Crime,LEGAL AID FUND,CRIMINAL DEFENCE SOLICITORS,1418746:149097658,34600.00 ,Legal Aid Lower Crime
MOJ,LAA,01/03/18,Lower Crime,LEGAL AID FUND,CROWE HUMBLE WESENCRAFT,1417338:149097710,50700.00 ,Legal Aid Lower Crime
MOJ,LAA,01/03/18,Higher Crime,LEGAL AID FUND,DALLAS & RICHARDSON SOLICITORS,1413287:149077504,47724.91 ,Legal Aid Higher Crime
MOJ,LAA,01/03/18,Higher Crime,LEGAL AID FUND,DALLAS & RICHARDSON SOLICITORS,1413287:149085479,39263.80 ,Legal Aid Higher Crime
MOJ,LAA,01/03/18,Lower Crime,LEGAL AID FUND,DALTON HOLMES GRAY,1416518:149098213,40334.00 ,Legal Aid Lower Crime
MOJ,LAA,01/03/18,Higher Crime,LEGAL AID FUND,DAMIAN F NOLAN,1414372:149085023,33105.48 ,Legal Aid Higher Crime
MOJ,LAA,01/03/18,Lower Crime,LEGAL AID FUND,DANIEL WOODMAN & CO LTD,1417308:149097865,25000.00 ,Legal Aid Lower Crime
MOJ,LAA,01/03/18,Lower Crime,LEGAL AID FUND,DARRYL INGRAM & CO,1418247:149097635,29000.00 ,Legal Aid Lower Crime
MOJ,LAA,01/03/18,Legal Help,LEGAL AID FUND,DAVID GRAY LLP,1418239:149097024,42735.00 ,Legal Aid Legal Help
MOJ,LAA,01/03/18,Higher Crime,LEGAL AID FUND,DAVID S HISLOP QC,1415520:149063456,30035.86 ,Legal Aid Higher Crime
MOJ,LAA,01/03/18,Lower Crime,LEGAL AID FUND,DAVID SEDGWICK SOLICITORS LTD,1413511:149097972,30761.00 ,Legal Aid Lower Crime
MOJ,LAA,01/03/18,Lower Crime,LEGAL AID FUND,DAVIES & JONES SOLICITORS,1418394:149097540,25000.00 ,Legal Aid Lower Crime
MOJ,LAA,01/03/18,Lower Crime,LEGAL AID FUND,DE MAIDS SOLICITORS & ADVOCATES,1418814:149097541,30500.00 ,Legal Aid Lower Crime
MOJ,LAA,01/03/18,Lower Crime,LEGAL AID FUND,DEFENCE LAW LTD,1415215:149098709,25973.00 ,Legal Aid Lower Crime
MOJ,LAA,01/03/18,Civil Representation,LEGAL AID FUND,DICKSONS SOLICITORS LTD,1418843:3000000445260034,41332.41 ,Legal Aid Civil Representation
MOJ,LAA,01/03/18,Lower Crime,LEGAL AID FUND,DJMS SOLICITORS LTD,1414424:149098261,33678.00 ,Legal Aid Lower Crime
MOJ,LAA,01/03/18,Lower Crime,LEGAL AID FUND,DOBSONS,1416933:149097621,35000.00 ,Legal Aid Lower Crime
MOJ,LAA,01/03/18,Higher Crime,LEGAL AID FUND,DOMINIC C D'SOUZA,1418190:149111158,32121.84 ,Legal Aid Higher Crime
MOJ,LAA,01/03/18,Higher Crime,LEGAL AID FUND,DONOGHUES SOLICITORS,1418390:149078864,52509.13 ,Legal Aid Higher Crime
MOJ,LAA,01/03/18,Legal Help,LEGAL AID FUND,DONOVAN NEWTON SOLICITORS,1413480:149097043,27498.00 ,Legal Aid Legal Help
MOJ,LAA,01/03/18,Lower Crime,LEGAL AID FUND,DPP LAW LTD,1417279:149097628,28400.00 ,Legal Aid Lower Crime
MOJ,LAA,01/03/18,Lower Crime,LEGAL AID FUND,DPP LAW LTD,1417280:149097677,27800.00 ,Legal Aid Lower Crime
MOJ,LAA,01/03/18,Higher Crime,LEGAL AID FUND,DRAYCOTT BROWNE LTD,1416064:149078407,89975.11 ,Legal Aid Higher Crime
MOJ,LAA,01/03/18,Higher Crime,LEGAL AID FUND,DRISCOLL YOUNG SOLICITORS LTD,1416860:149100304,32131.49 ,Legal Aid Higher Crime
MOJ,LAA,01/03/18,Lower Crime,LEGAL AID FUND,DRISCOLL YOUNG SOLICITORS LTD,1416860:149097991,29415.00 ,Legal Aid Lower Crime
MOJ,LAA,01/03/18,Legal Help,LEGAL AID FUND,DUNCAN LEWIS SOLICITORS  LTD,1416839:149082603,98000.00 ,Legal Aid Legal Help
MOJ,LAA,01/03/18,Legal Help,LEGAL AID FUND,DUNCAN LEWIS SOLICITORS  LTD,1416838:149082609,97000.00 ,Legal Aid Legal Help
MOJ,LAA,01/03/18,Legal Help,LEGAL AID FUND,DUNCAN LEWIS SOLICITORS  LTD,1416839:149082604,97000.00 ,Legal Aid Legal Help
MOJ,LAA,01/03/18,Legal Help,LEGAL AID FUND,DUNCAN LEWIS SOLICITORS  LTD,1416838:149082610,96000.00 ,Legal Aid Legal Help
MOJ,LAA,01/03/18,Legal Help,LEGAL AID FUND,DUNCAN LEWIS SOLICITORS  LTD,1416839:149082605,96000.00 ,Legal Aid Legal Help
MOJ,LAA,01/03/18,Legal Help,LEGAL AID FUND,DUNCAN LEWIS SOLICITORS  LTD,1416839:149082607,95000.00 ,Legal Aid Legal Help
MOJ,LAA,01/03/18,Legal Help,LEGAL AID FUND,DUNCAN LEWIS SOLICITORS  LTD,1416838:149082611,75400.00 ,Legal Aid Legal Help
MOJ,LAA,01/03/18,Lower Crime,LEGAL AID FUND,DUNCAN LEWIS SOLICITORS  LTD,1416838:149097640,60800.00 ,Legal Aid Lower Crime
MOJ,LAA,01/03/18,Legal Help,LEGAL AID FUND,DUNCAN LEWIS SOLICITORS  LTD,1415836:149096595,59300.00 ,Legal Aid Legal Help
MOJ,LAA,01/03/18,Lower Crime,LEGAL AID FUND,DUNCAN LEWIS SOLICITORS  LTD,1416839:149098186,49747.00 ,Legal Aid Lower Crime
MOJ,LAA,01/03/18,Civil Representation,LEGAL AID FUND,DUNCAN LEWIS SOLICITORS  LTD,1415836:3000001604900012,27585.91 ,Legal Aid Civil Representation
MOJ,LAA,01/03/18,Lower Crime,LEGAL AID FUND,EBR ATTRIDGE LLP,1418766:149097613,58100.00 ,Legal Aid Lower Crime
MOJ,LAA,01/03/18,Lower Crime,LEGAL AID FUND,EBR ATTRIDGE LLP,1418765:149097616,35400.00 ,Legal Aid Lower Crime
MOJ,LAA,01/03/18,Higher Crime,LEGAL AID FUND,EDMUND B B VICKERS QC,1415653:149078798,51353.00 ,Legal Aid Higher Crime
MOJ,LAA,01/03/18,Higher Crime,LEGAL AID FUND,EDWARD FAIL BRADSHAW & WATERSON,1416924:149110121,74927.19 ,Legal Aid Higher Crime
MOJ,LAA,01/03/18,Lower Crime,LEGAL AID FUND,EDWARD FAIL BRADSHAW & WATERSON,1416924:149098225,37598.00 ,Legal Aid Lower Crime
MOJ,LAA,01/03/18,Lower Crime,LEGAL AID FUND,EDWARDS DUTHIE,1417420:149098776,41179.00 ,Legal Aid Lower Crime
MOJ,LAA,01/03/18,Higher Crime,LEGAL AID FUND,EDWARDS DUTHIE,1417420:149063392,28541.09 ,Legal Aid Higher Crime
MOJ,LAA,01/03/18,Lower Crime,LEGAL AID FUND,EDWARDS VAZIRANEY,1413452:149098158,25834.00 ,Legal Aid Lower Crime
MOJ,LAA,01/03/18,Legal Help,LEGAL AID FUND,ELDER RAHIMI LIMITED,1416152:149096958,29933.00 ,Legal Aid Legal Help
MOJ,LAA,01/03/18,Civil Representation,LEGAL AID FUND,ENABLE LAW,1414446:3000000881530009,27777.61 ,Legal Aid Civil Representation
MOJ,LAA,01/03/18,Lower Crime,LEGAL AID FUND,ERIC ROBINSON SOLICITORS,1417929:149097834,42600.00 ,Legal Aid Lower Crime
MOJ,LAA,01/03/18,Higher Crime,LEGAL AID FUND,ESHAGHIAN & CO SOLICITORS,1413928:149071341,65378.40 ,Legal Aid Higher Crime
MOJ,LAA,01/03/18,Civil Representation,LEGAL AID FUND,ESKINAZI & CO,1414978:3000001652220011,28673.15 ,Legal Aid Civil Representation
MOJ,LAA,01/03/18,Lower Crime,LEGAL AID FUND,EVANS HAYES BURNELL SOLICITORS LTD,1413664:149098889,33012.00 ,Legal Aid Lower Crime
MOJ,LAA,01/03/18,Lower Crime,LEGAL AID FUND,EWINGS & CO,1417903:149097622,31300.00 ,Legal Aid Lower Crime
MOJ,LAA,01/03/18,Legal Help,LEGAL AID FUND,FADIGA & CO LTD,1413557:149096896,27041.00 ,Legal Aid Legal Help
MOJ,LAA,01/03/18,Higher Crime,LEGAL AID FUND,FARADAYS SOLICITORS LTD,1416886:149100242,66773.97 ,Legal Aid Higher Crime
MOJ,LAA,01/03/18,Lower Crime,LEGAL AID FUND,FARLEYS SOLICITORS LLP,1413603:149097769,26400.00 ,Legal Aid Lower Crime
MOJ,LAA,01/03/18,Lower Crime,LEGAL AID FUND,FDR LAW,1414051:149098347,26499.00 ,Legal Aid Lower Crime
MOJ,LAA,01/03/18,Higher Crime,LEGAL AID FUND,FERGUS B H GOW,1415497:149064136,28845.82 ,Legal Aid Higher Crime
MOJ,LAA,01/03/18,Lower Crime,LEGAL AID FUND,FIELDINGS PORTER SOLICITORS,1414062:149098351,33149.00 ,Legal Aid Lower Crime
MOJ,LAA,01/03/18,Higher Crime,LEGAL AID FUND,FIONA N O MCADDY,1416573:149070767,26329.80 ,Legal Aid Higher Crime
MOJ,LAA,01/03/18,Legal Help,LEGAL AID FUND,FISHER JONES GREENWOOD LLP,1415468:149097355,25053.00 ,Legal Aid Legal Help
MOJ,LAA,01/03/18,Lower Crime,LEGAL AID FUND,FMW LAW LTD,1418805:149097598,53300.00 ,Legal Aid Lower Crime
MOJ,LAA,01/03/18,Lower Crime,LEGAL AID FUND,FMW LAW LTD,1418805:149081489,-34500.00 ,Legal Aid Lower Crime
MOJ,LAA,01/03/18,Civil Representation,LEGAL AID FUND,FORBES SOLICITORS,1416499:3000001236170101,56991.50 ,Legal Aid Civil Representation
MOJ,LAA,01/03/18,Lower Crime,LEGAL AID FUND,FORBES SOLICITORS,1416499:149097778,37000.00 ,Legal Aid Lower Crime
MOJ,LAA,01/03/18,Legal Help,LEGAL AID FUND,FOUNTAIN SOLICITORS LTD,1413515:149096382,77300.00 ,Legal Aid Legal Help
MOJ,LAA,01/03/18,Legal Help,LEGAL AID FUND,FOUNTAIN SOLICITORS LTD,1413515:149081383,-48900.00 ,Legal Aid Legal Help
MOJ,LAA,01/03/18,Lower Crime,LEGAL AID FUND,FRAME SMITH SOLICITORS,1416478:149097825,32000.00 ,Legal Aid Lower Crime
MOJ,LAA,01/03/18,Civil Representation,LEGAL AID FUND,FRANCES J JUDD,1413368:3000002107180007,42411.60 ,Legal Aid Civil Representation
MOJ,LAA,01/03/18,Higher Crime,LEGAL AID FUND,FREEMANS ADVOCATE,1417579:149078368,26587.99 ,Legal Aid Higher Crime
MOJ,LAA,01/03/18,Lower Crime,LEGAL AID FUND,FREEMANS SOLICITORS,1417444:149097653,27900.00 ,Legal Aid Lower Crime
MOJ,LAA,01/03/18,Lower Crime,LEGAL AID FUND,G T STEWART LTD,1414412:149098647,43729.00 ,Legal Aid Lower Crime
MOJ,LAA,01/03/18,Lower Crime,LEGAL AID FUND,G T STEWART LTD,1414417:149098645,39462.00 ,Legal Aid Lower Crime
MOJ,LAA,01/03/18,Legal Help,LEGAL AID FUND,G T STEWART LTD,1418575:149097277,33790.00 ,Legal Aid Legal Help
MOJ,LAA,01/03/18,Lower Crime,LEGAL AID FUND,G T STEWART LTD,1418729:149098218,33258.00 ,Legal Aid Lower Crime
MOJ,LAA,01/03/18,Lower Crime,LEGAL AID FUND,GAMMON PIERCY & GAIGER,1416983:149098456,52823.00 ,Legal Aid Lower Crime
MOJ,LAA,01/03/18,Lower Crime,LEGAL AID FUND,GARTSIDES,1417875:149097989,34350.00 ,Legal Aid Lower Crime
MOJ,LAA,01/03/18,Civil Representation,LEGAL AID FUND,GCA SOLICITORS,1415383:149060105,26946.96 ,Legal Aid Civil Representation
MOJ,LAA,01/03/18,Civil Representation,LEGAL AID FUND,GEMMA WITHERINGTON,1413399:149113434,27132.34 ,Legal Aid Civil Representation
MOJ,LAA,01/03/18,Civil Representation,LEGAL AID FUND,GEMMA WITHERINGTON,1413399:149113521,27132.34 ,Legal Aid Civil Representation
MOJ,LAA,01/03/18,Legal Help,LEGAL AID FUND,GENESIS LAW ASSOCIATES SOLICITORS LTD,1415421:149097358,28270.00 ,Legal Aid Legal Help
MOJ,LAA,01/03/18,Lower Crime,LEGAL AID FUND,GEOFF WHITE & CO,1414387:149098443,40281.00 ,Legal Aid Lower Crime
MOJ,LAA,01/03/18,Lower Crime,LEGAL AID FUND,GEOFFREY FORRESTER & CO,1414475:149097705,28100.00 ,Legal Aid Lower Crime
MOJ,LAA,01/03/18,Lower Crime,LEGAL AID FUND,GEOFFREY FORRESTER & CO,1414475:149081506,-26300.00 ,Legal Aid Lower Crime
MOJ,LAA,01/03/18,Lower Crime,LEGAL AID FUND,GHP LEGAL,1416879:149081486,-29900.00 ,Legal Aid Lower Crime
MOJ,LAA,01/03/18,Legal Help,LEGAL AID FUND,GLEDHILL SOLICITORS,1417406:149096667,65217.00 ,Legal Aid Legal Help
MOJ,LAA,01/03/18,Lower Crime,LEGAL AID FUND,GOLDKORNS,1414410:149098597,25570.00 ,Legal Aid Lower Crime
MOJ,LAA,01/03/18,Lower Crime,LEGAL AID FUND,GOMER WILLIAMS & CO LTD,1417877:149098002,31169.00 ,Legal Aid Lower Crime
MOJ,LAA,01/03/18,Lower Crime,LEGAL AID FUND,GOODALL BARNETT JAMES SOLICITORS,1413545:149097818,27100.00 ,Legal Aid Lower Crime
MOJ,LAA,01/03/18,Lower Crime,LEGAL AID FUND,GOODHAND & FORSYTH SOLICITORS,1414904:149098628,29097.00 ,Legal Aid Lower Crime
MOJ,LAA,01/03/18,Higher Crime,LEGAL AID FUND,GORDON SHINE & COMPANY SOLICITORS,1417905:149111111,65066.70 ,Legal Aid Higher Crime
MOJ,LAA,01/03/18,Lower Crime,LEGAL AID FUND,GRECH GOODEN SOLICITORS LTD,1413959:149098022,39687.00 ,Legal Aid Lower Crime
MOJ,LAA,01/03/18,Legal Help,LEGAL AID FUND,GUILE NICHOLAS-INC DONALD GALBRAITH & CO,1413517:149096477,73400.00 ,Legal Aid Legal Help
MOJ,LAA,01/03/18,Legal Help,LEGAL AID FUND,GUILE NICHOLAS-INC DONALD GALBRAITH & CO,1416247:149097480,31149.00 ,Legal Aid Legal Help
MOJ,LAA,01/03/18,Lower Crime,LEGAL AID FUND,GURNEY HARDEN SOLICITORS,1414393:149098435,37349.00 ,Legal Aid Lower Crime
MOJ,LAA,01/03/18,Lower Crime,LEGAL AID FUND,GWB HARTHILLS LLP,1418232:149098304,48634.00 ,Legal Aid Lower Crime
MOJ,LAA,01/03/18,Lower Crime,LEGAL AID FUND,H P GOWER SOLICITORS,1414839:149098688,45960.00 ,Legal Aid Lower Crime
MOJ,LAA,01/03/18,Lower Crime,LEGAL AID FUND,HAL SOLICITORS,1414438:149097932,29500.00 ,Legal Aid Lower Crime
MOJ,LAA,01/03/18,Legal Help,LEGAL AID FUND,HALLIDAY REEVES LAW FIRM,1414437:149097112,28632.00 ,Legal Aid Legal Help
MOJ,LAA,01/03/18,Lower Crime,LEGAL AID FUND,HAMER CHILDS,1418833:149097908,30000.00 ,Legal Aid Lower Crime
MOJ,LAA,01/03/18,Civil Representation,LEGAL AID FUND,HANISHA PATEL,1416273:3000001972730022,28460.84 ,Legal Aid Civil Representation
MOJ,LAA,01/03/18,Higher Crime,LEGAL AID FUND,HARDING EVANS LLP,1417448:149099448,41359.71 ,Legal Aid Higher Crime
MOJ,LAA,01/03/18,Civil Representation,LEGAL AID FUND,HARRINGTONS LEGAL LLP,1415346:3000002598910019,62186.40 ,Legal Aid Civil Representation
MOJ,LAA,01/03/18,Lower Crime,LEGAL AID FUND,HARRIS CUFFARO & NICHOLS,1414090:149097584,33400.00 ,Legal Aid Lower Crime
MOJ,LAA,01/03/18,Higher Crime,LEGAL AID FUND,HARRIS SOLICITORS LTD,1414893:149078405,48188.20 ,Legal Aid Higher Crime
MOJ,LAA,01/03/18,Civil Representation,LEGAL AID FUND,HARRY TRUSTED,1416295:149091726,27018.90 ,Legal Aid Civil Representation
MOJ,LAA,01/03/18,Lower Crime,LEGAL AID FUND,HASKELL & CO,1413930:149098434,37219.00 ,Legal Aid Lower Crime
MOJ,LAA,01/03/18,Lower Crime,LEGAL AID FUND,HAY & KILNER LLP,1414556:149098271,28435.00 ,Legal Aid Lower Crime
MOJ,LAA,01/03/18,Lower Crime,LEGAL AID FUND,HDH LAW,1414921:149097934,28000.00 ,Legal Aid Lower Crime
MOJ,LAA,01/03/18,Lower Crime,LEGAL AID FUND,HEALEY COLBON,1413932:149097582,27300.00 ,Legal Aid Lower Crime
MOJ,LAA,01/03/18,Lower Crime,LEGAL AID FUND,HENNESSY & HAMMUDI,1413908:149097847,60000.00 ,Legal Aid Lower Crime
MOJ,LAA,01/03/18,Lower Crime,LEGAL AID FUND,HENRY HYAMS,1414933:149098333,41697.00 ,Legal Aid Lower Crime
MOJ,LAA,01/03/18,Lower Crime,LEGAL AID FUND,HENRY'S SOLICITORS LTD,1417834:149098423,43652.00 ,Legal Aid Lower Crime
MOJ,LAA,01/03/18,Higher Crime,LEGAL AID FUND,HICKMAN & ROSE,1417376:149070129,54802.22 ,Legal Aid Higher Crime
MOJ,LAA,01/03/18,Lower Crime,LEGAL AID FUND,HILL TWINE,1415784:149098770,29513.00 ,Legal Aid Lower Crime
MOJ,LAA,01/03/18,Lower Crime,LEGAL AID FUND,HINE SOLICITORS,1414883:149098650,47223.00 ,Legal Aid Lower Crime
MOJ,LAA,01/03/18,Lower Crime,LEGAL AID FUND,HINE SOLICITORS,1414882:149098651,43684.00 ,Legal Aid Lower Crime
MOJ,LAA,01/03/18,Higher Crime,LEGAL AID FUND,HINE SOLICITORS,1414420:149063167,29664.55 ,Legal Aid Higher Crime
MOJ,LAA,01/03/18,Higher Crime,LEGAL AID FUND,HKH KENWRIGHT & COX,1417379:149063322,78510.11 ,Legal Aid Higher Crime
MOJ,LAA,01/03/18,Lower Crime,LEGAL AID FUND,HODGE JONES & ALLEN LLP,1418308:149098206,60278.00 ,Legal Aid Lower Crime
MOJ,LAA,01/03/18,Higher Crime,LEGAL AID FUND,HODGE JONES & ALLEN LLP,1418308:149063579,44363.26 ,Legal Aid Higher Crime
MOJ,LAA,01/03/18,Lower Crime,LEGAL AID FUND,HODGSON COULTHARD & CO,1414077:149098264,28936.00 ,Legal Aid Lower Crime
MOJ,LAA,01/03/18,Higher Crime,LEGAL AID FUND,HOGAN BROWN SOLICITORS,1418707:149078464,89975.11 ,Legal Aid Higher Crime
MOJ,LAA,01/03/18,Higher Crime,LEGAL AID FUND,HOLLIES SOLICITORS & ADVOCATES LTD,1413913:149085717,29447.85 ,Legal Aid Higher Crime
MOJ,LAA,01/03/18,Lower Crime,LEGAL AID FUND,HORSMAN SOLICITORS LTD,1414053:149098437,34829.00 ,Legal Aid Lower Crime
MOJ,LAA,01/03/18,Lower Crime,LEGAL AID FUND,HOWARD & BYRNE SOLICITORS,1418305:149097741,46000.00 ,Legal Aid Lower Crime
MOJ,LAA,01/03/18,Legal Help,LEGAL AID FUND,HOWE & CO,1418233:149096952,69476.00 ,Legal Aid Legal Help
MOJ,LAA,01/03/18,Lower Crime,LEGAL AID FUND,HOWELLS LLP,1415000:149097729,44900.00 ,Legal Aid Lower Crime
MOJ,LAA,01/03/18,Higher Crime,LEGAL AID FUND,HUGH C DAVIES,1416416:149077744,34380.61 ,Legal Aid Higher Crime
MOJ,LAA,01/03/18,Lower Crime,LEGAL AID FUND,HUMPHRYS DAWSON,1417330:149098029,30549.00 ,Legal Aid Lower Crime
MOJ,LAA,01/03/18,Lower Crime,LEGAL AID FUND,I B B SOLICITORS,1418245:149097626,75300.00 ,Legal Aid Lower Crime
MOJ,LAA,01/03/18,Higher Crime,LEGAL AID FUND,IAN  IBRAHIM,1414734:149078578,29614.06 ,Legal Aid Higher Crime
MOJ,LAA,01/03/18,Higher Crime,LEGAL AID FUND,ICAH D E PEART QC,1414191:149085994,52776.58 ,Legal Aid Higher Crime
MOJ,LAA,01/03/18,Higher Crime,LEGAL AID FUND,IMRAN KHAN & PARTNERS,1416941:149100679,42024.11 ,Legal Aid Higher Crime
MOJ,LAA,01/03/18,Lower Crime,LEGAL AID FUND,INSTALAW,1417054:149098831,93208.00 ,Legal Aid Lower Crime
MOJ,LAA,01/03/18,Higher Crime,LEGAL AID FUND,IRVINE THANVI NATAS SOLICITORS,1417745:149077826,53123.87 ,Legal Aid Higher Crime
MOJ,LAA,01/03/18,Lower Crime,LEGAL AID FUND,IRVINE THANVI NATAS SOLICITORS,1417745:149097607,43200.00 ,Legal Aid Lower Crime
MOJ,LAA,01/03/18,Legal Help,LEGAL AID FUND,ISON HARRISON LTD,1417781:149096858,41352.00 ,Legal Aid Legal Help
MOJ,LAA,01/03/18,Lower Crime,LEGAL AID FUND,J D SOLICITORS,1413220:149099020,67232.00 ,Legal Aid Lower Crime
MOJ,LAA,01/03/18,Lower Crime,LEGAL AID FUND,J D SPICER ZEB,1418311:149098167,111537.00 ,Legal Aid Lower Crime
MOJ,LAA,01/03/18,Higher Crime,LEGAL AID FUND,J D SPICER ZEB,1414902:149110889,32955.54 ,Legal Aid Higher Crime
MOJ,LAA,01/03/18,Legal Help,LEGAL AID FUND,J D SPICER ZEB,1418310:149096913,27692.00 ,Legal Aid Legal Help
MOJ,LAA,01/03/18,Lower Crime,LEGAL AID FUND,J W HUGHES & CO LLP,1416493:149097533,31500.00 ,Legal Aid Lower Crime
MOJ,LAA,01/03/18,Legal Help,LEGAL AID FUND,JACKSON LEES GROUP LTD,1418109:149097456,86737.00 ,Legal Aid Legal Help
MOJ,LAA,01/03/18,Lower Crime,LEGAL AID FUND,JACKSON LEES GROUP LTD,1418109:149098754,69018.00 ,Legal Aid Lower Crime
MOJ,LAA,01/03/18,Legal Help,LEGAL AID FUND,JACKSON LEES GROUP LTD,1418862:149096875,52704.00 ,Legal Aid Legal Help
MOJ,LAA,01/03/18,Civil Representation,LEGAL AID FUND,JAMIE N.SAWYER,1414262:149068129,31970.04 ,Legal Aid Civil Representation
MOJ,LAA,01/03/18,Civil Representation,LEGAL AID FUND,JAMIE N.SAWYER,1414262:149068173,31970.04 ,Legal Aid Civil Representation
MOJ,LAA,01/03/18,Higher Crime,LEGAL AID FUND,JASON M BARTFELD,1415140:149070389,52776.58 ,Legal Aid Higher Crime
MOJ,LAA,01/03/18,Civil Representation,LEGAL AID FUND,JEREMY J S PENDLEBURY,1415911:149082624,29538.00 ,Legal Aid Civil Representation
MOJ,LAA,01/03/18,Lower Crime,LEGAL AID FUND,JERMAN SAMUELS & PEARSON LLP,1413193:149097962,65000.00 ,Legal Aid Lower Crime
MOJ,LAA,01/03/18,Higher Crime,LEGAL AID FUND,JNP LEGAL LTD,1418344:149086248,93681.42 ,Legal Aid Higher Crime
MOJ,LAA,01/03/18,Civil Representation,LEGAL AID FUND,JOHN A PITT VATER,1413888:3000002806130015,33436.80 ,Legal Aid Civil Representation
MOJ,LAA,01/03/18,Higher Crime,LEGAL AID FUND,JOHN BLACK SOLICITORS LTD,1418472:149063330,67806.12 ,Legal Aid Higher Crime
MOJ,LAA,01/03/18,Lower Crime,LEGAL AID FUND,JOHN DELANEY & CO SOLICITORS,1417782:149097751,33000.00 ,Legal Aid Lower Crime
MOJ,LAA,01/03/18,Lower Crime,LEGAL AID FUND,JOHN FULLER & PARTNERS,1413966:149098087,29216.00 ,Legal Aid Lower Crime
MOJ,LAA,01/03/18,Lower Crime,LEGAL AID FUND,JOHN ONIONS SOLICITORS,1418834:149098527,31562.00 ,Legal Aid Lower Crime
MOJ,LAA,01/03/18,Lower Crime,LEGAL AID FUND,JOHNSON ASTILLS,1415756:149097558,28500.00 ,Legal Aid Lower Crime
MOJ,LAA,01/03/18,Lower Crime,LEGAL AID FUND,JOSEPH HILL & CO,1414964:149098169,35816.00 ,Legal Aid Lower Crime
MOJ,LAA,01/03/18,Higher Crime,LEGAL AID FUND,JOSEPH HILL & CO,1414964:149110873,29288.22 ,Legal Aid Higher Crime
MOJ,LAA,01/03/18,Higher Crime,LEGAL AID FUND,JSP LAW LTD,1416572:149086318,107574.07 ,Legal Aid Higher Crime
MOJ,LAA,01/03/18,Lower Crime,LEGAL AID FUND,JSP LAW LTD,1416572:149098792,89033.00 ,Legal Aid Lower Crime
MOJ,LAA,01/03/18,Lower Crime,LEGAL AID FUND,K LEGAL SOLICITORS,1415216:149098708,31100.00 ,Legal Aid Lower Crime
MOJ,LAA,01/03/18,Civil Representation,LEGAL AID FUND,KATHRYN A TAYLOR,1414375:3000001489570011,30238.98 ,Legal Aid Civil Representation
MOJ,LAA,01/03/18,Lower Crime,LEGAL AID FUND,KEMPS SOLICITORS,1414004:149098363,31181.00 ,Legal Aid Lower Crime
MOJ,LAA,01/03/18,Higher Crime,LEGAL AID FUND,KENNETH M BARROW & CO,1414042:149071359,81347.36 ,Legal Aid Higher Crime
MOJ,LAA,01/03/18,Higher Crime,LEGAL AID FUND,KEPPE ROFER,1415679:149111053,89975.11 ,Legal Aid Higher Crime
MOJ,LAA,01/03/18,Higher Crime,LEGAL AID FUND,KERIM FUAD QC,1417221:149071254,52259.40 ,Legal Aid Higher Crime
MOJ,LAA,01/03/18,Legal Help,LEGAL AID FUND,KESAR & CO SOLICITORS,1415211:149097447,28976.00 ,Legal Aid Legal Help
MOJ,LAA,01/03/18,Higher Crime,LEGAL AID FUND,KEVIN MOLLOY,1414697:149110253,26472.00 ,Legal Aid Higher Crime
MOJ,LAA,01/03/18,Lower Crime,LEGAL AID FUND,KYLES LEGAL PRACTICE,1414905:149098595,28716.00 ,Legal Aid Lower Crime
MOJ,LAA,01/03/18,Higher Crime,LEGAL AID FUND,L P EVANS SOLICITORS,1414460:149099569,35928.94 ,Legal Aid Higher Crime
MOJ,LAA,01/03/18,Lower Crime,LEGAL AID FUND,LANSBURY WORTHINGTON LTD,1414086:149097599,54900.00 ,Legal Aid Lower Crime
MOJ,LAA,01/03/18,Legal Help,LEGAL AID FUND,LAWANA & CO,1413974:149096463,64000.00 ,Legal Aid Legal Help
MOJ,LAA,01/03/18,Lower Crime,LEGAL AID FUND,LAWRENCE & CO SOLICITORS CDS LLP,1414965:149097656,39800.00 ,Legal Aid Lower Crime
MOJ,LAA,01/03/18,Higher Crime,LEGAL AID FUND,LAWRENCE & CO SOLICITORS CDS LLP,1414965:149078234,38526.66 ,Legal Aid Higher Crime
MOJ,LAA,01/03/18,Lower Crime,LEGAL AID FUND,LAWTONS SOLICITORS LTD,1414830:149097938,35500.00 ,Legal Aid Lower Crime
MOJ,LAA,01/03/18,Lower Crime,LEGAL AID FUND,LAWTONS SOLICITORS LTD,1413658:149097963,35000.00 ,Legal Aid Lower Crime
MOJ,LAA,01/03/18,Legal Help,LEGAL AID FUND,LEGAL JUSTICE SOLICITORS,1415477:149097380,37336.00 ,Legal Aid Legal Help
MOJ,LAA,01/03/18,Legal Help,LEGAL AID FUND,LEI DAT BAIG SOLICITORS LIMITED,1415593:149097238,57234.00 ,Legal Aid Legal Help
MOJ,LAA,01/03/18,Lower Crime,LEGAL AID FUND,LESLIE FRANKS SOLICITORS,1413522:149098209,80154.00 ,Legal Aid Lower Crime
MOJ,LAA,01/03/18,Lower Crime,LEGAL AID FUND,LEVY & CO SOLICITORS LLP,1413969:149097586,56300.00 ,Legal Aid Lower Crime
MOJ,LAA,01/03/18,Lower Crime,LEGAL AID FUND,LEVY & CO SOLICITORS LLP,1414396:149097587,30700.00 ,Legal Aid Lower Crime
MOJ,LAA,01/03/18,Lower Crime,LEGAL AID FUND,LEWIS NEDAS LAW LTD,1417908:149097646,30700.00 ,Legal Aid Lower Crime
MOJ,LAA,01/03/18,Lower Crime,LEGAL AID FUND,LHD SOLICITORS LTD,1418730:149097763,36600.00 ,Legal Aid Lower Crime
MOJ,LAA,01/03/18,Legal Help,LEGAL AID FUND,LISA MARIE MCNULTY SOLICITOR,1416510:149096984,27228.00 ,Legal Aid Legal Help
MOJ,LAA,01/03/18,Lower Crime,LEGAL AID FUND,LLM SOLICITORS (LONDON) LTD,1414922:149098700,44122.00 ,Legal Aid Lower Crime
MOJ,LAA,01/03/18,Higher Crime,LEGAL AID FUND,LLOYDS PR SOLICITORS,1413990:149071388,89975.11 ,Legal Aid Higher Crime
MOJ,LAA,01/03/18,Lower Crime,LEGAL AID FUND,LLOYDS PR SOLICITORS,1413990:149098089,36153.00 ,Legal Aid Lower Crime
MOJ,LAA,01/03/18,Lower Crime,LEGAL AID FUND,LLOYDS PR SOLICITORS,1417800:149098084,27547.00 ,Legal Aid Lower Crime
MOJ,LAA,01/03/18,Lower Crime,LEGAL AID FUND,LUMB & MACGILL,1418241:149097743,35000.00 ,Legal Aid Lower Crime
MOJ,LAA,01/03/18,Legal Help,LEGAL AID FUND,LUPINS,1416846:149096912,80660.00 ,Legal Aid Legal Help
MOJ,LAA,01/03/18,Legal Help,LEGAL AID FUND,LUQMANI THOMPSON & PARTNERS,1417367:149096884,51562.00 ,Legal Aid Legal Help
MOJ,LAA,01/03/18,Civil Representation,LEGAL AID FUND,LYONS DAVIDSON LTD,1417401:3000000987240015,38943.25 ,Legal Aid Civil Representation
MOJ,LAA,01/03/18,Civil Representation,LEGAL AID FUND,LYONS DAVIDSON LTD,1417401:3000000987240013RC,-34986.60 ,Legal Aid Civil Representation
MOJ,LAA,01/03/18,Higher Crime,LEGAL AID FUND,M I SOLICITORS,1413656:149063048,32955.54 ,Legal Aid Higher Crime
MOJ,LAA,01/03/18,Civil Representation,LEGAL AID FUND,M JAYNE PYE,1416339:149081601,33431.40 ,Legal Aid Civil Representation
MOJ,LAA,01/03/18,Civil Representation,LEGAL AID FUND,M JAYNE PYE,1416339:149081626,-29899.80 ,Legal Aid Civil Representation
MOJ,LAA,01/03/18,Higher Crime,LEGAL AID FUND,M K LAW SOLICITORS LTD,1413622:149099424,60310.56 ,Legal Aid Higher Crime
MOJ,LAA,01/03/18,Lower Crime,LEGAL AID FUND,M K LAW SOLICITORS LTD,1414867:149097939,60000.00 ,Legal Aid Lower Crime
MOJ,LAA,01/03/18,Civil Representation,LEGAL AID FUND,MACHINS SOLICITORS LLP,1415386:3000001498170014,28592.71 ,Legal Aid Civil Representation
MOJ,LAA,01/03/18,Higher Crime,LEGAL AID FUND,MAIDMENTS LTD,1418878:149100338,89975.11 ,Legal Aid Higher Crime
MOJ,LAA,01/03/18,Higher Crime,LEGAL AID FUND,MANN & CO SOLICITORS LTD,1416856:149071372,26748.97 ,Legal Aid Higher Crime
MOJ,LAA,01/03/18,Higher Crime,LEGAL AID FUND,MARK JONES & PARTNERS,1416913:149110095,67354.42 ,Legal Aid Higher Crime
MOJ,LAA,01/03/18,Lower Crime,LEGAL AID FUND,MARTIN MURRAY & ASSOCIATES,1416958:149098159,63251.00 ,Legal Aid Lower Crime
MOJ,LAA,01/03/18,Lower Crime,LEGAL AID FUND,MARTIN MURRAY & ASSOCIATES,1416957:149098469,44045.00 ,Legal Aid Lower Crime
MOJ,LAA,01/03/18,Lower Crime,LEGAL AID FUND,MARTYN HEWETT,1416971:149097821,32000.00 ,Legal Aid Lower Crime
MOJ,LAA,01/03/18,Higher Crime,LEGAL AID FUND,MARTYN PROWEL LTD,1418357:149068419,29453.70 ,Legal Aid Higher Crime
MOJ,LAA,01/03/18,Higher Crime,LEGAL AID FUND,MATHEW J SHERRATT,1415181:149086175,39908.63 ,Legal Aid Higher Crime
MOJ,LAA,01/03/18,Legal Help,LEGAL AID FUND,MATTHEW GOLD & CO,1417755:149096893,27020.00 ,Legal Aid Legal Help
MOJ,LAA,01/03/18,Lower Crime,LEGAL AID FUND,MCCORMACKS LAW,1415770:149098227,35033.00 ,Legal Aid Lower Crime
MOJ,LAA,01/03/18,Lower Crime,LEGAL AID FUND,MCGRATH & CO SOLICITORS,1418284:149097901,30000.00 ,Legal Aid Lower Crime
MOJ,LAA,01/03/18,Lower Crime,LEGAL AID FUND,MCLARTYS SOLICITORS,1413487:149097637,25000.00 ,Legal Aid Lower Crime
MOJ,LAA,01/03/18,Lower Crime,LEGAL AID FUND,MCMILLAN WILLIAMS SOLICITORS LTD,1418803:149097623,37600.00 ,Legal Aid Lower Crime
MOJ,LAA,01/03/18,Higher Crime,LEGAL AID FUND,MCMILLAN WILLIAMS SOLICITORS LTD,1413164:149070506,35801.69 ,Legal Aid Higher Crime
MOJ,LAA,01/03/18,Legal Help,LEGAL AID FUND,MCMILLAN WILLIAMS SOLICITORS LTD,1417631:149096592,26300.00 ,Legal Aid Legal Help
MOJ,LAA,01/03/18,Lower Crime,LEGAL AID FUND,MCMILLAN WILLIAMS SOLICITORS LTD,1418803:149081492,-29600.00 ,Legal Aid Lower Crime
MOJ,LAA,01/03/18,Lower Crime,LEGAL AID FUND,MCSORLEY LEWIS LAW LTD,1417885:149098013,32199.00 ,Legal Aid Lower Crime
MOJ,LAA,01/03/18,Legal Help,LEGAL AID FUND,MENTAL HEALTH LEGAL REPRESENTATION LTD,1418256:149097044,27206.00 ,Legal Aid Legal Help
MOJ,LAA,01/03/18,Lower Crime,LEGAL AID FUND,METCALFE COPEMAN & PETTEFAR,1415379:149097594,38700.00 ,Legal Aid Lower Crime
MOJ,LAA,01/03/18,Lower Crime,LEGAL AID FUND,MICHAEL CARROLL & CO,1416911:149097662,36000.00 ,Legal Aid Lower Crime
MOJ,LAA,01/03/18,Higher Crime,LEGAL AID FUND,MICHAEL HENDERSON & CO LTD,1416465:149078271,46416.42 ,Legal Aid Higher Crime
MOJ,LAA,01/03/18,Lower Crime,LEGAL AID FUND,MICHAEL PURDON,1414035:149098275,35753.00 ,Legal Aid Lower Crime
MOJ,LAA,01/03/18,Higher Crime,LEGAL AID FUND,MICHAEL R EVANS,1418671:149085092,57616.82 ,Legal Aid Higher Crime
MOJ,LAA,01/03/18,Higher Crime,LEGAL AID FUND,MN LAW,1418014:149100515,44987.56 ,Legal Aid Higher Crime
MOJ,LAA,01/03/18,Legal Help,LEGAL AID FUND,MONTAGUE SOLICITORS LTD,1415236:149097247,27687.00 ,Legal Aid Legal Help
MOJ,LAA,01/03/18,Lower Crime,LEGAL AID FUND,MORGAN CULLEN & BALL LTD,1418571:149098752,27163.00 ,Legal Aid Lower Crime
MOJ,LAA,01/03/18,Civil Representation,LEGAL AID FUND,MORRISON SPOWART LTD,1417298:3000001639370007,40700.68 ,Legal Aid Civil Representation
MOJ,LAA,01/03/18,Civil Representation,LEGAL AID FUND,MORRISON SPOWART LTD,1417298:3000001639370006RC,-33954.78 ,Legal Aid Civil Representation
MOJ,LAA,01/03/18,Lower Crime,LEGAL AID FUND,MURRAYS SOLICITORS LTD,1418718:149098325,27044.00 ,Legal Aid Lower Crime
MOJ,LAA,01/03/18,Lower Crime,LEGAL AID FUND,NEEDHAM POULIER LTD,1417365:149098229,31141.00 ,Legal Aid Lower Crime
MOJ,LAA,01/03/18,Legal Help,LEGAL AID FUND,NEEDHAM POULIER LTD,1417365:149096885,28215.00 ,Legal Aid Legal Help
MOJ,LAA,01/03/18,Higher Crime,LEGAL AID FUND,NEIL FOLEY & COMPANY,1416859:149063904,27199.90 ,Legal Aid Higher Crime
MOJ,LAA,01/03/18,Higher Crime,LEGAL AID FUND,NELSON GUEST & PARTNERS,1416965:149063704,73786.34 ,Legal Aid Higher Crime
MOJ,LAA,01/03/18,Lower Crime,LEGAL AID FUND,NELSON GUEST & PARTNERS,1416965:149098163,41033.00 ,Legal Aid Lower Crime
MOJ,LAA,01/03/18,Civil Representation,LEGAL AID FUND,NICHOLAS W STONOR,1415979:3000001972730019,38140.20 ,Legal Aid Civil Representation
MOJ,LAA,01/03/18,Lower Crime,LEGAL AID FUND,NOBLE SOLICITORS,1416141:149098092,49733.00 ,Legal Aid Lower Crime
MOJ,LAA,01/03/18,Lower Crime,LEGAL AID FUND,NOBLE SOLICITORS,1414869:149098610,32108.00 ,Legal Aid Lower Crime
MOJ,LAA,01/03/18,Legal Help,LEGAL AID FUND,NOBLE SOLICITORS,1416141:149097110,27129.00 ,Legal Aid Legal Help
MOJ,LAA,01/03/18,Civil Representation,LEGAL AID FUND,NORTON PESKETT SOLICITORS,1416121:149067902,44151.18 ,Legal Aid Civil Representation
MOJ,LAA,01/03/18,Civil Representation,LEGAL AID FUND,NORTON PESKETT SOLICITORS,1416121:149067910,44151.18 ,Legal Aid Civil Representation
MOJ,LAA,01/03/18,Lower Crime,LEGAL AID FUND,OBW PERERA LTD,1418271:149097592,29000.00 ,Legal Aid Lower Crime
MOJ,LAA,01/03/18,Legal Help,LEGAL AID FUND,O'DONNELLS SOLICITORS,1416831:149096982,37643.00 ,Legal Aid Legal Help
MOJ,LAA,01/03/18,Lower Crime,LEGAL AID FUND,OLD BAILEY SOLICITORS LTD,1414889:149098648,38328.00 ,Legal Aid Lower Crime
MOJ,LAA,01/03/18,Lower Crime,LEGAL AID FUND,ONE LEGAL SERVICES LTD,1413161:149099000,39157.00 ,Legal Aid Lower Crime
MOJ,LAA,01/03/18,Lower Crime,LEGAL AID FUND,O'NEILL WRIGHT & NASH,1414894:149098596,40495.00 ,Legal Aid Lower Crime
MOJ,LAA,01/03/18,Higher Crime,LEGAL AID FUND,O'NEILL WRIGHT & NASH,1414894:149064031,26498.75 ,Legal Aid Higher Crime
MOJ,LAA,01/03/18,Lower Crime,LEGAL AID FUND,ONUMA & CO LLP,1417094:149098838,26468.00 ,Legal Aid Lower Crime
MOJ,LAA,01/03/18,Lower Crime,LEGAL AID FUND,ORACLE SOLICITORS & CONSULTANTS LTD,1417304:149098215,163372.00 ,Legal Aid Lower Crime
MOJ,LAA,01/03/18,Civil Representation,LEGAL AID FUND,OSBORNE & CO SOLICITORS,1416884:3000000998160006,33218.57 ,Legal Aid Civil Representation
MOJ,LAA,01/03/18,Lower Crime,LEGAL AID FUND,OSLERS SOLICITORS,1414399:149098115,34680.00 ,Legal Aid Lower Crime
MOJ,LAA,01/03/18,Lower Crime,LEGAL AID FUND,OWEN NASH & CO,1418383:149097911,35000.00 ,Legal Aid Lower Crime
MOJ,LAA,01/03/18,Legal Help,LEGAL AID FUND,PARAGON LAW LTD,1418255:149096564,45000.00 ,Legal Aid Legal Help
MOJ,LAA,01/03/18,Legal Help,LEGAL AID FUND,PARKER RHODES HICKMOTTS,1415072:149097407,28306.00 ,Legal Aid Legal Help
MOJ,LAA,01/03/18,Higher Crime,LEGAL AID FUND,PATRICK HARRINGTON QC,1413400:149092930,80520.00 ,Legal Aid Higher Crime
MOJ,LAA,01/03/18,Higher Crime,LEGAL AID FUND,PATRICK M J O'CONNOR QC,1415519:149078815,72108.96 ,Legal Aid Higher Crime
MOJ,LAA,01/03/18,Civil Representation,LEGAL AID FUND,PAUL M STOREY QC,1416323:3000001494580014,50946.04 ,Legal Aid Civil Representation
MOJ,LAA,01/03/18,Lower Crime,LEGAL AID FUND,PENFOLD & MCPHERSON LTD,1418828:149098470,25887.00 ,Legal Aid Lower Crime
MOJ,LAA,01/03/18,Higher Crime,LEGAL AID FUND,PENMANS SOLICITORS LLP,1418376:149085731,89975.11 ,Legal Aid Higher Crime
MOJ,LAA,01/03/18,Civil Representation,LEGAL AID FUND,PEPPERELLS SOLICITORS,1414432:3000001378860027,45469.81 ,Legal Aid Civil Representation
MOJ,LAA,01/03/18,Civil Representation,LEGAL AID FUND,PEPPERELLS SOLICITORS,1414432:3000001378860026RC,-35529.05 ,Legal Aid Civil Representation
MOJ,LAA,01/03/18,Legal Help,LEGAL AID FUND,PETER EDWARDS LAW LTD,1416827:149096458,34100.00 ,Legal Aid Legal Help
MOJ,LAA,01/03/18,Legal Help,LEGAL AID FUND,PICKUP & SCOTT SOLICITORS,1417842:149097086,32235.00 ,Legal Aid Legal Help
MOJ,LAA,01/03/18,Lower Crime,LEGAL AID FUND,POWELL SPENCER AND PARTNERS,1418312:149097608,36500.00 ,Legal Aid Lower Crime
MOJ,LAA,01/03/18,Lower Crime,LEGAL AID FUND,PURCELL PARKER LTD,1416146:149097903,79300.00 ,Legal Aid Lower Crime
MOJ,LAA,01/03/18,Lower Crime,LEGAL AID FUND,PURE LAW CRIMINAL DEFENCE,1413214:149098893,30384.00 ,Legal Aid Lower Crime
MOJ,LAA,01/03/18,Higher Crime,LEGAL AID FUND,PUSHPANJALI GOHIL,1414780:149063447,33045.36 ,Legal Aid Higher Crime
MOJ,LAA,01/03/18,Higher Crime,LEGAL AID FUND,QUALITYSOLICITORS JONES ROBERTSON,1417283:149099825,43425.64 ,Legal Aid Higher Crime
MOJ,LAA,01/03/18,Lower Crime,LEGAL AID FUND,QUALITYSOLICITORS JONES ROBERTSON,1417283:149098348,27762.00 ,Legal Aid Lower Crime
MOJ,LAA,01/03/18,Higher Crime,LEGAL AID FUND,QUINN MELVILLE,1417277:149063551,31750.94 ,Legal Aid Higher Crime
MOJ,LAA,01/03/18,Civil Representation,LEGAL AID FUND,RANSON HOUGHTON SOLICITORS LLP,1413617:3000002331430011,28836.00 ,Legal Aid Civil Representation
MOJ,LAA,01/03/18,Civil Representation,LEGAL AID FUND,REBECCA FOULKES,1414656:3000001896400066,39830.40 ,Legal Aid Civil Representation
MOJ,LAA,01/03/18,Higher Crime,LEGAL AID FUND,REBECCA TROWLER,1415522:149085809,48077.38 ,Legal Aid Higher Crime
MOJ,LAA,01/03/18,Lower Crime,LEGAL AID FUND,REECE THOMAS WATSON LTD,1417043:149098834,28274.00 ,Legal Aid Lower Crime
MOJ,LAA,01/03/18,Lower Crime,LEGAL AID FUND,REEDS SOLICITORS LTD,1415757:149098473,64339.00 ,Legal Aid Lower Crime
MOJ,LAA,01/03/18,Lower Crime,LEGAL AID FUND,REEDS SOLICITORS LTD,1413643:149099069,61085.00 ,Legal Aid Lower Crime
MOJ,LAA,01/03/18,Lower Crime,LEGAL AID FUND,REEDS SOLICITORS LTD,1413639:149099073,60421.00 ,Legal Aid Lower Crime
MOJ,LAA,01/03/18,Lower Crime,LEGAL AID FUND,REEDS SOLICITORS LTD,1418076:149098753,30985.00 ,Legal Aid Lower Crime
MOJ,LAA,01/03/18,Lower Crime,LEGAL AID FUND,REEDS SOLICITORS LTD,1418435:149098877,28796.00 ,Legal Aid Lower Crime
MOJ,LAA,01/03/18,Lower Crime,LEGAL AID FUND,REEDS SOLICITORS LTD,1414900:149098626,27557.00 ,Legal Aid Lower Crime
MOJ,LAA,01/03/18,Lower Crime,LEGAL AID FUND,REEDS SOLICITORS LTD,1418001:149098870,25596.00 ,Legal Aid Lower Crime
MOJ,LAA,01/03/18,Lower Crime,LEGAL AID FUND,REEVES  & CO SOLICITORS,1413949:149098436,49768.00 ,Legal Aid Lower Crime
MOJ,LAA,01/03/18,Lower Crime,LEGAL AID FUND,RENSHAW DERRICK & CO,1417403:149098483,46722.00 ,Legal Aid Lower Crime
MOJ,LAA,01/03/18,Higher Crime,LEGAL AID FUND,RICHARD GRIFFITHS & CO,1414427:149100000,30301.87 ,Legal Aid Higher Crime
MOJ,LAA,01/03/18,Lower Crime,LEGAL AID FUND,RICHARD GRIFFITHS & CO,1415391:149098517,25808.00 ,Legal Aid Lower Crime
MOJ,LAA,01/03/18,Higher Crime,LEGAL AID FUND,RICHARD WORMALD,1416417:149110045,30381.60 ,Legal Aid Higher Crime
MOJ,LAA,01/03/18,Civil Representation,LEGAL AID FUND,RIDLEY & HALL LEGAL LTD,1417779:3000002084590012,35765.56 ,Legal Aid Civil Representation
MOJ,LAA,01/03/18,Lower Crime,LEGAL AID FUND,RILEY HAYES & CO,1416147:149097925,34900.00 ,Legal Aid Lower Crime
MOJ,LAA,01/03/18,Lower Crime,LEGAL AID FUND,RMNJ SOLICITORS ***,1416081:149098241,39620.00 ,Legal Aid Lower Crime
MOJ,LAA,01/03/18,Legal Help,LEGAL AID FUND,RMNJ SOLICITORS ***,1416081:149096872,35516.00 ,Legal Aid Legal Help
MOJ,LAA,01/03/18,Lower Crime,LEGAL AID FUND,ROACH PITTIS,1417441:149097840,26400.00 ,Legal Aid Lower Crime
MOJ,LAA,01/03/18,Lower Crime,LEGAL AID FUND,ROBERT LIZAR,1413619:149097806,30000.00 ,Legal Aid Lower Crime
MOJ,LAA,01/03/18,Lower Crime,LEGAL AID FUND,RODNEY WARREN & CO LTD,1417845:149097816,37100.00 ,Legal Aid Lower Crime
MOJ,LAA,01/03/18,Legal Help,LEGAL AID FUND,ROEBUCKS SOLICITORS,1414020:149096992,33799.00 ,Legal Aid Legal Help
MOJ,LAA,01/03/18,Lower Crime,LEGAL AID FUND,ROEBUCKS SOLICITORS,1414020:149098393,31410.00 ,Legal Aid Lower Crime
MOJ,LAA,01/03/18,Higher Crime,LEGAL AID FUND,ROLAND ROBINSONS AND FENTONS LLP,1413552:149070264,46550.36 ,Legal Aid Higher Crime
MOJ,LAA,01/03/18,Higher Crime,LEGAL AID FUND,ROLAND ROBINSONS AND FENTONS LLP,1413552:149070833,43424.75 ,Legal Aid Higher Crime
MOJ,LAA,01/03/18,Civil Representation,LEGAL AID FUND,ROMA F WHELAN,1414795:3000002107180008,28512.00 ,Legal Aid Civil Representation
MOJ,LAA,01/03/18,Civil Representation,LEGAL AID FUND,ROSIE BRACHER,1418294:149107153,25190.08 ,Legal Aid Civil Representation
MOJ,LAA,01/03/18,Lower Crime,LEGAL AID FUND,ROWE SPARKES SOLICITORS LTD,1418741:149097837,59400.00 ,Legal Aid Lower Crime
MOJ,LAA,01/03/18,Lower Crime,LEGAL AID FUND,ROY FOREMAN & CO SOLICITORS,1416461:149097748,29000.00 ,Legal Aid Lower Crime
MOJ,LAA,01/03/18,Higher Crime,LEGAL AID FUND,RUSSELL & RUSSELL SOLICITORS,1413610:149099454,104911.72 ,Legal Aid Higher Crime
MOJ,LAA,01/03/18,Higher Crime,LEGAL AID FUND,RUSSELL-COOKE LLP,1414070:148878896,27985.18 ,Legal Aid Higher Crime
MOJ,LAA,01/03/18,Lower Crime,LEGAL AID FUND,S A LAW CHAMBERS SOLICITORS,1417305:149097603,39000.00 ,Legal Aid Lower Crime
MOJ,LAA,01/03/18,Higher Crime,LEGAL AID FUND,SAHOTA & SAHOTA SOLICITORS,1417055:149063061,89975.11 ,Legal Aid Higher Crime
MOJ,LAA,01/03/18,Higher Crime,LEGAL AID FUND,SAKHI LEGAL SERVICES LTD,1418700:149064232,52630.38 ,Legal Aid Higher Crime
MOJ,LAA,01/03/18,Lower Crime,LEGAL AID FUND,SAKHI LEGAL SERVICES LTD,1418700:149098055,25841.00 ,Legal Aid Lower Crime
MOJ,LAA,01/03/18,Higher Crime,LEGAL AID FUND,SALHAN & CO LTD,1417758:149063327,60226.33 ,Legal Aid Higher Crime
MOJ,LAA,01/03/18,Lower Crime,LEGAL AID FUND,SANSBURY DOUGLAS,1414431:149097931,50000.00 ,Legal Aid Lower Crime
MOJ,LAA,01/03/18,Higher Crime,LEGAL AID FUND,SATYANAND S BEHARRYLAL,1416715:149063482,41579.64 ,Legal Aid Higher Crime
MOJ,LAA,01/03/18,Lower Crime,LEGAL AID FUND,SCOTT-MONCRIEFF & ASSOCIATES LLP,1416952:149098205,68271.00 ,Legal Aid Lower Crime
MOJ,LAA,01/03/18,Lower Crime,LEGAL AID FUND,SELBY DIXON SOLICITORS,1418723:149098476,35221.00 ,Legal Aid Lower Crime
MOJ,LAA,01/03/18,Lower Crime,LEGAL AID FUND,SHELLEY & CO,1416140:149098129,35764.00 ,Legal Aid Lower Crime
MOJ,LAA,01/03/18,Lower Crime,LEGAL AID FUND,SHEPPARDS SOLICITORS LTD,1417359:149097874,30600.00 ,Legal Aid Lower Crime
MOJ,LAA,01/03/18,Higher Crime,LEGAL AID FUND,SIMON ROGERS,1417204:149063178,27526.54 ,Legal Aid Higher Crime
MOJ,LAA,01/03/18,Higher Crime,LEGAL AID FUND,SIMPSON HEALD PEARSON,1416091:149064357,84875.07 ,Legal Aid Higher Crime
MOJ,LAA,01/03/18,Higher Crime,LEGAL AID FUND,SMITH PARTNERSHIP,1418224:149100290,73821.88 ,Legal Aid Higher Crime
MOJ,LAA,01/03/18,Lower Crime,LEGAL AID FUND,SMITH PARTNERSHIP,1418225:149097907,29600.00 ,Legal Aid Lower Crime
MOJ,LAA,01/03/18,Lower Crime,LEGAL AID FUND,SMITH PARTNERSHIP,1418222:149097569,27600.00 ,Legal Aid Lower Crime
MOJ,LAA,01/03/18,Lower Crime,LEGAL AID FUND,SONN MACMILLAN WALKER LTD,1416962:149097600,48700.00 ,Legal Aid Lower Crime
MOJ,LAA,01/03/18,Legal Help,LEGAL AID FUND,SOUTHERNS SOLICITORS,1414056:149096993,31216.00 ,Legal Aid Legal Help
MOJ,LAA,01/03/18,Higher Crime,LEGAL AID FUND,SPERRIN  LAW LTD,1413628:149078794,49694.39 ,Legal Aid Higher Crime
MOJ,LAA,01/03/18,Lower Crime,LEGAL AID FUND,STEEL & SHAMASH,1418315:149097664,25100.00 ,Legal Aid Lower Crime
MOJ,LAA,01/03/18,Lower Crime,LEGAL AID FUND,STEPHEN BURDON SOLICITORS,1416847:149097564,39100.00 ,Legal Aid Lower Crime
MOJ,LAA,01/03/18,Lower Crime,LEGAL AID FUND,STEPHENSONS SOLICITORS LLP,1413528:149098364,48694.00 ,Legal Aid Lower Crime
MOJ,LAA,01/03/18,Higher Crime,LEGAL AID FUND,STERNBERG REED SOLICITORS,1418751:149078237,47772.69 ,Legal Aid Higher Crime
MOJ,LAA,01/03/18,Higher Crime,LEGAL AID FUND,STERNBERG REED SOLICITORS,1418751:149099612,39452.39 ,Legal Aid Higher Crime
MOJ,LAA,01/03/18,Lower Crime,LEGAL AID FUND,STERNBERG REED SOLICITORS,1418751:149097642,34900.00 ,Legal Aid Lower Crime
MOJ,LAA,01/03/18,Higher Crime,LEGAL AID FUND,STERNBERG REED SOLICITORS,1418751:149063369,25926.01 ,Legal Aid Higher Crime
MOJ,LAA,01/03/18,Lower Crime,LEGAL AID FUND,STERNBERG REED SOLICITORS,1418751:149081498,-41400.00 ,Legal Aid Lower Crime
MOJ,LAA,01/03/18,Lower Crime,LEGAL AID FUND,STEVENS SOLICITORS,1413571:149097891,60000.00 ,Legal Aid Lower Crime
MOJ,LAA,01/03/18,Lower Crime,LEGAL AID FUND,STEVENS SOLICITORS,1413572:149097890,52300.00 ,Legal Aid Lower Crime
MOJ,LAA,01/03/18,Lower Crime,LEGAL AID FUND,STEVENS SOLICITORS,1413569:149097897,25000.00 ,Legal Aid Lower Crime
MOJ,LAA,01/03/18,Lower Crime,LEGAL AID FUND,STOCK MORAN & SWALWELL,1413535:149097760,28800.00 ,Legal Aid Lower Crime
MOJ,LAA,01/03/18,Higher Crime,LEGAL AID FUND,STOKOE PARTNERSHIP,1415212:149064251,38887.46 ,Legal Aid Higher Crime
MOJ,LAA,01/03/18,Higher Crime,LEGAL AID FUND,STOKOE PARTNERSHIP,1417370:149111051,29282.08 ,Legal Aid Higher Crime
MOJ,LAA,01/03/18,Lower Crime,LEGAL AID FUND,STOKOE PARTNERSHIP,1417370:149098164,29129.00 ,Legal Aid Lower Crime
MOJ,LAA,01/03/18,Lower Crime,LEGAL AID FUND,STUART MILLER SOLICITORS LTD,1414049:149098207,70587.00 ,Legal Aid Lower Crime
MOJ,LAA,01/03/18,Higher Crime,LEGAL AID FUND,STUART MILLER SOLICITORS LTD,1414049:149109992,43164.18 ,Legal Aid Higher Crime
MOJ,LAA,01/03/18,Lower Crime,LEGAL AID FUND,SUNDIP MURRIA SOLICITORS,1418296:149097919,35400.00 ,Legal Aid Lower Crime
MOJ,LAA,01/03/18,Lower Crime,LEGAL AID FUND,SUSSEX DEFENCE SOLICITORS,1413906:149097831,25000.00 ,Legal Aid Lower Crime
MOJ,LAA,01/03/18,Legal Help,LEGAL AID FUND,SUTOVIC & HARTIGAN,1417415:149096485,34300.00 ,Legal Aid Legal Help
MOJ,LAA,01/03/18,Lower Crime,LEGAL AID FUND,SWAIN & CO SOLICITORS,1417743:149097835,100000.00 ,Legal Aid Lower Crime
MOJ,LAA,01/03/18,Legal Help,LEGAL AID FUND,SWAIN & CO SOLICITORS,1417744:149096576,25000.00 ,Legal Aid Legal Help
MOJ,LAA,01/03/18,Legal Help,LEGAL AID FUND,SWITALSKI'S SOLICITORS LTD,1415017:149096839,47026.00 ,Legal Aid Legal Help
MOJ,LAA,01/03/18,Lower Crime,LEGAL AID FUND,T S LAW LTD,1416512:149097643,25000.00 ,Legal Aid Lower Crime
MOJ,LAA,01/03/18,Lower Crime,LEGAL AID FUND,T V EDWARDS LLP,1414087:149097641,68000.00 ,Legal Aid Lower Crime
MOJ,LAA,01/03/18,Legal Help,LEGAL AID FUND,T V EDWARDS LLP,1414087:149096466,64900.00 ,Legal Aid Legal Help
MOJ,LAA,01/03/18,Lower Crime,LEGAL AID FUND,TANG BENTLEY & JACKSON LIMITED,1418017:149098908,28754.00 ,Legal Aid Lower Crime
MOJ,LAA,01/03/18,Higher Crime,LEGAL AID FUND,TAYLOR HALDANE BARLEX LLP,1418067:149099451,48635.15 ,Legal Aid Higher Crime
MOJ,LAA,01/03/18,Lower Crime,LEGAL AID FUND,TAYLOR HALDANE BARLEX LLP,1416863:149098121,34308.00 ,Legal Aid Lower Crime
MOJ,LAA,01/03/18,Lower Crime,LEGAL AID FUND,TAYLOR HALDANE BARLEX LLP,1417012:149098868,31075.00 ,Legal Aid Lower Crime
MOJ,LAA,01/03/18,Lower Crime,LEGAL AID FUND,TAYLOR STREET SOLICITORS LLP,1414535:149097824,32400.00 ,Legal Aid Lower Crime
MOJ,LAA,01/03/18,Higher Crime,LEGAL AID FUND,TAYLOR STREET SOLICITORS LLP-ADVOCATE,1418047:149064386,29887.68 ,Legal Aid Higher Crime
MOJ,LAA,01/03/18,Lower Crime,LEGAL AID FUND,TEESSIDE LAW LTD,1415828:149098774,37848.00 ,Legal Aid Lower Crime
MOJ,LAA,01/03/18,Legal Help,LEGAL AID FUND,THALIWAL & VEJA SOLICITORS,1417827:149097042,41255.00 ,Legal Aid Legal Help
MOJ,LAA,01/03/18,Lower Crime,LEGAL AID FUND,THE CASTLE PARTNERSHIP,1415758:149097826,25000.00 ,Legal Aid Lower Crime
MOJ,LAA,01/03/18,Lower Crime,LEGAL AID FUND,THE JOHNSON PARTNERSHIP,1415693:149097560,190000.00 ,Legal Aid Lower Crime
MOJ,LAA,01/03/18,Lower Crime,LEGAL AID FUND,THE JOHNSON PARTNERSHIP,1415691:149097562,44000.00 ,Legal Aid Lower Crime
MOJ,LAA,01/03/18,Lower Crime,LEGAL AID FUND,THE JOHNSON PARTNERSHIP,1414429:149097933,40600.00 ,Legal Aid Lower Crime
MOJ,LAA,01/03/18,Lower Crime,LEGAL AID FUND,THE JOHNSON PARTNERSHIP,1415692:149097561,32500.00 ,Legal Aid Lower Crime
MOJ,LAA,01/03/18,Lower Crime,LEGAL AID FUND,THE JOHNSON PARTNERSHIP,1415834:149097949,25000.00 ,Legal Aid Lower Crime
MOJ,LAA,01/03/18,Lower Crime,LEGAL AID FUND,THOMAS BOYD WHYTE,1417396:149098166,51985.00 ,Legal Aid Lower Crime
MOJ,LAA,01/03/18,Legal Help,LEGAL AID FUND,THOMPSON & CO SOLICITORS LTD,1413558:149096470,32600.00 ,Legal Aid Legal Help
MOJ,LAA,01/03/18,Civil Representation,LEGAL AID FUND,TIMOTHY H SPAIN,1416035:3000000809800027,36687.60 ,Legal Aid Civil Representation
MOJ,LAA,01/03/18,Civil Representation,LEGAL AID FUND,TRACY LAKIN,1415990:3000003461300001,27086.40 ,Legal Aid Civil Representation
MOJ,LAA,01/03/18,Lower Crime,LEGAL AID FUND,TRANTERS SOLICITORS LTD,1416093:149097802,30600.00 ,Legal Aid Lower Crime
MOJ,LAA,01/03/18,Lower Crime,LEGAL AID FUND,TUCKERS SOLICITORS LLP,1414046:149097801,130300.00 ,Legal Aid Lower Crime
MOJ,LAA,01/03/18,Lower Crime,LEGAL AID FUND,TUCKERS SOLICITORS LLP,1414047:149097655,90000.00 ,Legal Aid Lower Crime
MOJ,LAA,01/03/18,Lower Crime,LEGAL AID FUND,TUCKERS SOLICITORS LLP,1414400:149097659,35400.00 ,Legal Aid Lower Crime
MOJ,LAA,01/03/18,Lower Crime,LEGAL AID FUND,TUCKERS SOLICITORS LLP,1416170:149097950,35000.00 ,Legal Aid Lower Crime
MOJ,LAA,01/03/18,Higher Crime,LEGAL AID FUND,TUCKERS SOLICITORS LLP,1415238:149063609,29664.55 ,Legal Aid Higher Crime
MOJ,LAA,01/03/18,Lower Crime,LEGAL AID FUND,TUCKERS SOLICITORS LLP,1417982:149098873,27549.00 ,Legal Aid Lower Crime
MOJ,LAA,01/03/18,Higher Crime,LEGAL AID FUND,TYLER HOFFMAN LTD,1417965:149063768,34098.65 ,Legal Aid Higher Crime
MOJ,LAA,01/03/18,Lower Crime,LEGAL AID FUND,USMANI KING LTD,1417309:149098093,49144.00 ,Legal Aid Lower Crime
MOJ,LAA,01/03/18,Higher Crime,LEGAL AID FUND,VEJA & CO LTD,1414054:149086319,99305.85 ,Legal Aid Higher Crime
MOJ,LAA,01/03/18,Lower Crime,LEGAL AID FUND,VHS FLETCHERS,1415755:149097563,72100.00 ,Legal Aid Lower Crime
MOJ,LAA,01/03/18,Lower Crime,LEGAL AID FUND,VHS FLETCHERS,1416582:149097958,29100.00 ,Legal Aid Lower Crime
MOJ,LAA,01/03/18,Lower Crime,LEGAL AID FUND,VICKERS CHISMAN & WISHLADE,1414944:149097694,60200.00 ,Legal Aid Lower Crime
MOJ,LAA,01/03/18,Higher Crime,LEGAL AID FUND,VYMAN SOLICITORS LTD,1417798:149064397,28994.96 ,Legal Aid Higher Crime
MOJ,LAA,01/03/18,Lower Crime,LEGAL AID FUND,VYMAN SOLICITORS LTD,1417798:149098426,28927.00 ,Legal Aid Lower Crime
MOJ,LAA,01/03/18,Lower Crime,LEGAL AID FUND,WAINWRIGHT & CUMMINS LLP,1418246:149097667,42000.00 ,Legal Aid Lower Crime
MOJ,LAA,01/03/18,Lower Crime,LEGAL AID FUND,WANNOPS LLP,1414868:149098733,60469.00 ,Legal Aid Lower Crime
MOJ,LAA,01/03/18,Lower Crime,LEGAL AID FUND,WATSON WOODHOUSE SOLICITORS LLP,1414040:149097695,26800.00 ,Legal Aid Lower Crime
MOJ,LAA,01/03/18,Higher Crime,LEGAL AID FUND,WATSON WOODHOUSE SOLICITORS LLP,1414040:149111054,25193.78 ,Legal Aid Higher Crime
MOJ,LAA,01/03/18,Lower Crime,LEGAL AID FUND,WELLS BURCOMBE LLP,1414406:149098088,82667.00 ,Legal Aid Lower Crime
MOJ,LAA,01/03/18,Lower Crime,LEGAL AID FUND,WELLS BURCOMBE LLP,1415221:149098660,51867.00 ,Legal Aid Lower Crime
MOJ,LAA,01/03/18,Lower Crime,LEGAL AID FUND,WESSEX SOLICITORS CHAMBERS,1414448:149097929,77100.00 ,Legal Aid Lower Crime
MOJ,LAA,01/03/18,Legal Help,LEGAL AID FUND,WICK & CO,1417382:149096906,28986.00 ,Legal Aid Legal Help
MOJ,LAA,01/03/18,Civil Representation,LEGAL AID FUND,WILLIAM J TYLER,1413354:3000002643770010,42411.60 ,Legal Aid Civil Representation
MOJ,LAA,01/03/18,Lower Crime,LEGAL AID FUND,WILLIAMSONS SOLICITORS LTD,1414480:149097754,41600.00 ,Legal Aid Lower Crime
MOJ,LAA,01/03/18,Lower Crime,LEGAL AID FUND,WILSON DEVONALD GRIFFITHS JOHN,1416111:149097537,45000.00 ,Legal Aid Lower Crime
MOJ,LAA,01/03/18,Legal Help,LEGAL AID FUND,WILSON SOLICITORS LLP,1416471:149096879,73891.00 ,Legal Aid Legal Help
MOJ,LAA,01/03/18,Legal Help,LEGAL AID FUND,WILSON SOLICITORS LLP,1415436:149097430,51546.00 ,Legal Aid Legal Help
MOJ,LAA,01/03/18,Legal Help,LEGAL AID FUND,WILSON SOLICITORS LLP,1415437:149097431,26183.00 ,Legal Aid Legal Help
MOJ,LAA,01/03/18,Legal Help,LEGAL AID FUND,WOLTON & CO,1418214:149096661,34068.00 ,Legal Aid Legal Help
MOJ,LAA,01/03/18,Higher Crime,LEGAL AID FUND,WOOLFE & CO SOLICITORS LTD,1417044:149110552,28347.52 ,Legal Aid Higher Crime
MOJ,LAA,01/03/18,Civil Representation,LEGAL AID FUND,YOLANDA E PEMBERTON,1416722:3000002094490016,26224.49 ,Legal Aid Civil Representation
MOJ,LAA,01/03/18,Higher Crime,LEGAL AID FUND,ZAK LAW SOLICITORS LTD,1413230:149110588,62876.27 ,Legal Aid Higher Crime
MOJ,LAA,06/03/18,EXP - PURCHASE OF GOODS/SERVICES - OFFICE RELATED - Reprographics,Centralised Costs,CORPORATE DOCUMENT SERVICES LTD,199649,57823.98 ,Printing Costs
MOJ,LAA,06/03/18,EXP - PURCHASE OF GOODS/SERVICES - OFFICE RELATED - Reprographics,Centralised Costs,CORPORATE DOCUMENT SERVICES LTD,199652,59395.84 ,Printing Costs
MOJ,LAA,06/03/18,Civil Representation,LEGAL AID FUND,CHEBSEY LAW LTD-IN LIQUIDATION,1419183:2000000000005361,34653.52 ,Legal Aid Civil Representation
MOJ,LAA,06/03/18,Civil Representation,LEGAL AID FUND,DEVONSHIRES RE. STEVENS SOLICITORS-INTERVENTION,1419181:2000000000005358,46779.06 ,Legal Aid Civil Representation
MOJ,LAA,07/03/18,Higher Crime,LEGAL AID FUND,ABBEY SOLICITORS,1420770:149152026,89975.11 ,Legal Aid Higher Crime
MOJ,LAA,07/03/18,Higher Crime,LEGAL AID FUND,ADAM S FEEST,1420843:149152810,64328.59 ,Legal Aid Higher Crime
MOJ,LAA,07/03/18,Higher Crime,LEGAL AID FUND,ALESSANDRO J DI FRANCESCO,1420370:149133961,31367.16 ,Legal Aid Higher Crime
MOJ,LAA,07/03/18,Higher Crime,LEGAL AID FUND,ALLEN HOOLE SOLICITORS,1419413:149152027,46440.85 ,Legal Aid Higher Crime
MOJ,LAA,07/03/18,Higher Crime,LEGAL AID FUND,ALPHA SOLICITORS & ADVOCATES,1420693:149118479,56651.77 ,Legal Aid Higher Crime
MOJ,LAA,07/03/18,Higher Crime,LEGAL AID FUND,ANN BLYTH-COOK & CO,1420315:149119035,34383.92 ,Legal Aid Higher Crime
MOJ,LAA,07/03/18,Higher Crime,LEGAL AID FUND,ANTHONY C BERRY QC,1421947:149119267,38650.02 ,Legal Aid Higher Crime
MOJ,LAA,07/03/18,Higher Crime,LEGAL AID FUND,BALBIR SINGH,1421808:149130417,40460.00 ,Legal Aid Higher Crime
MOJ,LAA,07/03/18,Higher Crime,LEGAL AID FUND,BARK & CO,1422733:149152619,89975.11 ,Legal Aid Higher Crime
MOJ,LAA,07/03/18,Higher Crime,LEGAL AID FUND,BENJAMIN J G GORDON,1419914:149126717,31409.35 ,Legal Aid Higher Crime
MOJ,LAA,07/03/18,Civil Representation,LEGAL AID FUND,BINDMANS LLP,1420050:3000001961560011,29787.30 ,Legal Aid Civil Representation
MOJ,LAA,07/03/18,Higher Crime,LEGAL AID FUND,BIRD & CO SOLICITORS LLP,1419561:149118942,107970.13 ,Legal Aid Higher Crime
MOJ,LAA,07/03/18,Higher Crime,LEGAL AID FUND,BIRDS SOLICITORS LTD,1420796:149152013,89975.11 ,Legal Aid Higher Crime
MOJ,LAA,07/03/18,Higher Crime,LEGAL AID FUND,BROOKLYN SOLICITORS LTD,1420584:149118568,87716.75 ,Legal Aid Higher Crime
MOJ,LAA,07/03/18,Higher Crime,LEGAL AID FUND,BULLIVANT LAW LTD,1421160:149151727,89975.11 ,Legal Aid Higher Crime
MOJ,LAA,07/03/18,Higher Crime,LEGAL AID FUND,CASEYS LEGAL SERVICES LTD,1421537:149151715,40033.24 ,Legal Aid Higher Crime
MOJ,LAA,07/03/18,Civil Representation,LEGAL AID FUND,CHARLES N GEEKIE QC,1419873:3000001891200013,53548.20 ,Legal Aid Civil Representation
MOJ,LAA,07/03/18,Civil Representation,LEGAL AID FUND,CHARLOTTE H G WORSLEY,1419749:3000002968660021,27043.20 ,Legal Aid Civil Representation
MOJ,LAA,07/03/18,Higher Crime,LEGAL AID FUND,CHARTER SOLICITORS,1421712:149119432,30122.76 ,Legal Aid Higher Crime
MOJ,LAA,07/03/18,Higher Crime,LEGAL AID FUND,CHIVERS SOLICITORS,1421905:149135282,28981.09 ,Legal Aid Higher Crime
MOJ,LAA,07/03/18,Higher Crime,LEGAL AID FUND,CHRISTOPHER J MILLINGTON,1420058:149134347,51979.34 ,Legal Aid Higher Crime
MOJ,LAA,07/03/18,Higher Crime,LEGAL AID FUND,CLIFFORD JOHNSTON & CO,1420030:149135281,26706.11 ,Legal Aid Higher Crime
MOJ,LAA,07/03/18,Legal Help,LEGAL AID FUND,CORAM CHILDREN'S LEGAL CENTRE,1420035:149157447,89114.84 ,Legal Aid Legal Help
MOJ,LAA,07/03/18,Higher Crime,LEGAL AID FUND,CROWN SOLICITORS LTD,1419618:149151713,35498.76 ,Legal Aid Higher Crime
MOJ,LAA,07/03/18,Higher Crime,LEGAL AID FUND,DJMS SOLICITORS LTD,1420732:149151708,31930.34 ,Legal Aid Higher Crime
MOJ,LAA,07/03/18,Higher Crime,LEGAL AID FUND,DPP LAW LTD,1420247:149152923,78392.05 ,Legal Aid Higher Crime
MOJ,LAA,07/03/18,Civil Representation,LEGAL AID FUND,DUNCAN LEWIS SOLICITORS  LTD,1420282:3000002009480013,25322.57 ,Legal Aid Civil Representation
MOJ,LAA,07/03/18,Higher Crime,LEGAL AID FUND,EBR ATTRIDGE LLP,1421172:149118163,98235.42 ,Legal Aid Higher Crime
MOJ,LAA,07/03/18,Higher Crime,LEGAL AID FUND,ELLIOTT STERN SOLICITORS,1420302:149151730,37565.92 ,Legal Aid Higher Crime
MOJ,LAA,07/03/18,Civil Representation,LEGAL AID FUND,EMMA HARMAN,1421482:149156367,40726.80 ,Legal Aid Civil Representation
MOJ,LAA,07/03/18,Civil Representation,LEGAL AID FUND,EMMA HARMAN,1421482:149157175,-27876.92 ,Legal Aid Civil Representation
MOJ,LAA,07/03/18,Higher Crime,LEGAL AID FUND,EMMA L KURZNER,1421031:149122224,48520.01 ,Legal Aid Higher Crime
MOJ,LAA,07/03/18,Higher Crime,LEGAL AID FUND,FARADAYS SOLICITORS LTD,1420310:149152004,35217.71 ,Legal Aid Higher Crime
MOJ,LAA,07/03/18,Higher Crime,LEGAL AID FUND,FERN RUSSELL,1420851:149153100,27262.80 ,Legal Aid Higher Crime
MOJ,LAA,07/03/18,Higher Crime,LEGAL AID FUND,FORBES SOLICITORS,1419962:149118830,29664.55 ,Legal Aid Higher Crime
MOJ,LAA,07/03/18,Higher Crime,LEGAL AID FUND,FREEMANS SOLICITORS,1421296:149125523,107574.07 ,Legal Aid Higher Crime
MOJ,LAA,07/03/18,Higher Crime,LEGAL AID FUND,G T STEWART LTD,1421632:149119241,44960.52 ,Legal Aid Higher Crime
MOJ,LAA,07/03/18,Civil Representation,LEGAL AID FUND,G T STEWART LTD,1421189:3000001507080017,29845.49 ,Legal Aid Civil Representation
MOJ,LAA,07/03/18,Civil Representation,LEGAL AID FUND,GOODMAN RAY SOLICITORS LLP,1420762:3000001896400067,34789.23 ,Legal Aid Civil Representation
MOJ,LAA,07/03/18,Civil Representation,LEGAL AID FUND,GOODMAN RAY SOLICITORS LLP,1420762:3000001100620013,28965.43 ,Legal Aid Civil Representation
MOJ,LAA,07/03/18,Higher Crime,LEGAL AID FUND,GORDON COLE QC,1420885:149123742,204520.00 ,Legal Aid Higher Crime
MOJ,LAA,07/03/18,Higher Crime,LEGAL AID FUND,GORDON SHINE & COMPANY SOLICITORS,1421509:149151718,40408.62 ,Legal Aid Higher Crime
MOJ,LAA,07/03/18,Higher Crime,LEGAL AID FUND,HEALEY COLBON,1420750:149126442,89975.11 ,Legal Aid Higher Crime
MOJ,LAA,07/03/18,Higher Crime,LEGAL AID FUND,HPJV,1421977:149126379,73362.44 ,Legal Aid Higher Crime
MOJ,LAA,07/03/18,Higher Crime,LEGAL AID FUND,HPJV,1421977:149118003,28653.84 ,Legal Aid Higher Crime
MOJ,LAA,07/03/18,Higher Crime,LEGAL AID FUND,I B B SOLICITORS,1420763:149153330,32964.22 ,Legal Aid Higher Crime
MOJ,LAA,07/03/18,Higher Crime,LEGAL AID FUND,ISABELLE GILLARD,1421423:149152854,25244.76 ,Legal Aid Higher Crime
MOJ,LAA,07/03/18,Higher Crime,LEGAL AID FUND,J D SPICER ZEB,1420717:149118044,29664.55 ,Legal Aid Higher Crime
MOJ,LAA,07/03/18,Higher Crime,LEGAL AID FUND,JACKSON LEES GROUP LTD,1419644:149118748,89975.11 ,Legal Aid Higher Crime
MOJ,LAA,07/03/18,Civil Representation,LEGAL AID FUND,JACOBS & REEVES,1422342:149156360,39242.90 ,Legal Aid Civil Representation
MOJ,LAA,07/03/18,Civil Representation,LEGAL AID FUND,JACOBS & REEVES,1422342:149157205,-27962.78 ,Legal Aid Civil Representation
MOJ,LAA,07/03/18,Civil Representation,LEGAL AID FUND,JAY BANERJI,1420221:3000001877050050,35417.60 ,Legal Aid Civil Representation
MOJ,LAA,07/03/18,Higher Crime,LEGAL AID FUND,JEREMY BARTON,1420915:149118521,33247.44 ,Legal Aid Higher Crime
MOJ,LAA,07/03/18,Civil Representation,LEGAL AID FUND,JOHANNE E DELAHUNTY QC,1422155:3000001434520022,53397.06 ,Legal Aid Civil Representation
MOJ,LAA,07/03/18,Higher Crime,LEGAL AID FUND,JOHN R MCDERMOTT QC,1420870:149126121,62817.53 ,Legal Aid Higher Crime
MOJ,LAA,07/03/18,Higher Crime,LEGAL AID FUND,JULIE TAYLOR,1423004:149118751,29372.52 ,Legal Aid Higher Crime
MOJ,LAA,07/03/18,Higher Crime,LEGAL AID FUND,KEANEY WHITEHEAD PARTNERSHIP,1421586:149152146,39635.49 ,Legal Aid Higher Crime
MOJ,LAA,07/03/18,Higher Crime,LEGAL AID FUND,KELCEY & HALL SOLICITORS,1419411:149147906,41002.03 ,Legal Aid Higher Crime
MOJ,LAA,07/03/18,Higher Crime,LEGAL AID FUND,KENNETH M BARROW & CO,1422815:149134312,30723.93 ,Legal Aid Higher Crime
MOJ,LAA,07/03/18,Higher Crime,LEGAL AID FUND,KIMBERLEY N OBRUSIK,1419617:149118783,28809.72 ,Legal Aid Higher Crime
MOJ,LAA,07/03/18,Civil Representation,LEGAL AID FUND,LACEYS,1421571:3000002012430014,26776.86 ,Legal Aid Civil Representation
MOJ,LAA,07/03/18,Higher Crime,LEGAL AID FUND,LAHIFF & CO,1421247:149126465,28852.80 ,Legal Aid Higher Crime
MOJ,LAA,07/03/18,Civil Representation,LEGAL AID FUND,LDJ SOLICITORS,1422412:149156192,26992.32 ,Legal Aid Civil Representation
MOJ,LAA,07/03/18,Higher Crime,LEGAL AID FUND,LEWIS RODGERS LTD,1420595:149126184,26464.44 ,Legal Aid Higher Crime
MOJ,LAA,07/03/18,Higher Crime,LEGAL AID FUND,LEWIS RODGERS LTD,1420595:149126225,-26464.44 ,Legal Aid Higher Crime
MOJ,LAA,07/03/18,Higher Crime,LEGAL AID FUND,LIONEL BLACKMAN SOLICITORS,1421265:149152006,37292.04 ,Legal Aid Higher Crime
MOJ,LAA,07/03/18,Higher Crime,LEGAL AID FUND,LLOYDS PR SOLICITORS,1421616:149134496,33741.70 ,Legal Aid Higher Crime
MOJ,LAA,07/03/18,Higher Crime,LEGAL AID FUND,LUCY A WRIGHT,1420676:149118981,29372.52 ,Legal Aid Higher Crime
MOJ,LAA,07/03/18,Higher Crime,LEGAL AID FUND,M & M SOLICITORS,1420768:149152015,64415.48 ,Legal Aid Higher Crime
MOJ,LAA,07/03/18,Higher Crime,LEGAL AID FUND,M & M SOLICITORS,1420768:149151729,29494.86 ,Legal Aid Higher Crime
MOJ,LAA,07/03/18,Higher Crime,LEGAL AID FUND,M I SOLICITORS,1422449:149126646,53995.34 ,Legal Aid Higher Crime
MOJ,LAA,07/03/18,Higher Crime,LEGAL AID FUND,MAIDMENTS LTD,1422421:149151728,89975.11 ,Legal Aid Higher Crime
MOJ,LAA,07/03/18,Higher Crime,LEGAL AID FUND,MANN & CO SOLICITORS LTD,1420293:149152016,89975.11 ,Legal Aid Higher Crime
MOJ,LAA,07/03/18,Higher Crime,LEGAL AID FUND,MARTIN MURRAY & ASSOCIATES,1421252:149152558,27141.08 ,Legal Aid Higher Crime
MOJ,LAA,07/03/18,Higher Crime,LEGAL AID FUND,MAURICE ANDREWS SOLICITORS,1419536:149133986,27525.23 ,Legal Aid Higher Crime
MOJ,LAA,07/03/18,Higher Crime,LEGAL AID FUND,MESSRS WATERFORDS SOLICITORS,1421989:149153341,89975.11 ,Legal Aid Higher Crime
MOJ,LAA,07/03/18,Higher Crime,LEGAL AID FUND,MICHAEL NEOFYTOU,1422334:149123668,101745.32 ,Legal Aid Higher Crime
MOJ,LAA,07/03/18,Civil Representation,LEGAL AID FUND,MKB SOLICITORS LLP,1423140:3000001578890018,39429.34 ,Legal Aid Civil Representation
MOJ,LAA,07/03/18,Civil Representation,LEGAL AID FUND,MORECROFTS LLP,1419407:3000001463670025,26918.40 ,Legal Aid Civil Representation
MOJ,LAA,07/03/18,Higher Crime,LEGAL AID FUND,MORGAN ROSE SOLICITORS LTD,1420794:149118507,40535.83 ,Legal Aid Higher Crime
MOJ,LAA,07/03/18,Higher Crime,LEGAL AID FUND,MOSS & CO SOLICITORS-ADVOCATE,1422935:149126674,29857.80 ,Legal Aid Higher Crime
MOJ,LAA,07/03/18,Higher Crime,LEGAL AID FUND,MPR SOLICITORS LLP,1419575:149153344,105857.75 ,Legal Aid Higher Crime
MOJ,LAA,07/03/18,Higher Crime,LEGAL AID FUND,MUSA PATELS SOLICITORS,1419468:149117948,64808.63 ,Legal Aid Higher Crime
MOJ,LAA,07/03/18,Higher Crime,LEGAL AID FUND,NATASHA P WONG QC,1421036:149122223,96720.00 ,Legal Aid Higher Crime
MOJ,LAA,07/03/18,Higher Crime,LEGAL AID FUND,NEEDHAM POULIER LTD,1420335:149134881,48494.48 ,Legal Aid Higher Crime
MOJ,LAA,07/03/18,Higher Crime,LEGAL AID FUND,NICOLA E GATTO,1420909:149118095,31033.80 ,Legal Aid Higher Crime
MOJ,LAA,07/03/18,Higher Crime,LEGAL AID FUND,NIGEL J POWER QC,1421094:149119342,38650.02 ,Legal Aid Higher Crime
MOJ,LAA,07/03/18,Higher Crime,LEGAL AID FUND,OLUWAJEMINIPE B AKIN-OLUGBADE,1423329:149126126,26578.08 ,Legal Aid Higher Crime
MOJ,LAA,07/03/18,Higher Crime,LEGAL AID FUND,OLUWAJEMINIPE B AKIN-OLUGBADE,1423329:149126159,-28365.84 ,Legal Aid Higher Crime
MOJ,LAA,07/03/18,Legal Help,LEGAL AID FUND,PARAGON LAW LTD,1420769:149123591,40000.00 ,Legal Aid Legal Help
MOJ,LAA,07/03/18,Higher Crime,LEGAL AID FUND,PAUL A BECKER,1420862:149126282,31612.78 ,Legal Aid Higher Crime
MOJ,LAA,07/03/18,Higher Crime,LEGAL AID FUND,PETER C ROUCH QC,1421435:149151493,82000.01 ,Legal Aid Higher Crime
MOJ,LAA,07/03/18,Higher Crime,LEGAL AID FUND,PETER D WRIGHT QC,1420172:149123741,204520.00 ,Legal Aid Higher Crime
MOJ,LAA,07/03/18,Civil Representation,LEGAL AID FUND,PHILCOX GRAY & CO,1421283:3000001821040018,27775.57 ,Legal Aid Civil Representation
MOJ,LAA,07/03/18,Higher Crime,LEGAL AID FUND,PHILIPPA M MCATASNEY QC,1420109:149118309,25210.97 ,Legal Aid Higher Crime
MOJ,LAA,07/03/18,Civil Representation,LEGAL AID FUND,REBEKAH M WILSON,1422270:3000002346480017,41635.07 ,Legal Aid Civil Representation
MOJ,LAA,07/03/18,Higher Crime,LEGAL AID FUND,RICHARD J PRATT QC,1421059:149119321,38650.02 ,Legal Aid Higher Crime
MOJ,LAA,07/03/18,Higher Crime,LEGAL AID FUND,RICHARD M ARCHER,1423011:149119034,29372.52 ,Legal Aid Higher Crime
MOJ,LAA,07/03/18,Civil Representation,LEGAL AID FUND,RIDLEY & HALL LEGAL LTD,1420538:3000001722360010,34684.29 ,Legal Aid Civil Representation
MOJ,LAA,07/03/18,Higher Crime,LEGAL AID FUND,ROBERT SHAW,1423046:149123669,72199.00 ,Legal Aid Higher Crime
MOJ,LAA,07/03/18,Civil Representation,LEGAL AID FUND,ROBERT T M WEIR,1420116:149149167,71182.24 ,Legal Aid Civil Representation
MOJ,LAA,07/03/18,Higher Crime,LEGAL AID FUND,ROBIN A L LEACH,1420072:149118497,40671.60 ,Legal Aid Higher Crime
MOJ,LAA,07/03/18,Higher Crime,LEGAL AID FUND,RUSTEM GUARDIAN LLP,1420742:149152658,63812.04 ,Legal Aid Higher Crime
MOJ,LAA,07/03/18,Higher Crime,LEGAL AID FUND,SALLY J ONEILL QC,1419921:149118090,25500.92 ,Legal Aid Higher Crime
MOJ,LAA,07/03/18,Higher Crime,LEGAL AID FUND,SARAH REGAN,1421772:149126663,33045.36 ,Legal Aid Higher Crime
MOJ,LAA,07/03/18,Higher Crime,LEGAL AID FUND,SHEPPARDS SOLICITORS LTD,1420596:149152855,45405.79 ,Legal Aid Higher Crime
MOJ,LAA,07/03/18,Higher Crime,LEGAL AID FUND,SIMON M D JACKSON QC,1421829:149118094,61657.80 ,Legal Aid Higher Crime
MOJ,LAA,07/03/18,Higher Crime,LEGAL AID FUND,SIMON N SMITH,1421433:149152884,26403.12 ,Legal Aid Higher Crime
MOJ,LAA,07/03/18,Higher Crime,LEGAL AID FUND,SONN MACMILLAN WALKER LTD,1421256:149151748,60389.78 ,Legal Aid Higher Crime
MOJ,LAA,07/03/18,Higher Crime,LEGAL AID FUND,SONN MACMILLAN WALKER LTD,1421256:149134612,47881.50 ,Legal Aid Higher Crime
MOJ,LAA,07/03/18,Higher Crime,LEGAL AID FUND,SONN MACMILLAN WALKER LTD,1421256:149153107,27807.33 ,Legal Aid Higher Crime
MOJ,LAA,07/03/18,Civil Representation,LEGAL AID FUND,SPIRE SOLICITORS LLP,1420018:3000001828490008,43494.00 ,Legal Aid Civil Representation
MOJ,LAA,07/03/18,Civil Representation,LEGAL AID FUND,STEPHENS & SCOWN LLP,1421526:149123106,28727.88 ,Legal Aid Civil Representation
MOJ,LAA,07/03/18,Civil Representation,LEGAL AID FUND,STERNBERG REED SOLICITORS,1421621:3000002346480018,34401.55 ,Legal Aid Civil Representation
MOJ,LAA,07/03/18,Higher Crime,LEGAL AID FUND,STOKOE PARTNERSHIP,1421210:149151815,29501.82 ,Legal Aid Higher Crime
MOJ,LAA,07/03/18,Higher Crime,LEGAL AID FUND,SUKHDEV GARCHA,1419763:149118254,28154.52 ,Legal Aid Higher Crime
MOJ,LAA,07/03/18,Higher Crime,LEGAL AID FUND,SUSSEX DEFENCE SOLICITORS,1421113:149134197,89975.11 ,Legal Aid Higher Crime
MOJ,LAA,07/03/18,Higher Crime,LEGAL AID FUND,SVS SOLICITORS,1421671:149118938,35597.46 ,Legal Aid Higher Crime
MOJ,LAA,07/03/18,Civil Representation,LEGAL AID FUND,SWITALSKI'S SOLICITORS LTD,1423171:3000001079060016,71365.05 ,Legal Aid Civil Representation
MOJ,LAA,07/03/18,Civil Representation,LEGAL AID FUND,SWITALSKI'S SOLICITORS LTD,1423171:3000001079060015RC,-48745.80 ,Legal Aid Civil Representation
MOJ,LAA,07/03/18,Civil Representation,LEGAL AID FUND,T LLEWELLYN JONES,1421498:3000001608330007,25441.68 ,Legal Aid Civil Representation
MOJ,LAA,07/03/18,Higher Crime,LEGAL AID FUND,T V EDWARDS LLP,1422746:149126769,83098.12 ,Legal Aid Higher Crime
MOJ,LAA,07/03/18,Higher Crime,LEGAL AID FUND,TAHIR KHAN,1422315:149118096,40835.75 ,Legal Aid Higher Crime
MOJ,LAA,07/03/18,Lower Crime,LEGAL AID FUND,THE JOHNSON PARTNERSHIP,1419547:149158010,25303.39 ,Legal Aid Lower Crime
MOJ,LAA,07/03/18,Higher Crime,LEGAL AID FUND,THOMAS LORD,1419226:149118914,29372.52 ,Legal Aid Higher Crime
MOJ,LAA,07/03/18,Higher Crime,LEGAL AID FUND,THOMPSON & CO SOLICITORS LTD- ADVOCATE,1419626:149126651,30233.35 ,Legal Aid Higher Crime
MOJ,LAA,07/03/18,Higher Crime,LEGAL AID FUND,TYLER HOFFMAN LTD,1422150:149152014,89975.11 ,Legal Aid Higher Crime
MOJ,LAA,07/03/18,Higher Crime,LEGAL AID FUND,YATES ARDERN,1422760:149134867,61440.56 ,Legal Aid Higher Crime
MOJ,LAA,08/03/18,EXP - PURCHASE OF GOODS/SERVICES - SUPPORT  - OTHER,ISD Management and Admin.,REDROCK CONSULTING LTD,7571,59370.00 ,IT Costs
MOJ,LAA,09/03/18,Civil Representation,LEGAL AID FUND,E A D SOLICITORS LLP,1423351:2000000000005363,60108.56 ,Legal Aid Civil Representation
MOJ,LAA,12/03/18,EXP - PURCHASE OF GOODS/SERVICES - OTHER TRAVEL - UK Other,Centralised Costs,REDFERN TRAVEL LTD,5845,67238.77 ,Travel Costs
MOJ,LAA,12/03/18,Higher Crime,LEGAL AID FUND,MICHEL G A MASSIH QC,1410381:149032306,-46266.95 ,Legal Aid Higher Crime
MOJ,LAA,13/03/18,EXP - PURCHASE OF GOODS/SERVICES - OTHER - Translation / Interpreting Services,Central Funds,THEBIGWORD INTERPRETING SERVICES LTD,90132931,498905.60 ,Translation / Interpreting Costs
MOJ,LAA,14/03/18,Civil Representation,LEGAL AID FUND,ANNA L MCKENNA,263674:3000001891200014,36704.70 ,Legal Aid Civil Representation
MOJ,LAA,15/03/18,Civil Representation,LEGAL AID FUND,A & N CARE SOLICITORS,1425052:3000000897010007,25698.23 ,Legal Aid Civil Representation
MOJ,LAA,15/03/18,Higher Crime,LEGAL AID FUND,ABDUL S IQBAL QC,1425423:149161661,46709.75 ,Legal Aid Higher Crime
MOJ,LAA,15/03/18,Higher Crime,LEGAL AID FUND,ABR SOLICITORS,1424516:149168701,55511.31 ,Legal Aid Higher Crime
MOJ,LAA,15/03/18,Higher Crime,LEGAL AID FUND,ABR SOLICITORS,1424516:149176862,26714.89 ,Legal Aid Higher Crime
MOJ,LAA,15/03/18,Higher Crime,LEGAL AID FUND,AIDAN WOODS & CO,1427277:149207091,26254.16 ,Legal Aid Higher Crime
MOJ,LAA,15/03/18,Higher Crime,LEGAL AID FUND,ALASTAIR SMITH,1425763:149206629,39974.64 ,Legal Aid Higher Crime
MOJ,LAA,15/03/18,Higher Crime,LEGAL AID FUND,ANDREW PETTERSON,1426620:149176342,32684.64 ,Legal Aid Higher Crime
MOJ,LAA,15/03/18,Higher Crime,LEGAL AID FUND,ANEURIN BREWER,1426377:149169372,26331.46 ,Legal Aid Higher Crime
MOJ,LAA,15/03/18,Higher Crime,LEGAL AID FUND,APPLEBY SHAW LTD,1427713:149214886,87096.88 ,Legal Aid Higher Crime
MOJ,LAA,15/03/18,Higher Crime,LEGAL AID FUND,APPLEBY SHAW LTD,1427713:149215073,27344.17 ,Legal Aid Higher Crime
MOJ,LAA,15/03/18,Higher Crime,LEGAL AID FUND,ASGHAR & CO,1424965:149169302,102195.36 ,Legal Aid Higher Crime
MOJ,LAA,15/03/18,Higher Crime,LEGAL AID FUND,BARK & CO,1426509:149206977,73929.14 ,Legal Aid Higher Crime
MOJ,LAA,15/03/18,Higher Crime,LEGAL AID FUND,BARTHOLOMEW V O'TOOLE,1425389:149207134,38571.60 ,Legal Aid Higher Crime
MOJ,LAA,15/03/18,Higher Crime,LEGAL AID FUND,BERRY & LAMBERTS SOLICITORS,1424931:149169464,42598.53 ,Legal Aid Higher Crime
MOJ,LAA,15/03/18,Higher Crime,LEGAL AID FUND,BIRCHALL BLACKBURN SOLICITORS,1426885:149214212,89975.11 ,Legal Aid Higher Crime
MOJ,LAA,15/03/18,Higher Crime,LEGAL AID FUND,BULLIVANT LAW LTD,1425210:149199824,26899.35 ,Legal Aid Higher Crime
MOJ,LAA,15/03/18,Higher Crime,LEGAL AID FUND,BUNTING & RILEY SOLICITORS LTD,1424862:149161721,36757.46 ,Legal Aid Higher Crime
MOJ,LAA,15/03/18,Higher Crime,LEGAL AID FUND,BUNTING & RILEY SOLICITORS LTD,1424862:149161722,-31802.73 ,Legal Aid Higher Crime
MOJ,LAA,15/03/18,Higher Crime,LEGAL AID FUND,BURTON COPELAND LLP,1427955:149207520,105857.75 ,Legal Aid Higher Crime
MOJ,LAA,15/03/18,Higher Crime,LEGAL AID FUND,CARTWRIGHT KING LTD,1427726:149169280,29063.15 ,Legal Aid Higher Crime
MOJ,LAA,15/03/18,Civil Representation,LEGAL AID FUND,CATHERINE M E NICHOLES,1424343:149210742,38901.60 ,Legal Aid Civil Representation
MOJ,LAA,15/03/18,Higher Crime,LEGAL AID FUND,CHARLES DURRANT,1425930:149203400,41120.00 ,Legal Aid Higher Crime
MOJ,LAA,15/03/18,Higher Crime,LEGAL AID FUND,CHARLES H F EVANS,1424350:149161521,36413.04 ,Legal Aid Higher Crime
MOJ,LAA,15/03/18,Higher Crime,LEGAL AID FUND,CHRISTOPHER H STABLES,1425497:149207366,31003.80 ,Legal Aid Higher Crime
MOJ,LAA,15/03/18,Higher Crime,LEGAL AID FUND,CHRISTOPHER SURTEES-JONES,1425079:149213760,30743.81 ,Legal Aid Higher Crime
MOJ,LAA,15/03/18,Higher Crime,LEGAL AID FUND,COBLEYS SOLICITORS LTD,1424052:149177072,29949.75 ,Legal Aid Higher Crime
MOJ,LAA,15/03/18,Higher Crime,LEGAL AID FUND,CRIMINAL DEFENCE SOLICITORS,1425258:149176479,28237.05 ,Legal Aid Higher Crime
MOJ,LAA,15/03/18,Higher Crime,LEGAL AID FUND,CROWN SOLICITORS LTD,1424213:149206156,81673.14 ,Legal Aid Higher Crime
MOJ,LAA,15/03/18,Higher Crime,LEGAL AID FUND,CUNNINGHAMS LYTHGOE CAPLIN LTD,1423702:149161860,35251.56 ,Legal Aid Higher Crime
MOJ,LAA,15/03/18,Higher Crime,LEGAL AID FUND,CUNNINGHAMS LYTHGOE CAPLIN LTD,1423702:149168890,32049.00 ,Legal Aid Higher Crime
MOJ,LAA,15/03/18,Higher Crime,LEGAL AID FUND,CYRIL MORRIS ARKWRIGHT,1426464:149184559,89975.11 ,Legal Aid Higher Crime
MOJ,LAA,15/03/18,Higher Crime,LEGAL AID FUND,DAVID SEDGWICK SOLICITORS LTD,1425644:149169333,59674.88 ,Legal Aid Higher Crime
MOJ,LAA,15/03/18,Civil Representation,LEGAL AID FUND,DAVID W GILES,1425546:149179434,38052.00 ,Legal Aid Civil Representation
MOJ,LAA,15/03/18,Civil Representation,LEGAL AID FUND,DAVID W GILES,1425546:149179440,38052.00 ,Legal Aid Civil Representation
MOJ,LAA,15/03/18,Civil Representation,LEGAL AID FUND,DAVID W GILES,1425546:149179515,38052.00 ,Legal Aid Civil Representation
MOJ,LAA,15/03/18,Higher Crime,LEGAL AID FUND,DERMOT KEATING,1425826:149168650,36647.76 ,Legal Aid Higher Crime
MOJ,LAA,15/03/18,Higher Crime,LEGAL AID FUND,DOMINIC BENTHALL,1427378:149161433,36709.44 ,Legal Aid Higher Crime
MOJ,LAA,15/03/18,Higher Crime,LEGAL AID FUND,DPP LAW LTD,1424055:149169144,47128.94 ,Legal Aid Higher Crime
MOJ,LAA,15/03/18,Higher Crime,LEGAL AID FUND,DUNCAN LEWIS SOLICITORS  LTD,1424094:149161776,89975.11 ,Legal Aid Higher Crime
MOJ,LAA,15/03/18,Civil Representation,LEGAL AID FUND,DUNCAN LEWIS SOLICITORS  LTD,1424093:3000002098160017,38070.05 ,Legal Aid Civil Representation
MOJ,LAA,15/03/18,Higher Crime,LEGAL AID FUND,EDWARD HAYES LLP,1426886:149184185,44987.56 ,Legal Aid Higher Crime
MOJ,LAA,15/03/18,Higher Crime,LEGAL AID FUND,EDWARD HAYES LLP,1426886:149214469,42001.44 ,Legal Aid Higher Crime
MOJ,LAA,15/03/18,Higher Crime,LEGAL AID FUND,EDWARD N BURGESS,1426411:149177119,26782.09 ,Legal Aid Higher Crime
MOJ,LAA,15/03/18,Higher Crime,LEGAL AID FUND,EDWARDS DUTHIE,1424968:149161200,89975.11 ,Legal Aid Higher Crime
MOJ,LAA,15/03/18,Higher Crime,LEGAL AID FUND,EDWARDS VAZIRANEY,1425226:149200897,43814.55 ,Legal Aid Higher Crime
MOJ,LAA,15/03/18,Higher Crime,LEGAL AID FUND,EWING LAW,1427700:149168777,105857.75 ,Legal Aid Higher Crime
MOJ,LAA,15/03/18,Civil Representation,LEGAL AID FUND,FINN GLEDHILL,1427275:149204719,153143.77 ,Legal Aid Civil Representation
MOJ,LAA,15/03/18,Civil Representation,LEGAL AID FUND,FINN GLEDHILL,1427275:149209273,-57459.60 ,Legal Aid Civil Representation
MOJ,LAA,15/03/18,Civil Representation,LEGAL AID FUND,FINN GLEDHILL,1427275:149209286,-58050.00 ,Legal Aid Civil Representation
MOJ,LAA,15/03/18,Higher Crime,LEGAL AID FUND,FLORA C PAGE,1426968:149197801,48000.00 ,Legal Aid Higher Crime
MOJ,LAA,15/03/18,Higher Crime,LEGAL AID FUND,FORBES SOLICITORS,1423698:149168760,37636.01 ,Legal Aid Higher Crime
MOJ,LAA,15/03/18,Civil Representation,LEGAL AID FUND,FRANCES M HEATON,1424419:3000002373950011,34335.90 ,Legal Aid Civil Representation
MOJ,LAA,15/03/18,Civil Representation,LEGAL AID FUND,FREEMANS SOLICITORS,1423482:3000002289450019,33220.80 ,Legal Aid Civil Representation
MOJ,LAA,15/03/18,Civil Representation,LEGAL AID FUND,GARTSIDES,1425375:3000002258590005,26064.78 ,Legal Aid Civil Representation
MOJ,LAA,15/03/18,Higher Crime,LEGAL AID FUND,GARY T BELL QC,1425514:149166995,204520.00 ,Legal Aid Higher Crime
MOJ,LAA,15/03/18,Higher Crime,LEGAL AID FUND,GLADSTONE SOLICITORS LTD,1425245:149169365,89975.11 ,Legal Aid Higher Crime
MOJ,LAA,15/03/18,Civil Representation,LEGAL AID FUND,GOODMAN RAY SOLICITORS LLP,1424837:3000002062240016,25369.81 ,Legal Aid Civil Representation
MOJ,LAA,15/03/18,Civil Representation,LEGAL AID FUND,GRIFFITHS ROBERTSON,1427599:3000002939860005,33757.87 ,Legal Aid Civil Representation
MOJ,LAA,15/03/18,Higher Crime,LEGAL AID FUND,GWARWR THOMAS,1426266:149162140,25807.56 ,Legal Aid Higher Crime
MOJ,LAA,15/03/18,Civil Representation,LEGAL AID FUND,H E THOMAS & CO,1424528:3000002082140008,27922.41 ,Legal Aid Civil Representation
MOJ,LAA,15/03/18,Civil Representation,LEGAL AID FUND,HADAWAY & HADAWAY SOLICITORS LLP,1428237:300000143452JK488,49736.41 ,Legal Aid Civil Representation
MOJ,LAA,15/03/18,Higher Crime,LEGAL AID FUND,HANSON WOODS SOLICITORS  LLP,1425603:149168600,29884.85 ,Legal Aid Higher Crime
MOJ,LAA,15/03/18,Higher Crime,LEGAL AID FUND,HARRIS CUFFARO & NICHOLS,1426426:149168762,127029.30 ,Legal Aid Higher Crime
MOJ,LAA,15/03/18,Civil Representation,LEGAL AID FUND,HATCH BRENNER LLP,1427997:3000001849840008,40241.79 ,Legal Aid Civil Representation
MOJ,LAA,15/03/18,Higher Crime,LEGAL AID FUND,HATHAWAYS THE LAW FIRM LTD,1426854:149214254,89975.11 ,Legal Aid Higher Crime
MOJ,LAA,15/03/18,Civil Representation,LEGAL AID FUND,HEALD NICKINSON,1424961:149175129,36911.44 ,Legal Aid Civil Representation
MOJ,LAA,15/03/18,Higher Crime,LEGAL AID FUND,HEALEY COLBON-ADVOCATE,1423494:149168628,25589.76 ,Legal Aid Higher Crime
MOJ,LAA,15/03/18,Higher Crime,LEGAL AID FUND,HENRY C GRUNWALD QC,1426384:149161567,25672.60 ,Legal Aid Higher Crime
MOJ,LAA,15/03/18,Higher Crime,LEGAL AID FUND,HODGE JONES & ALLEN LLP,1425720:149200175,65117.95 ,Legal Aid Higher Crime
MOJ,LAA,15/03/18,Higher Crime,LEGAL AID FUND,HOGAN BROWN SOLICITORS,1424819:149168683,65173.76 ,Legal Aid Higher Crime
MOJ,LAA,15/03/18,Higher Crime,LEGAL AID FUND,HOWELLS LLP,1427231:149206489,36232.06 ,Legal Aid Higher Crime
MOJ,LAA,15/03/18,Higher Crime,LEGAL AID FUND,HSR SOLICITORS,1425214:149168767,105857.75 ,Legal Aid Higher Crime
MOJ,LAA,15/03/18,Higher Crime,LEGAL AID FUND,HUSSAIN SOLICITORS LTD,1424435:149206918,105857.75 ,Legal Aid Higher Crime
MOJ,LAA,15/03/18,Higher Crime,LEGAL AID FUND,HUSSAIN SOLICITORS LTD,1424435:149214964,89975.11 ,Legal Aid Higher Crime
MOJ,LAA,15/03/18,Higher Crime,LEGAL AID FUND,I A LAW,1424179:149161937,72372.67 ,Legal Aid Higher Crime
MOJ,LAA,15/03/18,Higher Crime,LEGAL AID FUND,IMRAN KHAN & PARTNERS,1424940:149199593,67069.98 ,Legal Aid Higher Crime
MOJ,LAA,15/03/18,Higher Crime,LEGAL AID FUND,J D SPICER ZEB,1425721:149176632,25381.06 ,Legal Aid Higher Crime
MOJ,LAA,15/03/18,Civil Representation,LEGAL AID FUND,JACQUELINE WEHRLE,1427456:149175202,35472.00 ,Legal Aid Civil Representation
MOJ,LAA,15/03/18,Civil Representation,LEGAL AID FUND,JACQUELINE WEHRLE,1427456:149209296,-29532.00 ,Legal Aid Civil Representation
MOJ,LAA,15/03/18,Higher Crime,LEGAL AID FUND,JAMES A D WOOD QC,1426698:149214604,35386.66 ,Legal Aid Higher Crime
MOJ,LAA,15/03/18,Higher Crime,LEGAL AID FUND,JAMES C SCOTT,1425088:149166739,41120.00 ,Legal Aid Higher Crime
MOJ,LAA,15/03/18,Civil Representation,LEGAL AID FUND,JENNIFER L SCULLY,1426780:3000002373950012,26082.00 ,Legal Aid Civil Representation
MOJ,LAA,15/03/18,Higher Crime,LEGAL AID FUND,JENNY L GOLDRING,1425083:149162066,54948.60 ,Legal Aid Higher Crime
MOJ,LAA,15/03/18,Higher Crime,LEGAL AID FUND,JERMAN SAMUELS & PEARSON LLP,1423862:149199684,41577.07 ,Legal Aid Higher Crime
MOJ,LAA,15/03/18,Higher Crime,LEGAL AID FUND,JODIE-JANE HITCHCOCK,1427376:149204800,41120.00 ,Legal Aid Higher Crime
MOJ,LAA,15/03/18,Civil Representation,LEGAL AID FUND,JOHN JACKSON,1425502:149173829,63054.00 ,Legal Aid Civil Representation
MOJ,LAA,15/03/18,Higher Crime,LEGAL AID FUND,JSP LAW LTD,1427366:149207043,89975.11 ,Legal Aid Higher Crime
MOJ,LAA,15/03/18,Higher Crime,LEGAL AID FUND,KANGS SOLICITORS,1425662:149161628,89975.11 ,Legal Aid Higher Crime
MOJ,LAA,15/03/18,Higher Crime,LEGAL AID FUND,KATE O'RAGHALLAIGH,1425021:149204395,37400.00 ,Legal Aid Higher Crime
MOJ,LAA,15/03/18,Higher Crime,LEGAL AID FUND,KHADIM AL HASSAN,1423632:149169028,26086.06 ,Legal Aid Higher Crime
MOJ,LAA,15/03/18,Higher Crime,LEGAL AID FUND,KHAN SOLICITORS LTD,1427646:149169848,45824.00 ,Legal Aid Higher Crime
MOJ,LAA,15/03/18,Higher Crime,LEGAL AID FUND,LAHIFF & CO,1424945:149200121,53448.30 ,Legal Aid Higher Crime
MOJ,LAA,15/03/18,Higher Crime,LEGAL AID FUND,LAURENCE LEE & CO,1428025:149214225,72081.19 ,Legal Aid Higher Crime
MOJ,LAA,15/03/18,Higher Crime,LEGAL AID FUND,LESLEY BATES,1424332:149197800,48000.00 ,Legal Aid Higher Crime
MOJ,LAA,15/03/18,Higher Crime,LEGAL AID FUND,LEWIS NEDAS LAW LTD,1424203:149206725,50017.42 ,Legal Aid Higher Crime
MOJ,LAA,15/03/18,Higher Crime,LEGAL AID FUND,M K LAW SOLICITORS LTD-ADVOCATE,1424254:149213740,27175.99 ,Legal Aid Higher Crime
MOJ,LAA,15/03/18,Higher Crime,LEGAL AID FUND,MAIDMENTS LTD,1426119:149182096,34565.07 ,Legal Aid Higher Crime
MOJ,LAA,15/03/18,Higher Crime,LEGAL AID FUND,MALCOLM MCGUINNESS,1427957:149206930,37040.21 ,Legal Aid Higher Crime
MOJ,LAA,15/03/18,Higher Crime,LEGAL AID FUND,MANN & CO SOLICITORS LTD,1424104:149169235,48800.44 ,Legal Aid Higher Crime
MOJ,LAA,15/03/18,Civil Representation,LEGAL AID FUND,MARK J TWOMEY QC,1424389:3000002346480019,76588.60 ,Legal Aid Civil Representation
MOJ,LAA,15/03/18,Higher Crime,LEGAL AID FUND,MARK JONES & PARTNERS,1424081:149176352,61830.83 ,Legal Aid Higher Crime
MOJ,LAA,15/03/18,Higher Crime,LEGAL AID FUND,MARK JONES & PARTNERS,1424081:149170104,35848.43 ,Legal Aid Higher Crime
MOJ,LAA,15/03/18,Higher Crime,LEGAL AID FUND,MARK R A FENHALLS,1424398:149197799,96000.00 ,Legal Aid Higher Crime
MOJ,LAA,15/03/18,Higher Crime,LEGAL AID FUND,MARTIN J TAYLOR,1426263:149203991,102240.00 ,Legal Aid Higher Crime
MOJ,LAA,15/03/18,Higher Crime,LEGAL AID FUND,MARTIN MURRAY & ASSOCIATES,1424950:149199793,44624.07 ,Legal Aid Higher Crime
MOJ,LAA,15/03/18,Higher Crime,LEGAL AID FUND,MICHAEL H SCHOLES,1425892:149206444,31003.80 ,Legal Aid Higher Crime
MOJ,LAA,15/03/18,Higher Crime,LEGAL AID FUND,MICHEL G A MASSIH QC,1427140:149032306,46266.95 ,Legal Aid Higher Crime
MOJ,LAA,15/03/18,Lower Crime,LEGAL AID FUND,MOHABIRS SOLICITORS,1425719:149202910,27293.05 ,Legal Aid Lower Crime
MOJ,LAA,15/03/18,Higher Crime,LEGAL AID FUND,MORTONS SOLICITORS LTD,1426062:149200207,107970.13 ,Legal Aid Higher Crime
MOJ,LAA,15/03/18,Higher Crime,LEGAL AID FUND,MOSS & CO SOLICITORS,1424948:149200181,75717.05 ,Legal Aid Higher Crime
MOJ,LAA,15/03/18,Higher Crime,LEGAL AID FUND,MOSS & CO SOLICITORS,1424948:149169493,31857.02 ,Legal Aid Higher Crime
MOJ,LAA,15/03/18,Civil Representation,LEGAL AID FUND,NANDINI DUTTA,1425135:3000002547690007,38491.20 ,Legal Aid Civil Representation
MOJ,LAA,15/03/18,Higher Crime,LEGAL AID FUND,NARITA BAHRA,1426718:149161713,27224.52 ,Legal Aid Higher Crime
MOJ,LAA,15/03/18,Higher Crime,LEGAL AID FUND,NATIONAL LEGAL SERVICE LTD,1424629:149177201,66027.26 ,Legal Aid Higher Crime
MOJ,LAA,15/03/18,Higher Crime,LEGAL AID FUND,NEIL F BAKI,1427108:149161813,34103.76 ,Legal Aid Higher Crime
MOJ,LAA,15/03/18,Higher Crime,LEGAL AID FUND,NELSON GUEST & PARTNERS,1424541:149206492,89975.11 ,Legal Aid Higher Crime
MOJ,LAA,15/03/18,Higher Crime,LEGAL AID FUND,NIGEL R W LAMBERT,1426260:149204386,204520.00 ,Legal Aid Higher Crime
MOJ,LAA,15/03/18,Higher Crime,LEGAL AID FUND,OPUS LAW,1425190:149182097,44821.02 ,Legal Aid Higher Crime
MOJ,LAA,15/03/18,Higher Crime,LEGAL AID FUND,PARKER BIRD WHITELEY,1425219:149168757,51700.86 ,Legal Aid Higher Crime
MOJ,LAA,15/03/18,Civil Representation,LEGAL AID FUND,PAUL M STOREY QC,1427415:3000002097440010,34787.08 ,Legal Aid Civil Representation
MOJ,LAA,15/03/18,Higher Crime,LEGAL AID FUND,PETER RATLIFF,1423957:149169198,34739.76 ,Legal Aid Higher Crime
MOJ,LAA,15/03/18,Civil Representation,LEGAL AID FUND,PIERS C W PRESSDEE QC,1428175:149175203,56412.00 ,Legal Aid Civil Representation
MOJ,LAA,15/03/18,Civil Representation,LEGAL AID FUND,PIERS C W PRESSDEE QC,1428175:149209298,-46017.00 ,Legal Aid Civil Representation
MOJ,LAA,15/03/18,Higher Crime,LEGAL AID FUND,RAHMAN RAVELLI SOLICITORS LTD,1423714:149169909,67421.66 ,Legal Aid Higher Crime
MOJ,LAA,15/03/18,Higher Crime,LEGAL AID FUND,RAJIV MENON,1425836:149213772,31551.86 ,Legal Aid Higher Crime
MOJ,LAA,15/03/18,Higher Crime,LEGAL AID FUND,RASHID & CO SOLICITORS LTD,1424043:149177033,43635.04 ,Legal Aid Higher Crime
MOJ,LAA,15/03/18,Higher Crime,LEGAL AID FUND,REEDS SOLICITORS LTD,1423745:149168592,29664.55 ,Legal Aid Higher Crime
MOJ,LAA,15/03/18,Higher Crime,LEGAL AID FUND,RENSHAW DERRICK & CO,1425360:149161367,76859.09 ,Legal Aid Higher Crime
MOJ,LAA,15/03/18,Higher Crime,LEGAL AID FUND,RICHARD BENTWOOD,1423983:149197802,72000.00 ,Legal Aid Higher Crime
MOJ,LAA,15/03/18,Higher Crime,LEGAL AID FUND,RICHARD BODY LAW LTD,1424079:149169313,54176.29 ,Legal Aid Higher Crime
MOJ,LAA,15/03/18,Higher Crime,LEGAL AID FUND,ROBERT LIZAR,1426131:149170136,46440.85 ,Legal Aid Higher Crime
MOJ,LAA,15/03/18,Higher Crime,LEGAL AID FUND,RUPERT A O WHEELER,1424325:149207006,27820.20 ,Legal Aid Higher Crime
MOJ,LAA,15/03/18,Higher Crime,LEGAL AID FUND,RUPERT J BOWERS,1426246:149204394,74049.53 ,Legal Aid Higher Crime
MOJ,LAA,15/03/18,Civil Representation,LEGAL AID FUND,RUSSELL-COOKE LLP,1426421:149210739,44001.46 ,Legal Aid Civil Representation
MOJ,LAA,15/03/18,Civil Representation,LEGAL AID FUND,RUSSELL-COOKE LLP,1426421:149210777,-28643.40 ,Legal Aid Civil Representation
MOJ,LAA,15/03/18,Higher Crime,LEGAL AID FUND,RUTH BECKER,1426380:149162200,25721.04 ,Legal Aid Higher Crime
MOJ,LAA,15/03/18,Higher Crime,LEGAL AID FUND,S SATHA & CO LTD,1426891:149169919,68560.95 ,Legal Aid Higher Crime
MOJ,LAA,15/03/18,Higher Crime,LEGAL AID FUND,SG LAW LTD,1424193:149169491,26036.99 ,Legal Aid Higher Crime
MOJ,LAA,15/03/18,Higher Crime,LEGAL AID FUND,SHAHIDA BEGUM,1424684:149206815,26587.99 ,Legal Aid Higher Crime
MOJ,LAA,15/03/18,Higher Crime,LEGAL AID FUND,SHAW GRAHAM KERSH,1424110:149169304,52704.13 ,Legal Aid Higher Crime
MOJ,LAA,15/03/18,Higher Crime,LEGAL AID FUND,SIMON CSOKA,1423621:149207319,31949.63 ,Legal Aid Higher Crime
MOJ,LAA,15/03/18,Higher Crime,LEGAL AID FUND,SIMON STIRLING,1426734:149169390,39644.59 ,Legal Aid Higher Crime
MOJ,LAA,15/03/18,Higher Crime,LEGAL AID FUND,SMITH & GRAHAM,1426867:149206879,63544.47 ,Legal Aid Higher Crime
MOJ,LAA,15/03/18,Higher Crime,LEGAL AID FUND,SONN MACMILLAN WALKER LTD,1424538:149215036,89975.11 ,Legal Aid Higher Crime
MOJ,LAA,15/03/18,Higher Crime,LEGAL AID FUND,SONN MACMILLAN WALKER LTD,1424538:149214797,44960.52 ,Legal Aid Higher Crime
MOJ,LAA,15/03/18,Higher Crime,LEGAL AID FUND,STAR LEGAL LTD,1427690:149184056,29664.55 ,Legal Aid Higher Crime
MOJ,LAA,15/03/18,Civil Representation,LEGAL AID FUND,STEEL & SHAMASH,1425724:3000001407120027,30410.47 ,Legal Aid Civil Representation
MOJ,LAA,15/03/18,Civil Representation,LEGAL AID FUND,STEFANO NUVOLONI,1426747:3000002547690006,49896.00 ,Legal Aid Civil Representation
MOJ,LAA,15/03/18,Civil Representation,LEGAL AID FUND,STEFANO NUVOLONI,1426747:148772734,48011.40 ,Legal Aid Civil Representation
MOJ,LAA,15/03/18,Civil Representation,LEGAL AID FUND,STEFANO NUVOLONI,1426747:148786311,-39626.74 ,Legal Aid Civil Representation
MOJ,LAA,15/03/18,Higher Crime,LEGAL AID FUND,STOKOE PARTNERSHIP,1424991:149207422,36128.06 ,Legal Aid Higher Crime
MOJ,LAA,15/03/18,Higher Crime,LEGAL AID FUND,SUSAN FERRIER,1426252:149206365,28918.92 ,Legal Aid Higher Crime
MOJ,LAA,15/03/18,Higher Crime,LEGAL AID FUND,SVS SOLICITORS,1425602:149214282,89975.11 ,Legal Aid Higher Crime
MOJ,LAA,15/03/18,Higher Crime,LEGAL AID FUND,SWITALSKI'S SOLICITORS LTD,1427236:149177415,56382.43 ,Legal Aid Higher Crime
MOJ,LAA,15/03/18,Higher Crime,LEGAL AID FUND,TIMOTHY B BRADBURY,1425468:149214419,36742.07 ,Legal Aid Higher Crime
MOJ,LAA,15/03/18,Higher Crime,LEGAL AID FUND,TIMOTHY J MOLONEY QC,1427121:149176462,33946.33 ,Legal Aid Higher Crime
MOJ,LAA,15/03/18,Higher Crime,LEGAL AID FUND,ULLAH LAW ASSOCIATES (SOLICITORS),1426349:149168950,32955.54 ,Legal Aid Higher Crime
MOJ,LAA,15/03/18,Higher Crime,LEGAL AID FUND,VEJA & CO LTD,1426506:149207446,93384.21 ,Legal Aid Higher Crime
MOJ,LAA,15/03/18,Higher Crime,LEGAL AID FUND,WAINWRIGHT & CUMMINS LLP,1424839:149184495,89975.11 ,Legal Aid Higher Crime
MOJ,LAA,15/03/18,Higher Crime,LEGAL AID FUND,WAINWRIGHT & CUMMINS LLP,1424839:149170145,61255.79 ,Legal Aid Higher Crime
MOJ,LAA,15/03/18,Higher Crime,LEGAL AID FUND,WATSON WOODHOUSE SOLICITORS LLP,1426873:149206247,89975.11 ,Legal Aid Higher Crime
MOJ,LAA,15/03/18,Higher Crime,LEGAL AID FUND,WELCH & CO,1425676:149170099,105857.75 ,Legal Aid Higher Crime
MOJ,LAA,15/03/18,Higher Crime,LEGAL AID FUND,WELLS BURCOMBE LLP,1426369:149169292,35544.98 ,Legal Aid Higher Crime
MOJ,LAA,15/03/18,Higher Crime,LEGAL AID FUND,WILFORD SMITH & CO LTD,1424475:149169383,26820.01 ,Legal Aid Higher Crime
MOJ,LAA,15/03/18,Civil Representation,LEGAL AID FUND,WILKINSON WOODWARD.,1423739:148832604,152026.39 ,Legal Aid Civil Representation
MOJ,LAA,15/03/18,Civil Representation,LEGAL AID FUND,WILKINSON WOODWARD.,1423739:149164216,-77133.60 ,Legal Aid Civil Representation
MOJ,LAA,15/03/18,Civil Representation,LEGAL AID FUND,WILLIAM E HIGGINSON,1427036:149123115,33904.44 ,Legal Aid Civil Representation
MOJ,LAA,15/03/18,Civil Representation,LEGAL AID FUND,WILLIAM E HIGGINSON,1427036:149123118,-34623.73 ,Legal Aid Civil Representation
MOJ,LAA,16/03/18,EXP - PURCHASE OF GOODS/SERVICES - ACCOMMODATION & BLDNG MANAGEMENT - Property Service Charges,Property Costs - Leeds,LONDON & SCOTTISH PROPERTY ASSET MANAGEMENT LTD,34481,33796.40 ,Property Costs
MOJ,LAA,16/03/18,EXP - RENTALS UNDER NON-PFI OPERATING LEASES - BUILDINGS,Property Costs - Newcastle,BILFINGER GVA,8277-291811/P,102199.20 ,Property Costs
MOJ,LAA,16/03/18,Civil Representation,LEGAL AID FUND,DAVID H SOUTHEY QC,1428243:2000000000005372,31821.72 ,Legal Aid Civil Representation
MOJ,LAA,16/03/18,Civil Representation,LEGAL AID FUND,ENABLE LAW,1428244:2000000000005367,168431.44 ,Legal Aid Civil Representation
MOJ,LAA,16/03/18,Civil Representation,LEGAL AID FUND,ENABLE LAW,1428244:148933165,-27459.62 ,Legal Aid Civil Representation
MOJ,LAA,16/03/18,Civil Representation,LEGAL AID FUND,ENABLE LAW,1428244:148981822,-30582.70 ,Legal Aid Civil Representation
MOJ,LAA,19/03/18,EXP - PURCHASE OF GOODS/SERVICES - OTHER PROFESSIONAL SERVICES - LEGAL SERVICES - THIRD PARTY LEGAL COSTS,National Courts Core Team NCT,TEACHER STERN SOLICITORS LLP,LAA-SOP6-OTP-10322,58485.10 ,Legal Costs
MOJ,LAA,19/03/18,EXP - PURCHASE OF GOODS/SERVICES - OTHER PROFESSIONAL SERVICES - LEGAL SERVICES - THIRD PARTY LEGAL COSTS,National Courts Core Team NCT,TEACHER STERN SOLICITORS LLP,LAA-SOP6-OTP-10322,58485.10 ,Legal Costs
MOJ,LAA,19/03/18,EXP - RENTALS UNDER NON-PFI OPERATING LEASES - BUILDINGS,Property Costs - Leeds,LONDON & SCOTTISH PROPERTY ASSET MANAGEMENT LTD,34480,57600.00 ,Property Costs
MOJ,LAA,20/03/18,EXP - PURCHASE OF GOODS/SERVICES - ACCOMMODATION & BLDNG MANAGEMENT - Property Service Charges,Property Costs - Nottingham,KNIGHT FRANK LLP,174762,35445.68 ,Property Costs
MOJ,LAA,20/03/18,EXP - PURCHASE OF GOODS/SERVICES - ACCOMMODATION & BLDNG MANAGEMENT - Property Service Charges,Property Costs - Nottingham,KNIGHT FRANK LLP,174763,35214.10 ,Property Costs
MOJ,LAA,20/03/18,EXP - PURCHASE OF GOODS/SERVICES - OTHER - Translation / Interpreting Services,Central Funds,THEBIGWORD INTERPRETING SERVICES LTD,90134758,529346.62 ,Translation / Interpreting Costs
MOJ,LAA,20/03/18,EXP - RENTALS UNDER NON-PFI OPERATING LEASES - BUILDINGS,Property Costs - Brighton,JONES LANG LASALLE LTD,SWPPAX1/103692,94040.10 ,Property Costs
MOJ,LAA,20/03/18,EXP - RENTALS UNDER NON-PFI OPERATING LEASES - BUILDINGS,Property Costs - Nottingham,KNIGHT FRANK LLP,174762,35445.68 ,Property Costs
MOJ,LAA,20/03/18,EXP - RENTALS UNDER NON-PFI OPERATING LEASES - BUILDINGS,Property Costs - Nottingham,KNIGHT FRANK LLP,174763,35214.10 ,Property Costs
MOJ,LAA,20/03/18,Civil Representation,LEGAL AID FUND,LEWIS DONNELLY,257716:3000000822430002RC,38239.20 ,Legal Aid Civil Representation
MOJ,LAA,21/03/18,EXP - PURCHASE OF GOODS/SERVICES - ACCOMMODATION & BLDNG MANAGEMENT - Property Service Charges,Property Costs - Birmingham,CBRE LTD,788670,81354.95 ,Property Costs
MOJ,LAA,21/03/18,EXP - PURCHASE OF GOODS/SERVICES - ACCOMMODATION & BLDNG MANAGEMENT - Property Service Charges,Property Costs - Brighton,JONES LANG LASALLE LTD,SWPPAX1/103897,48838.83 ,Property Costs
MOJ,LAA,21/03/18,EXP - PURCHASE OF GOODS/SERVICES - OTHER PROFESSIONAL SERVICES - LEGAL SERVICES - THIRD PARTY LEGAL COSTS,National Courts Core Team NCT,ROSSENDALES LTD,40094,72004.07 ,Fund Costs
MOJ,LAA,21/03/18,EXP - PURCHASE OF GOODS/SERVICES - OTHER PROFESSIONAL SERVICES - LEGAL SERVICES - THIRD PARTY LEGAL COSTS,National Courts Core Team NCT,ROSSENDALES LTD,40095,98480.74 ,Fund Costs
MOJ,LAA,21/03/18,EXP - RENTALS UNDER NON-PFI OPERATING LEASES - BUILDINGS,Property Costs - Birmingham,CBRE LTD,788670,81354.95 ,Property Costs
MOJ,LAA,21/03/18,Higher Crime,LEGAL AID FUND,AB MACKENZIE SOLICITORS,1431884:149229106,89975.11 ,Legal Aid Higher Crime
MOJ,LAA,21/03/18,Higher Crime,LEGAL AID FUND,ABV SOLICITORS,1430806:149245490,89975.11 ,Legal Aid Higher Crime
MOJ,LAA,21/03/18,Higher Crime,LEGAL AID FUND,ADRIAN J FARROW,1428502:149226047,40460.00 ,Legal Aid Higher Crime
MOJ,LAA,21/03/18,Civil Representation,LEGAL AID FUND,ADRIAN M HOPKINS QC,1430120:149249900,29628.00 ,Legal Aid Civil Representation
MOJ,LAA,21/03/18,Higher Crime,LEGAL AID FUND,ALLEN HOOLE SOLICITORS,1429362:149222338,40386.65 ,Legal Aid Higher Crime
MOJ,LAA,21/03/18,Higher Crime,LEGAL AID FUND,ALPHA SOLICITORS & ADVOCATES,1430569:149222541,107574.07 ,Legal Aid Higher Crime
MOJ,LAA,21/03/18,Civil Representation,LEGAL AID FUND,ALSTERS KELLEY LLP,1431139:3000000940060030,39016.18 ,Legal Aid Civil Representation
MOJ,LAA,21/03/18,Higher Crime,LEGAL AID FUND,ANGELA TAYLOR CRIMINAL SOLICITORS,1430200:149229666,43288.11 ,Legal Aid Higher Crime
MOJ,LAA,21/03/18,Higher Crime,LEGAL AID FUND,APPLEBY SHAW LTD,1431785:149228853,81347.36 ,Legal Aid Higher Crime
MOJ,LAA,21/03/18,Higher Crime,LEGAL AID FUND,ASHMANS SOLICITORS LTD,1428405:149229678,65794.92 ,Legal Aid Higher Crime
MOJ,LAA,21/03/18,Higher Crime,LEGAL AID FUND,B H MOHAMMED,1431615:149246704,32955.54 ,Legal Aid Higher Crime
MOJ,LAA,21/03/18,Higher Crime,LEGAL AID FUND,BAILEY GARCHA SOLICITORS LTD,1431679:149244988,72906.47 ,Legal Aid Higher Crime
MOJ,LAA,21/03/18,Higher Crime,LEGAL AID FUND,BARRY MCELDUFF,1430680:149228743,42713.52 ,Legal Aid Higher Crime
MOJ,LAA,21/03/18,Higher Crime,LEGAL AID FUND,BAXENDALE VANZIE SOLICITORS LTD,1430461:149245576,29896.93 ,Legal Aid Higher Crime
MOJ,LAA,21/03/18,Higher Crime,LEGAL AID FUND,BEECHAM PEACOCK LLP,1428686:149246657,36818.09 ,Legal Aid Higher Crime
MOJ,LAA,21/03/18,Higher Crime,LEGAL AID FUND,BELMORES SOLICITORS LTD,1431152:149245048,29664.55 ,Legal Aid Higher Crime
MOJ,LAA,21/03/18,Higher Crime,LEGAL AID FUND,BENJAMIN J MYERS QC,1431790:149226046,80520.00 ,Legal Aid Higher Crime
MOJ,LAA,21/03/18,Higher Crime,LEGAL AID FUND,BIRD & CO SOLICITORS LLP,1429688:149229480,50228.62 ,Legal Aid Higher Crime
MOJ,LAA,21/03/18,Higher Crime,LEGAL AID FUND,BIRD & CO SOLICITORS LLP,1429687:149221774,47449.03 ,Legal Aid Higher Crime
MOJ,LAA,21/03/18,Civil Representation,LEGAL AID FUND,BRETHERTONS LLP,1432069:3000001085810046,26715.50 ,Legal Aid Civil Representation
MOJ,LAA,21/03/18,Civil Representation,LEGAL AID FUND,CAMPBELL-TAYLOR SOLICITORS,1431998:3000001237390003,25014.08 ,Legal Aid Civil Representation
MOJ,LAA,21/03/18,Higher Crime,LEGAL AID FUND,CANTARIS LOCKE SOLICITORS,1430621:149221531,27141.24 ,Legal Aid Higher Crime
MOJ,LAA,21/03/18,Higher Crime,LEGAL AID FUND,CARTER MOORE SOLICITORS LTD,1431138:149229620,29664.55 ,Legal Aid Higher Crime
MOJ,LAA,21/03/18,Higher Crime,LEGAL AID FUND,CHARLES STRACHAN SOLICITORS LTD,1431524:149245076,38147.96 ,Legal Aid Higher Crime
MOJ,LAA,21/03/18,Higher Crime,LEGAL AID FUND,CLIFFORD JOHNSTON & CO,1429912:149245578,77667.12 ,Legal Aid Higher Crime
MOJ,LAA,21/03/18,Legal Help,LEGAL AID FUND,CORAM CHILDREN'S LEGAL CENTRE,1429915:149226833,120576.77 ,Legal Aid Legal Help
MOJ,LAA,21/03/18,Higher Crime,LEGAL AID FUND,DANIEL G TRAVERS,1430682:149221481,26436.72 ,Legal Aid Higher Crime
MOJ,LAA,21/03/18,Higher Crime,LEGAL AID FUND,DAVID H EMANUEL,1430007:149228945,30273.34 ,Legal Aid Higher Crime
MOJ,LAA,21/03/18,Higher Crime,LEGAL AID FUND,DIANA ELLIS QC,1428921:149229524,53951.38 ,Legal Aid Higher Crime
MOJ,LAA,21/03/18,Legal Help,LEGAL AID FUND,DIRECT HELP & ADVICE LTD,1430509:149226835,25611.60 ,Legal Aid Legal Help
MOJ,LAA,21/03/18,Higher Crime,LEGAL AID FUND,DPP LAW LTD,1430455:149229460,46906.62 ,Legal Aid Higher Crime
MOJ,LAA,21/03/18,Higher Crime,LEGAL AID FUND,DRAYCOTT BROWNE LTD,1429973:149229674,25148.16 ,Legal Aid Higher Crime
MOJ,LAA,21/03/18,Civil Representation,LEGAL AID FUND,DUNCAN LEWIS SOLICITORS  LTD,1430212:149108514,94723.93 ,Legal Aid Civil Representation
MOJ,LAA,21/03/18,Civil Representation,LEGAL AID FUND,DUNCAN LEWIS SOLICITORS  LTD,1430627:3000002626100018,26657.50 ,Legal Aid Civil Representation
MOJ,LAA,21/03/18,Higher Crime,LEGAL AID FUND,EBR ATTRIDGE LLP,1431313:149222208,25338.42 ,Legal Aid Higher Crime
MOJ,LAA,21/03/18,Civil Representation,LEGAL AID FUND,EDWARDS DUTHIE,1431309:3000001228570013,25649.60 ,Legal Aid Civil Representation
MOJ,LAA,21/03/18,Higher Crime,LEGAL AID FUND,EDWARDS VAZIRANEY,1431205:149245093,107574.07 ,Legal Aid Higher Crime
MOJ,LAA,21/03/18,Civil Representation,LEGAL AID FUND,EMMA SOUTHERN,1430739:3000002511240015,27648.00 ,Legal Aid Civil Representation
MOJ,LAA,21/03/18,Higher Crime,LEGAL AID FUND,ENNON & CO LTD,1431177:149244882,89975.11 ,Legal Aid Higher Crime
MOJ,LAA,21/03/18,Higher Crime,LEGAL AID FUND,FORBES SOLICITORS,1430173:149245035,89975.11 ,Legal Aid Higher Crime
MOJ,LAA,21/03/18,Higher Crime,LEGAL AID FUND,FOUNTAIN SOLICITORS LTD,1431188:149222612,72372.67 ,Legal Aid Higher Crime
MOJ,LAA,21/03/18,Higher Crime,LEGAL AID FUND,FOXES SOLICITORS,1431903:149245003,76408.31 ,Legal Aid Higher Crime
MOJ,LAA,21/03/18,Civil Representation,LEGAL AID FUND,FRANK BRAZELL & PARTNERS LTD,1430502:149203807,29609.17 ,Legal Aid Civil Representation
MOJ,LAA,21/03/18,Higher Crime,LEGAL AID FUND,FRIDA K HUSSAIN,1429827:149221520,30985.66 ,Legal Aid Higher Crime
MOJ,LAA,21/03/18,Civil Representation,LEGAL AID FUND,GARETH WEBB & CO LLP,1430748:3000001584900007,26694.76 ,Legal Aid Civil Representation
MOJ,LAA,21/03/18,Civil Representation,LEGAL AID FUND,GEMMA KELLY,1430111:3000002289450021,33014.53 ,Legal Aid Civil Representation
MOJ,LAA,21/03/18,Higher Crime,LEGAL AID FUND,GILES F COCKINGS,1429828:149229109,39149.14 ,Legal Aid Higher Crime
MOJ,LAA,21/03/18,Higher Crime,LEGAL AID FUND,GOLDSTONES SOLICITORS LTD,1431611:149230062,26444.23 ,Legal Aid Higher Crime
MOJ,LAA,21/03/18,Higher Crime,LEGAL AID FUND,GOODALL BARNETT JAMES SOLICITORS,1432022:149244896,54176.29 ,Legal Aid Higher Crime
MOJ,LAA,21/03/18,Civil Representation,LEGAL AID FUND,GOODMAN RAY SOLICITORS LLP,1430778:149241953,92477.44 ,Legal Aid Civil Representation
MOJ,LAA,21/03/18,Civil Representation,LEGAL AID FUND,GOODMAN RAY SOLICITORS LLP,1430778:149249996,-25506.00 ,Legal Aid Civil Representation
MOJ,LAA,21/03/18,Civil Representation,LEGAL AID FUND,GOODMAN RAY SOLICITORS LLP,1430778:149249963,-38134.57 ,Legal Aid Civil Representation
MOJ,LAA,21/03/18,Higher Crime,LEGAL AID FUND,GULAM M AHMED,1429275:149225869,67440.00 ,Legal Aid Higher Crime
MOJ,LAA,21/03/18,Civil Representation,LEGAL AID FUND,HAINS & LEWIS LTD,1431282:3000001741440026,29444.96 ,Legal Aid Civil Representation
MOJ,LAA,21/03/18,Higher Crime,LEGAL AID FUND,HARRIS SOLICITORS LTD,1431908:149222453,33914.48 ,Legal Aid Higher Crime
MOJ,LAA,21/03/18,Higher Crime,LEGAL AID FUND,HEATHER E OLIVER,1429189:149246579,30471.38 ,Legal Aid Higher Crime
MOJ,LAA,21/03/18,Higher Crime,LEGAL AID FUND,HEATHER E OLIVER,1429189:149246503,27812.88 ,Legal Aid Higher Crime
MOJ,LAA,21/03/18,Higher Crime,LEGAL AID FUND,HEATHER E OLIVER,1429189:149246561,-27906.48 ,Legal Aid Higher Crime
MOJ,LAA,21/03/18,Higher Crime,LEGAL AID FUND,HODGE JONES & ALLEN LLP,1431620:149244920,89975.11 ,Legal Aid Higher Crime
MOJ,LAA,21/03/18,Civil Representation,LEGAL AID FUND,HODGE JONES & ALLEN LLP,1431620:3000001845670014,27778.32 ,Legal Aid Civil Representation
MOJ,LAA,21/03/18,Higher Crime,LEGAL AID FUND,HPJV,1431639:149229410,37845.88 ,Legal Aid Higher Crime
MOJ,LAA,21/03/18,Higher Crime,LEGAL AID FUND,HUSSAIN SOLICITORS LTD,1430747:149245090,84850.76 ,Legal Aid Higher Crime
MOJ,LAA,21/03/18,Civil Representation,LEGAL AID FUND,I B B SOLICITORS,1431961:3000001915720007,25002.35 ,Legal Aid Civil Representation
MOJ,LAA,21/03/18,Higher Crime,LEGAL AID FUND,IRSHAD A SHEIKH,1431041:149245895,34174.27 ,Legal Aid Higher Crime
MOJ,LAA,21/03/18,Higher Crime,LEGAL AID FUND,JAMES E NEWTON-PRICE,1431840:149230073,59403.00 ,Legal Aid Higher Crime
MOJ,LAA,21/03/18,Civil Representation,LEGAL AID FUND,JAMES J HARGAN,1429233:3000002312690013,32589.43 ,Legal Aid Civil Representation
MOJ,LAA,21/03/18,Civil Representation,LEGAL AID FUND,JI SOLICITORS LTD,1429084:149158142,29396.50 ,Legal Aid Civil Representation
MOJ,LAA,21/03/18,Higher Crime,LEGAL AID FUND,JUSTIN B K RIVETT,1429999:149250714,72199.99 ,Legal Aid Higher Crime
MOJ,LAA,21/03/18,Higher Crime,LEGAL AID FUND,K LEGAL SOLICITORS,1431955:149222649,25670.23 ,Legal Aid Higher Crime
MOJ,LAA,21/03/18,Civil Representation,LEGAL AID FUND,KATE V BRANIGAN QC,1428449:3000002546430012,25539.30 ,Legal Aid Civil Representation
MOJ,LAA,21/03/18,Civil Representation,LEGAL AID FUND,KATHERINE WOOD,1430330:3000001863600019,51321.60 ,Legal Aid Civil Representation
MOJ,LAA,21/03/18,Higher Crime,LEGAL AID FUND,KEMPS SOLICITORS,1428697:149222064,29664.55 ,Legal Aid Higher Crime
MOJ,LAA,21/03/18,Higher Crime,LEGAL AID FUND,LAM & MEERABUX SOLICITORS,1431970:149222148,30764.52 ,Legal Aid Higher Crime
MOJ,LAA,21/03/18,Higher Crime,LEGAL AID FUND,LAURENCE LEE & CO,1429682:149229606,53824.04 ,Legal Aid Higher Crime
MOJ,LAA,21/03/18,Higher Crime,LEGAL AID FUND,LAWTONS SOLICITORS LTD,1431972:149245089,36042.98 ,Legal Aid Higher Crime
MOJ,LAA,21/03/18,Civil Representation,LEGAL AID FUND,LEGAL SERVICES FOR CHILDREN,1431203:3000002546280006,26599.95 ,Legal Aid Civil Representation
MOJ,LAA,21/03/18,Civil Representation,LEGAL AID FUND,LEWIS DONNELLY,1428611:3000000822430002RC,-38239.20 ,Legal Aid Civil Representation
MOJ,LAA,21/03/18,Civil Representation,LEGAL AID FUND,LOVELL CHOHAN SOLICITORS LTD,1432019:3000002357840008,38735.94 ,Legal Aid Civil Representation
MOJ,LAA,21/03/18,Civil Representation,LEGAL AID FUND,MALCOLM MACDONALD,1429472:3000000323770012,29192.40 ,Legal Aid Civil Representation
MOJ,LAA,21/03/18,Higher Crime,LEGAL AID FUND,MARK JONES & PARTNERS,1430243:149244980,70673.12 ,Legal Aid Higher Crime
MOJ,LAA,21/03/18,Higher Crime,LEGAL AID FUND,MELANIE SIMPSON,1428919:149229073,27175.99 ,Legal Aid Higher Crime
MOJ,LAA,21/03/18,Higher Crime,LEGAL AID FUND,MICHAEL CARROLL & CO,1430241:149222648,101584.62 ,Legal Aid Higher Crime
MOJ,LAA,21/03/18,Higher Crime,LEGAL AID FUND,MPR SOLICITORS LLP,1429977:149245039,53542.30 ,Legal Aid Higher Crime
MOJ,LAA,21/03/18,Higher Crime,LEGAL AID FUND,MUMIN I M HASHIM,1429856:149225969,102160.00 ,Legal Aid Higher Crime
MOJ,LAA,21/03/18,Civil Representation,LEGAL AID FUND,NATASHA A L MORAN,1430671:3000001959050035,25660.80 ,Legal Aid Civil Representation
MOJ,LAA,21/03/18,Higher Crime,LEGAL AID FUND,NICHOLAS M BARRACLOUGH,1431044:149252135,72199.99 ,Legal Aid Higher Crime
MOJ,LAA,21/03/18,Higher Crime,LEGAL AID FUND,NIGEL SANGSTER QC,1428913:149250892,143680.00 ,Legal Aid Higher Crime
MOJ,LAA,21/03/18,Higher Crime,LEGAL AID FUND,ONUMA & CO LLP,1431782:149244890,29664.55 ,Legal Aid Higher Crime
MOJ,LAA,21/03/18,Higher Crime,LEGAL AID FUND,PAUL HOBSON,1430730:149227475,41120.00 ,Legal Aid Higher Crime
MOJ,LAA,21/03/18,Civil Representation,LEGAL AID FUND,PEARSONS,1429982:149249502,26850.20 ,Legal Aid Civil Representation
MOJ,LAA,21/03/18,Higher Crime,LEGAL AID FUND,PENFOLD & MCPHERSON LTD,1431988:149245601,89975.11 ,Legal Aid Higher Crime
MOJ,LAA,21/03/18,Civil Representation,LEGAL AID FUND,PETER EDWARDS LAW LTD,1430203:149219146,25385.40 ,Legal Aid Civil Representation
MOJ,LAA,21/03/18,Civil Representation,LEGAL AID FUND,PETHERBRIDGE BASSRA SOLICITORS LTD,1430827:3000002314320006,34879.50 ,Legal Aid Civil Representation
MOJ,LAA,21/03/18,Higher Crime,LEGAL AID FUND,POWELL SPENCER AND PARTNERS,1431622:149229687,89975.11 ,Legal Aid Higher Crime
MOJ,LAA,21/03/18,Higher Crime,LEGAL AID FUND,QUINN MELVILLE,1430547:149246351,56128.68 ,Legal Aid Higher Crime
MOJ,LAA,21/03/18,Higher Crime,LEGAL AID FUND,QUINN MELVILLE,1430547:149221488,26698.09 ,Legal Aid Higher Crime
MOJ,LAA,21/03/18,Higher Crime,LEGAL AID FUND,RAHMAN RAVELLI SOLICITORS LTD,1429950:149244926,89670.67 ,Legal Aid Higher Crime
MOJ,LAA,21/03/18,Higher Crime,LEGAL AID FUND,RAHMAN RAVELLI SOLICITORS LTD,1429950:149222168,85342.80 ,Legal Aid Higher Crime
MOJ,LAA,21/03/18,Higher Crime,LEGAL AID FUND,RAHMAN RAVELLI SOLICITORS LTD,1429950:149245081,49729.07 ,Legal Aid Higher Crime
MOJ,LAA,21/03/18,Civil Representation,LEGAL AID FUND,RAMSDENS SOLICITORS LLP,1429203:149173742,60981.24 ,Legal Aid Civil Representation
MOJ,LAA,21/03/18,Civil Representation,LEGAL AID FUND,RAMSDENS SOLICITORS LLP,1429203:3000002537400010,25705.03 ,Legal Aid Civil Representation
MOJ,LAA,21/03/18,Civil Representation,LEGAL AID FUND,RAMSDENS SOLICITORS LLP,1429203:149217389,-36460.80 ,Legal Aid Civil Representation
MOJ,LAA,21/03/18,Higher Crime,LEGAL AID FUND,REEDS SOLICITORS LTD-ADVOCATE,1429213:149229859,30896.50 ,Legal Aid Higher Crime
MOJ,LAA,21/03/18,Higher Crime,LEGAL AID FUND,RICHARD BROWN & CO,1429655:149246033,89975.11 ,Legal Aid Higher Crime
MOJ,LAA,21/03/18,Civil Representation,LEGAL AID FUND,RICHARD M A HADLEY,1430407:3000002373850012,49928.47 ,Legal Aid Civil Representation
MOJ,LAA,21/03/18,Civil Representation,LEGAL AID FUND,RICHARD REED SOLICITORS,1428676:3000001327160045,54788.00 ,Legal Aid Civil Representation
MOJ,LAA,21/03/18,Higher Crime,LEGAL AID FUND,RINA-MARIE HILL,1428458:149229911,41947.80 ,Legal Aid Higher Crime
MOJ,LAA,21/03/18,Higher Crime,LEGAL AID FUND,ROBIN ROUCH,1430731:149219071,41120.00 ,Legal Aid Higher Crime
MOJ,LAA,21/03/18,Civil Representation,LEGAL AID FUND,ROWBERRY MORRIS THAMES VALLEY LLP,1431291:3000001016320010,32768.31 ,Legal Aid Civil Representation
MOJ,LAA,21/03/18,Civil Representation,LEGAL AID FUND,RUTH PHILLIPS,1431863:3000001863600018,34214.40 ,Legal Aid Civil Representation
MOJ,LAA,21/03/18,Civil Representation,LEGAL AID FUND,RUTH S M HENKE QC,1430085:3000001660510018,26961.60 ,Legal Aid Civil Representation
MOJ,LAA,21/03/18,Civil Representation,LEGAL AID FUND,SANDERSONS SOLICITORS LTD,1429013:3000002312690012,25980.00 ,Legal Aid Civil Representation
MOJ,LAA,21/03/18,Higher Crime,LEGAL AID FUND,SARAH T WOOD,1431804:149221982,35320.52 ,Legal Aid Higher Crime
MOJ,LAA,21/03/18,Higher Crime,LEGAL AID FUND,SAV KHAN SOLICITORS,1428734:149221749,27886.15 ,Legal Aid Higher Crime
MOJ,LAA,21/03/18,Higher Crime,LEGAL AID FUND,SHAFI SOLICITORS LLP,1429767:149245019,107970.13 ,Legal Aid Higher Crime
MOJ,LAA,21/03/18,Higher Crime,LEGAL AID FUND,SIMON R MOLYNEUX,1431432:149221411,28687.92 ,Legal Aid Higher Crime
MOJ,LAA,21/03/18,Legal Help,LEGAL AID FUND,SIMPSON MILLAR SOLICITORS LLP,1431946:149226822,55483.04 ,Legal Aid Legal Help
MOJ,LAA,21/03/18,Higher Crime,LEGAL AID FUND,SJ LAW,1429946:149244886,31021.67 ,Legal Aid Higher Crime
MOJ,LAA,21/03/18,Legal Help,LEGAL AID FUND,STEPHENSONS SOLICITORS LLP,1432010:149015100,69690.50 ,Legal Aid Legal Help
MOJ,LAA,21/03/18,Legal Help,LEGAL AID FUND,STEPHENSONS SOLICITORS LLP,1432010:149226821,33426.48 ,Legal Aid Legal Help
MOJ,LAA,21/03/18,Civil Representation,LEGAL AID FUND,STEPHENSONS SOLICITORS LLP,1432010:149092200,26225.42 ,Legal Aid Civil Representation
MOJ,LAA,21/03/18,Higher Crime,LEGAL AID FUND,STEVE S PERIAN,1431498:149245334,39149.14 ,Legal Aid Higher Crime
MOJ,LAA,21/03/18,Civil Representation,LEGAL AID FUND,SWITALSKI'S SOLICITORS LTD,1429730:3000003274440005,33321.60 ,Legal Aid Civil Representation
MOJ,LAA,21/03/18,Civil Representation,LEGAL AID FUND,SWITALSKI'S SOLICITORS LTD,1431584:100000071942DSW474,-25620.00 ,Legal Aid Civil Representation
MOJ,LAA,21/03/18,Higher Crime,LEGAL AID FUND,T V EDWARDS LLP,1428670:149230193,35227.42 ,Legal Aid Higher Crime
MOJ,LAA,21/03/18,Legal Help,LEGAL AID FUND,T. A. LAW,1431534:149226840,25742.40 ,Legal Aid Legal Help
MOJ,LAA,21/03/18,Lower Crime,LEGAL AID FUND,TANG BENTLEY & JACKSON LIMITED,1430782:149218481,55426.12 ,Legal Aid Lower Crime
MOJ,LAA,21/03/18,Civil Representation,LEGAL AID FUND,TARYN J LEE QC,1431484:149180891,89505.00 ,Legal Aid Civil Representation
MOJ,LAA,21/03/18,Civil Representation,LEGAL AID FUND,TARYN J LEE QC,1431484:3000002314320007,71733.60 ,Legal Aid Civil Representation
MOJ,LAA,21/03/18,Civil Representation,LEGAL AID FUND,TARYN J LEE QC,1431484:149164217,-39171.60 ,Legal Aid Civil Representation
MOJ,LAA,21/03/18,Civil Representation,LEGAL AID FUND,TARYN J LEE QC,1431484:149164215,-49199.40 ,Legal Aid Civil Representation
MOJ,LAA,21/03/18,Higher Crime,LEGAL AID FUND,TAYLOR HALDANE BARLEX LLP,1429504:149244923,53484.58 ,Legal Aid Higher Crime
MOJ,LAA,21/03/18,Higher Crime,LEGAL AID FUND,TAYLOR HALDANE BARLEX LLP,1429504:149244909,29282.08 ,Legal Aid Higher Crime
MOJ,LAA,21/03/18,Higher Crime,LEGAL AID FUND,THOMAS BOYD WHYTE,1430889:149229699,79976.79 ,Legal Aid Higher Crime
MOJ,LAA,21/03/18,Higher Crime,LEGAL AID FUND,TUCKERS SOLICITORS LLP,1428651:149229414,33479.46 ,Legal Aid Higher Crime
MOJ,LAA,21/03/18,Higher Crime,LEGAL AID FUND,VICTORIA GAINZA DEL PUERTO,1429779:149229930,27820.20 ,Legal Aid Higher Crime
MOJ,LAA,21/03/18,Civil Representation,LEGAL AID FUND,VINCENTS SOLICITORS LTD,1432011:3000001408390050,47852.05 ,Legal Aid Civil Representation
MOJ,LAA,21/03/18,Civil Representation,LEGAL AID FUND,VINCENTS SOLICITORS LTD,1432011:3000001408390037RC,-31838.40 ,Legal Aid Civil Representation
MOJ,LAA,21/03/18,Civil Representation,LEGAL AID FUND,WARD HADAWAY,1429007:3000000809800028,36343.99 ,Legal Aid Civil Representation
MOJ,LAA,21/03/18,Higher Crime,LEGAL AID FUND,WARWICK VESEY'S,1431506:149244877,29711.31 ,Legal Aid Higher Crime
MOJ,LAA,21/03/18,Higher Crime,LEGAL AID FUND,WEST MIDLANDS SOLICITORS,1431213:149221382,38694.17 ,Legal Aid Higher Crime
MOJ,LAA,21/03/18,Civil Representation,LEGAL AID FUND,WHITE & CO,1430783:3000001687170012,26297.90 ,Legal Aid Civil Representation
MOJ,LAA,21/03/18,Civil Representation,LEGAL AID FUND,WILLIAM J TYLER,1430158:3000001668160008,55015.20 ,Legal Aid Civil Representation
MOJ,LAA,21/03/18,Civil Representation,LEGAL AID FUND,ZERMANSKY & PARTNERS,1429402:3000001471950023,30946.98 ,Legal Aid Civil Representation
MOJ,LAA,26/03/18,Lower Crime,LEGAL AID FUND,NELSON & CO RE: BHATTI SOLICITORS,1432280:92841483,34314.00 ,Legal Aid Lower Crime
MOJ,LAA,26/03/18,Civil Representation,LEGAL AID FUND,NELSON & CO RE: BHATTI SOLICITORS,1432280:92841466,-34314.00 ,Legal Aid Civil Representation
MOJ,LAA,27/03/18,Civil Representation,LEGAL AID FUND,SIMPSON MILLAR SOLICITORS LLP,1432287:2000000000005449,173591.41 ,Legal Aid Civil Representation
MOJ,LAA,27/03/18,Civil Representation,LEGAL AID FUND,SIMPSON MILLAR SOLICITORS LLP,1432287:149180335,-57291.75 ,Legal Aid Civil Representation
MOJ,LAA,28/03/18,EXP - PURCHASE OF GOODS/SERVICES - SUPPORT - APPLICATION MAINTENANCE AND SUPPORT,ISD Management and Admin.,CAPGEMINI UK PLC,2600110158938,36789.60 ,IT Costs
MOJ,LAA,28/03/18,EXP - PURCHASE OF GOODS/SERVICES - TELECOMS - Charges/Rental-non mobile,Executive Team,BT PLC,VP52094570ACV03601,52116.55 ,Telecommunication Costs
MOJ,LAA,28/03/18,Higher Crime,LEGAL AID FUND,ABBEY SOLICITORS,1437786:149299487,33564.60 ,Legal Aid Higher Crime
MOJ,LAA,28/03/18,Lower Crime,LEGAL AID FUND,ABBEY SOLICITORS,1437786:149296077,25200.00 ,Legal Aid Lower Crime
MOJ,LAA,28/03/18,Legal Help,LEGAL AID FUND,ABBOTSTONE LAW LLP,1432373:149295763,43207.00 ,Legal Aid Legal Help
MOJ,LAA,28/03/18,Civil Representation,LEGAL AID FUND,ABM SOLICITORS,1435002:149203788,25553.97 ,Legal Aid Civil Representation
MOJ,LAA,28/03/18,Lower Crime,LEGAL AID FUND,ABV SOLICITORS,1437773:149295900,58100.00 ,Legal Aid Lower Crime
MOJ,LAA,28/03/18,Higher Crime,LEGAL AID FUND,ABV SOLICITORS,1437773:149262407,32716.12 ,Legal Aid Higher Crime
MOJ,LAA,28/03/18,Higher Crime,LEGAL AID FUND,ADAM V S KANE,1435458:149272667,134000.00 ,Legal Aid Higher Crime
MOJ,LAA,28/03/18,Higher Crime,LEGAL AID FUND,ALASTAIR S K EDIE,1434823:149261974,28699.68 ,Legal Aid Higher Crime
MOJ,LAA,28/03/18,Lower Crime,LEGAL AID FUND,ALBIN & CO LTD,1437797:149296117,30000.00 ,Legal Aid Lower Crime
MOJ,LAA,28/03/18,Higher Crime,LEGAL AID FUND,ALEXANDER BENNETT,1437505:149297675,89975.11 ,Legal Aid Higher Crime
MOJ,LAA,28/03/18,Lower Crime,LEGAL AID FUND,ALEXANDER BENNETT,1434699:149297419,51014.00 ,Legal Aid Lower Crime
MOJ,LAA,28/03/18,Lower Crime,LEGAL AID FUND,ALLEN HOOLE SOLICITORS,1433573:149296140,37700.00 ,Legal Aid Lower Crime
MOJ,LAA,28/03/18,Lower Crime,LEGAL AID FUND,ALLEN HOOLE SOLICITORS,1434670:149297224,34219.00 ,Legal Aid Lower Crime
MOJ,LAA,28/03/18,Higher Crime,LEGAL AID FUND,AMOSU ROBINSHAW LTD,1436229:149299067,44584.47 ,Legal Aid Higher Crime
MOJ,LAA,28/03/18,Higher Crime,LEGAL AID FUND,AMOSU ROBINSHAW LTD,1436229:149279081,35318.03 ,Legal Aid Higher Crime
MOJ,LAA,28/03/18,Lower Crime,LEGAL AID FUND,ANGELA PORTER SOLICITORS,1437781:149296742,27659.00 ,Legal Aid Lower Crime
MOJ,LAA,28/03/18,Legal Help,LEGAL AID FUND,APPLEMAN LEGAL,1432367:149295767,50205.00 ,Legal Aid Legal Help
MOJ,LAA,28/03/18,Lower Crime,LEGAL AID FUND,BAILEY NICHOLSON GRAYSON,1436181:149295873,46200.00 ,Legal Aid Lower Crime
MOJ,LAA,28/03/18,Lower Crime,LEGAL AID FUND,BAINS SOLICITORS,1436180:149296327,26484.00 ,Legal Aid Lower Crime
MOJ,LAA,28/03/18,Lower Crime,LEGAL AID FUND,BAL DHALIWAL SOLICITORS,1435660:149296397,25252.00 ,Legal Aid Lower Crime
MOJ,LAA,28/03/18,Legal Help,LEGAL AID FUND,BANKFIELD HEATH SOLICITORS,1436442:149295600,41336.00 ,Legal Aid Legal Help
MOJ,LAA,28/03/18,Higher Crime,LEGAL AID FUND,BANKSIDE LAW LIMITED,1434100:149253639,95707.01 ,Legal Aid Higher Crime
MOJ,LAA,28/03/18,Higher Crime,LEGAL AID FUND,BARK & CO,1432758:149261955,89975.11 ,Legal Aid Higher Crime
MOJ,LAA,28/03/18,Legal Help,LEGAL AID FUND,BARNES HARRILD & DYER,1437355:149295164,31699.00 ,Legal Aid Legal Help
MOJ,LAA,28/03/18,Legal Help,LEGAL AID FUND,BARNES HARRILD & DYER,1436466:149295604,29381.00 ,Legal Aid Legal Help
MOJ,LAA,28/03/18,Higher Crime,LEGAL AID FUND,BARRY E GRENNAN,1437204:149269115,31413.24 ,Legal Aid Higher Crime
MOJ,LAA,28/03/18,Lower Crime,LEGAL AID FUND,BASSETS,1435168:149296082,30400.00 ,Legal Aid Lower Crime
MOJ,LAA,28/03/18,Lower Crime,LEGAL AID FUND,BDH SOLICITORS LTD,1432688:149296058,27400.00 ,Legal Aid Lower Crime
MOJ,LAA,28/03/18,Higher Crime,LEGAL AID FUND,BELMORES SOLICITORS LTD,1432595:149261771,43527.77 ,Legal Aid Higher Crime
MOJ,LAA,28/03/18,Lower Crime,LEGAL AID FUND,BELMORES SOLICITORS LTD,1432595:149296371,36865.00 ,Legal Aid Lower Crime
MOJ,LAA,28/03/18,Higher Crime,LEGAL AID FUND,BEN HOARE BELL LLP,1434336:149270055,85850.04 ,Legal Aid Higher Crime
MOJ,LAA,28/03/18,Lower Crime,LEGAL AID FUND,BESWICKS SOLICITORS LLP,1436899:149296813,42568.00 ,Legal Aid Lower Crime
MOJ,LAA,28/03/18,Lower Crime,LEGAL AID FUND,BHATIA BEST LTD,1434097:149295819,89800.00 ,Legal Aid Lower Crime
MOJ,LAA,28/03/18,Lower Crime,LEGAL AID FUND,BHATIA BEST LTD,1434191:149295823,40900.00 ,Legal Aid Lower Crime
MOJ,LAA,28/03/18,Legal Help,LEGAL AID FUND,BINDMANS LLP,1435642:149294771,32600.00 ,Legal Aid Legal Help
MOJ,LAA,28/03/18,Higher Crime,LEGAL AID FUND,BIRCHALL BLACKBURN SOLICITORS,1432732:149262423,46002.67 ,Legal Aid Higher Crime
MOJ,LAA,28/03/18,Civil Representation,LEGAL AID FUND,BIRCHALL BLACKBURN SOLICITORS,1432732:3000001231630027,39819.93 ,Legal Aid Civil Representation
MOJ,LAA,28/03/18,Civil Representation,LEGAL AID FUND,BIRCHALL BLACKBURN SOLICITORS,1432732:3000001231630026RC,-29413.80 ,Legal Aid Civil Representation
MOJ,LAA,28/03/18,Higher Crime,LEGAL AID FUND,BIRDS SOLICITORS LTD,1437730:149270032,89975.11 ,Legal Aid Higher Crime
MOJ,LAA,28/03/18,Lower Crime,LEGAL AID FUND,BIRDS SOLICITORS LTD,1437730:149295889,72000.00 ,Legal Aid Lower Crime
MOJ,LAA,28/03/18,Higher Crime,LEGAL AID FUND,BIRDS SOLICITORS LTD,1437730:149262463,54943.55 ,Legal Aid Higher Crime
MOJ,LAA,28/03/18,Higher Crime,LEGAL AID FUND,BIRNBERG PEIRCE LTD,1436171:149253953,41181.82 ,Legal Aid Higher Crime
MOJ,LAA,28/03/18,Lower Crime,LEGAL AID FUND,BISHOP & LIGHT SOLICITORS LTD,1435733:149296098,29300.00 ,Legal Aid Lower Crime
MOJ,LAA,28/03/18,Legal Help,LEGAL AID FUND,BISON SOLICITORS LTD,1432397:149273844,99000.00 ,Legal Aid Legal Help
MOJ,LAA,28/03/18,Legal Help,LEGAL AID FUND,BISON SOLICITORS LTD,1432397:149273845,29961.00 ,Legal Aid Legal Help
MOJ,LAA,28/03/18,Higher Crime,LEGAL AID FUND,BJ & CO SOLICITORS LTD,1436794:149254410,73727.06 ,Legal Aid Higher Crime
MOJ,LAA,28/03/18,Lower Crime,LEGAL AID FUND,BLACKFORDS LLP,1435712:149296425,47458.00 ,Legal Aid Lower Crime
MOJ,LAA,28/03/18,Lower Crime,LEGAL AID FUND,BLACKWELLS,1437297:149296015,35000.00 ,Legal Aid Lower Crime
MOJ,LAA,28/03/18,Lower Crime,LEGAL AID FUND,BOBBETTS MACKAN,1436338:149296130,42000.00 ,Legal Aid Lower Crime
MOJ,LAA,28/03/18,Legal Help,LEGAL AID FUND,BOLTON CAB,1434634:149295400,43504.00 ,Legal Aid Legal Help
MOJ,LAA,28/03/18,Lower Crime,LEGAL AID FUND,BOND JOSEPH,1436766:149296707,56359.00 ,Legal Aid Lower Crime
MOJ,LAA,28/03/18,Higher Crime,LEGAL AID FUND,BOOTHROYDS SOLICITORS,1435206:149278462,60847.58 ,Legal Aid Higher Crime
MOJ,LAA,28/03/18,Lower Crime,LEGAL AID FUND,BREYDONS SOLICITORS LTD,1432389:149296921,29676.00 ,Legal Aid Lower Crime
MOJ,LAA,28/03/18,Legal Help,LEGAL AID FUND,BRIGHTON HOUSING TRUST,1435026:149295488,36560.00 ,Legal Aid Legal Help
MOJ,LAA,28/03/18,Legal Help,LEGAL AID FUND,BURKE NIAZI  LTD,1437824:149273836,99000.00 ,Legal Aid Legal Help
MOJ,LAA,28/03/18,Higher Crime,LEGAL AID FUND,BURTON COPELAND LLP,1435058:149298920,60310.56 ,Legal Aid Higher Crime
MOJ,LAA,28/03/18,Lower Crime,LEGAL AID FUND,BURTON COPELAND LLP,1435058:149296685,33183.00 ,Legal Aid Lower Crime
MOJ,LAA,28/03/18,Legal Help,LEGAL AID FUND,BUTLER & CO,1432599:149294704,36500.00 ,Legal Aid Legal Help
MOJ,LAA,28/03/18,Higher Crime,LEGAL AID FUND,BUXTON RYAN & CO,1435683:149269688,49729.07 ,Legal Aid Higher Crime
MOJ,LAA,28/03/18,Lower Crime,LEGAL AID FUND,CARR & CO,1433161:149296013,32800.00 ,Legal Aid Lower Crime
MOJ,LAA,28/03/18,Lower Crime,LEGAL AID FUND,CARRINGTONS SOLICITORS,1433065:149296331,198454.00 ,Legal Aid Lower Crime
MOJ,LAA,28/03/18,Lower Crime,LEGAL AID FUND,CARTER OSBORNE LTD,1434612:149296328,92904.00 ,Legal Aid Lower Crime
MOJ,LAA,28/03/18,Legal Help,LEGAL AID FUND,CARTWRIGHT KING LTD,1437236:149295331,63109.00 ,Legal Aid Legal Help
MOJ,LAA,28/03/18,Lower Crime,LEGAL AID FUND,CARTWRIGHT KING LTD,1437236:149296337,31678.00 ,Legal Aid Lower Crime
MOJ,LAA,28/03/18,Higher Crime,LEGAL AID FUND,CARTWRIGHT KING LTD,1433266:149269471,25648.25 ,Legal Aid Higher Crime
MOJ,LAA,28/03/18,Higher Crime,LEGAL AID FUND,CHIVERS SOLICITORS,1434559:149269252,89975.11 ,Legal Aid Higher Crime
MOJ,LAA,28/03/18,Higher Crime,LEGAL AID FUND,CHRISTOPHER L REES,1435452:149299089,29015.14 ,Legal Aid Higher Crime
MOJ,LAA,28/03/18,Higher Crime,LEGAL AID FUND,CHUDI GRANT,1437182:149269112,31021.56 ,Legal Aid Higher Crime
MOJ,LAA,28/03/18,Lower Crime,LEGAL AID FUND,CHURCHERS SOLICITORS,1433552:149296726,25838.00 ,Legal Aid Lower Crime
MOJ,LAA,28/03/18,Legal Help,LEGAL AID FUND,CJCH SOLICITORS,1432377:149295771,30472.00 ,Legal Aid Legal Help
MOJ,LAA,28/03/18,Lower Crime,LEGAL AID FUND,CJH GREENHILL COOPER SOLICITORS,1436167:149295843,28500.00 ,Legal Aid Lower Crime
MOJ,LAA,28/03/18,Legal Help,LEGAL AID FUND,CMHT SOLICITORS LLP,1436906:149294910,58884.00 ,Legal Aid Legal Help
MOJ,LAA,28/03/18,Lower Crime,LEGAL AID FUND,COBAINS SOLICITORS,1436212:149296065,30000.00 ,Legal Aid Lower Crime
MOJ,LAA,28/03/18,Lower Crime,LEGAL AID FUND,CONNOR ROSS-BROWN SOLICITORS,1434297:149296215,35000.00 ,Legal Aid Lower Crime
MOJ,LAA,28/03/18,Lower Crime,LEGAL AID FUND,CRIMINAL DEFENCE SOLICITORS,1432590:149295930,34600.00 ,Legal Aid Lower Crime
MOJ,LAA,28/03/18,Civil Representation,LEGAL AID FUND,CRM LAW LLP,1435098:149226729,41074.74 ,Legal Aid Civil Representation
MOJ,LAA,28/03/18,Lower Crime,LEGAL AID FUND,CROWE HUMBLE WESENCRAFT,1436728:149295981,50700.00 ,Legal Aid Lower Crime
MOJ,LAA,28/03/18,Higher Crime,LEGAL AID FUND,CUTTLE & CO,1435053:149297988,107574.07 ,Legal Aid Higher Crime
MOJ,LAA,28/03/18,Lower Crime,LEGAL AID FUND,DALTON HOLMES GRAY,1435599:149296482,30808.00 ,Legal Aid Lower Crime
MOJ,LAA,28/03/18,Lower Crime,LEGAL AID FUND,DANIEL WOODMAN & CO LTD,1436776:149296135,25000.00 ,Legal Aid Lower Crime
MOJ,LAA,28/03/18,Higher Crime,LEGAL AID FUND,DANNY G MOORE,1437596:149269362,33153.60 ,Legal Aid Higher Crime
MOJ,LAA,28/03/18,Higher Crime,LEGAL AID FUND,DARRYL INGRAM & CO,1437760:149262432,61651.87 ,Legal Aid Higher Crime
MOJ,LAA,28/03/18,Lower Crime,LEGAL AID FUND,DAVID AKE & CO,1433626:149296598,27207.00 ,Legal Aid Lower Crime
MOJ,LAA,28/03/18,Higher Crime,LEGAL AID FUND,DAVID LLOYD HUGHES,1434826:149253516,30803.58 ,Legal Aid Higher Crime
MOJ,LAA,28/03/18,Lower Crime,LEGAL AID FUND,DAVID SEDGWICK SOLICITORS LTD,1433096:149296243,35251.00 ,Legal Aid Lower Crime
MOJ,LAA,28/03/18,Lower Crime,LEGAL AID FUND,DAVIES & JONES SOLICITORS,1436880:149295813,25000.00 ,Legal Aid Lower Crime
MOJ,LAA,28/03/18,Lower Crime,LEGAL AID FUND,DE MAIDS SOLICITORS & ADVOCATES,1437388:149295814,30500.00 ,Legal Aid Lower Crime
MOJ,LAA,28/03/18,Lower Crime,LEGAL AID FUND,DJMS SOLICITORS LTD,1434087:149296529,33849.00 ,Legal Aid Lower Crime
MOJ,LAA,28/03/18,Higher Crime,LEGAL AID FUND,DMA LAW LTD,1433652:149297986,76090.02 ,Legal Aid Higher Crime
MOJ,LAA,28/03/18,Lower Crime,LEGAL AID FUND,DOBSONS,1435182:149295892,35000.00 ,Legal Aid Lower Crime
MOJ,LAA,28/03/18,Lower Crime,LEGAL AID FUND,DONALD RACE & NEWTON SOLICITORS,1437874:149296038,25500.00 ,Legal Aid Lower Crime
MOJ,LAA,28/03/18,Legal Help,LEGAL AID FUND,DONOVAN NEWTON SOLICITORS,1433088:149295315,27227.00 ,Legal Aid Legal Help
MOJ,LAA,28/03/18,Higher Crime,LEGAL AID FUND,DPP LAW LTD,1436750:149253161,31482.62 ,Legal Aid Higher Crime
MOJ,LAA,28/03/18,Lower Crime,LEGAL AID FUND,DPP LAW LTD,1436749:149295899,28400.00 ,Legal Aid Lower Crime
MOJ,LAA,28/03/18,Higher Crime,LEGAL AID FUND,DUNCAN LEWIS SOLICITORS  LTD,1436238:149297687,126418.49 ,Legal Aid Higher Crime
MOJ,LAA,28/03/18,Legal Help,LEGAL AID FUND,DUNCAN LEWIS SOLICITORS  LTD,1436238:149273831,99000.00 ,Legal Aid Legal Help
MOJ,LAA,28/03/18,Legal Help,LEGAL AID FUND,DUNCAN LEWIS SOLICITORS  LTD,1436238:149273832,98000.00 ,Legal Aid Legal Help
MOJ,LAA,28/03/18,Legal Help,LEGAL AID FUND,DUNCAN LEWIS SOLICITORS  LTD,1436239:149273732,98000.00 ,Legal Aid Legal Help
MOJ,LAA,28/03/18,Legal Help,LEGAL AID FUND,DUNCAN LEWIS SOLICITORS  LTD,1436239:149273733,97000.00 ,Legal Aid Legal Help
MOJ,LAA,28/03/18,Legal Help,LEGAL AID FUND,DUNCAN LEWIS SOLICITORS  LTD,1436239:149273734,96000.00 ,Legal Aid Legal Help
MOJ,LAA,28/03/18,Legal Help,LEGAL AID FUND,DUNCAN LEWIS SOLICITORS  LTD,1436239:149273759,95000.00 ,Legal Aid Legal Help
MOJ,LAA,28/03/18,Legal Help,LEGAL AID FUND,DUNCAN LEWIS SOLICITORS  LTD,1436238:149273833,71400.00 ,Legal Aid Legal Help
MOJ,LAA,28/03/18,Lower Crime,LEGAL AID FUND,DUNCAN LEWIS SOLICITORS  LTD,1436238:149295911,60800.00 ,Legal Aid Lower Crime
MOJ,LAA,28/03/18,Legal Help,LEGAL AID FUND,DUNCAN LEWIS SOLICITORS  LTD,1437512:149294878,59300.00 ,Legal Aid Legal Help
MOJ,LAA,28/03/18,Legal Help,LEGAL AID FUND,DUNCAN LEWIS SOLICITORS  LTD,1434290:149295726,39689.00 ,Legal Aid Legal Help
MOJ,LAA,28/03/18,Lower Crime,LEGAL AID FUND,DUNCAN LEWIS SOLICITORS  LTD,1436239:149296454,39083.00 ,Legal Aid Lower Crime
MOJ,LAA,28/03/18,Legal Help,LEGAL AID FUND,DUNCAN LEWIS SOLICITORS  LTD,1434521:149295713,35027.00 ,Legal Aid Legal Help
MOJ,LAA,28/03/18,Higher Crime,LEGAL AID FUND,DUNCAN LEWIS SOLICITORS  LTD,1436238:149262080,33741.52 ,Legal Aid Higher Crime
MOJ,LAA,28/03/18,Civil Representation,LEGAL AID FUND,EATON SMITH LLP,1433158:3000001675330034,38163.76 ,Legal Aid Civil Representation
MOJ,LAA,28/03/18,Civil Representation,LEGAL AID FUND,EATON SMITH LLP,1433158:3000002968660023,35385.98 ,Legal Aid Civil Representation
MOJ,LAA,28/03/18,Higher Crime,LEGAL AID FUND,EBR ATTRIDGE LLP,1432661:149297702,83673.31 ,Legal Aid Higher Crime
MOJ,LAA,28/03/18,Higher Crime,LEGAL AID FUND,EBR ATTRIDGE LLP,1433599:149261567,60310.56 ,Legal Aid Higher Crime
MOJ,LAA,28/03/18,Lower Crime,LEGAL AID FUND,EBR ATTRIDGE LLP,1432628:149295884,58100.00 ,Legal Aid Lower Crime
MOJ,LAA,28/03/18,Higher Crime,LEGAL AID FUND,EBR ATTRIDGE LLP,1432314:149261793,48265.80 ,Legal Aid Higher Crime
MOJ,LAA,28/03/18,Lower Crime,LEGAL AID FUND,EBR ATTRIDGE LLP,1432627:149295887,35400.00 ,Legal Aid Lower Crime
MOJ,LAA,28/03/18,Higher Crime,LEGAL AID FUND,EBR ATTRIDGE LLP,1432314:149254598,30023.87 ,Legal Aid Higher Crime
MOJ,LAA,28/03/18,Lower Crime,LEGAL AID FUND,EDWARD FAIL BRADSHAW & WATERSON,1435178:149296494,29685.00 ,Legal Aid Lower Crime
MOJ,LAA,28/03/18,Lower Crime,LEGAL AID FUND,EDWARDS VAZIRANEY,1432647:149296427,40478.00 ,Legal Aid Lower Crime
MOJ,LAA,28/03/18,Legal Help,LEGAL AID FUND,ELDER RAHIMI LIMITED,1435062:149295219,27305.00 ,Legal Aid Legal Help
MOJ,LAA,28/03/18,Lower Crime,LEGAL AID FUND,ERIC ROBINSON SOLICITORS,1436340:149296104,42600.00 ,Legal Aid Lower Crime
MOJ,LAA,28/03/18,Lower Crime,LEGAL AID FUND,EVANS HAYES BURNELL SOLICITORS LTD,1435782:149297153,32498.00 ,Legal Aid Lower Crime
MOJ,LAA,28/03/18,Lower Crime,LEGAL AID FUND,EWINGS & CO,1436337:149295893,31300.00 ,Legal Aid Lower Crime
MOJ,LAA,28/03/18,Legal Help,LEGAL AID FUND,FADIGA & CO LTD,1437876:149295157,33535.00 ,Legal Aid Legal Help
MOJ,LAA,28/03/18,Higher Crime,LEGAL AID FUND,FARADAYS SOLICITORS LTD,1436191:149297685,107970.13 ,Legal Aid Higher Crime
MOJ,LAA,28/03/18,Higher Crime,LEGAL AID FUND,FARADAYS SOLICITORS LTD,1436191:149254323,39837.78 ,Legal Aid Higher Crime
MOJ,LAA,28/03/18,Higher Crime,LEGAL AID FUND,FARLEYS SOLICITORS LLP,1437868:149262181,78655.82 ,Legal Aid Higher Crime
MOJ,LAA,28/03/18,Lower Crime,LEGAL AID FUND,FARLEYS SOLICITORS LLP,1437868:149296039,26400.00 ,Legal Aid Lower Crime
MOJ,LAA,28/03/18,Lower Crime,LEGAL AID FUND,FMW LAW LTD,1437360:149295869,53300.00 ,Legal Aid Lower Crime
MOJ,LAA,28/03/18,Lower Crime,LEGAL AID FUND,FMW LAW LTD,1437360:149274050,-34500.00 ,Legal Aid Lower Crime
MOJ,LAA,28/03/18,Lower Crime,LEGAL AID FUND,FORBES SOLICITORS,1435673:149296048,37000.00 ,Legal Aid Lower Crime
MOJ,LAA,28/03/18,Lower Crime,LEGAL AID FUND,FORESTERS SOLICITORS,1433092:149296445,25247.00 ,Legal Aid Lower Crime
MOJ,LAA,28/03/18,Legal Help,LEGAL AID FUND,FOUNTAIN SOLICITORS LTD,1433101:149294676,77300.00 ,Legal Aid Legal Help
MOJ,LAA,28/03/18,Legal Help,LEGAL AID FUND,FOUNTAIN SOLICITORS LTD,1433101:149273874,-48900.00 ,Legal Aid Legal Help
MOJ,LAA,28/03/18,Lower Crime,LEGAL AID FUND,FREEMANS SOLICITORS,1435688:149295925,27900.00 ,Legal Aid Lower Crime
MOJ,LAA,28/03/18,Lower Crime,LEGAL AID FUND,G T STEWART LTD,1432666:149296488,49058.00 ,Legal Aid Lower Crime
MOJ,LAA,28/03/18,Lower Crime,LEGAL AID FUND,G T STEWART LTD,1434057:149296911,46280.00 ,Legal Aid Lower Crime
MOJ,LAA,28/03/18,Lower Crime,LEGAL AID FUND,G T STEWART LTD,1434080:149296909,28090.00 ,Legal Aid Lower Crime
MOJ,LAA,28/03/18,Lower Crime,LEGAL AID FUND,GAMMON PIERCY & GAIGER,1435723:149296722,53567.00 ,Legal Aid Lower Crime
MOJ,LAA,28/03/18,Lower Crime,LEGAL AID FUND,GARTSIDES,1436326:149296259,25572.00 ,Legal Aid Lower Crime
MOJ,LAA,28/03/18,Legal Help,LEGAL AID FUND,GENESIS LAW ASSOCIATES SOLICITORS LTD,1436498:149295630,29418.00 ,Legal Aid Legal Help
MOJ,LAA,28/03/18,Lower Crime,LEGAL AID FUND,GEOFF WHITE & CO,1434040:149296709,38316.00 ,Legal Aid Lower Crime
MOJ,LAA,28/03/18,Lower Crime,LEGAL AID FUND,GEOFFREY FORRESTER & CO,1433149:149295976,28100.00 ,Legal Aid Lower Crime
MOJ,LAA,28/03/18,Lower Crime,LEGAL AID FUND,GEOFFREY FORRESTER & CO,1433149:149274144,-26300.00 ,Legal Aid Lower Crime
MOJ,LAA,28/03/18,Lower Crime,LEGAL AID FUND,GHP LEGAL,1436184:149274047,-29900.00 ,Legal Aid Lower Crime
MOJ,LAA,28/03/18,Legal Help,LEGAL AID FUND,GLEDHILL SOLICITORS,1435760:149294945,49280.00 ,Legal Aid Legal Help
MOJ,LAA,28/03/18,Lower Crime,LEGAL AID FUND,GOMER WILLIAMS & CO LTD,1436328:149296272,35003.00 ,Legal Aid Lower Crime
MOJ,LAA,28/03/18,Lower Crime,LEGAL AID FUND,GOODALL BARNETT JAMES SOLICITORS,1437829:149296088,27100.00 ,Legal Aid Lower Crime
MOJ,LAA,28/03/18,Civil Representation,LEGAL AID FUND,GOODMAN RAY SOLICITORS LLP,1437757:149257506,37156.90 ,Legal Aid Civil Representation
MOJ,LAA,28/03/18,Civil Representation,LEGAL AID FUND,GOODMAN RAY SOLICITORS LLP,1437757:149257507,-37166.90 ,Legal Aid Civil Representation
MOJ,LAA,28/03/18,Higher Crime,LEGAL AID FUND,GORDON SHINE & COMPANY SOLICITORS,1436285:149262478,89972.58 ,Legal Aid Higher Crime
MOJ,LAA,28/03/18,Higher Crime,LEGAL AID FUND,GRAHAME STOWE BATESON,1432390:149297691,93442.46 ,Legal Aid Higher Crime
MOJ,LAA,28/03/18,Lower Crime,LEGAL AID FUND,GRECH GOODEN SOLICITORS LTD,1433530:149296287,28405.00 ,Legal Aid Lower Crime
MOJ,LAA,28/03/18,Civil Representation,LEGAL AID FUND,GREENS SOLICITORS LTD,1434581:3000002600400012,26418.77 ,Legal Aid Civil Representation
MOJ,LAA,28/03/18,Higher Crime,LEGAL AID FUND,GREGORY T JOHNSON,1436053:149298772,29409.71 ,Legal Aid Higher Crime
MOJ,LAA,28/03/18,Legal Help,LEGAL AID FUND,GUILE NICHOLAS-INC DONALD GALBRAITH & CO,1433103:149294767,73400.00 ,Legal Aid Legal Help
MOJ,LAA,28/03/18,Lower Crime,LEGAL AID FUND,GURNEY HARDEN SOLICITORS,1433592:149296701,31736.00 ,Legal Aid Lower Crime
MOJ,LAA,28/03/18,Lower Crime,LEGAL AID FUND,GURNEY HARDEN SOLICITORS,1433733:149297162,25465.00 ,Legal Aid Lower Crime
MOJ,LAA,28/03/18,Lower Crime,LEGAL AID FUND,GWB HARTHILLS LLP,1437295:149296571,28004.00 ,Legal Aid Lower Crime
MOJ,LAA,28/03/18,Lower Crime,LEGAL AID FUND,H P GOWER SOLICITORS,1434516:149296948,44425.00 ,Legal Aid Lower Crime
MOJ,LAA,28/03/18,Higher Crime,LEGAL AID FUND,HALLINAN BLACKBURN GITTINGS & NOTT LLP,1435708:149261676,57125.90 ,Legal Aid Higher Crime
MOJ,LAA,28/03/18,Lower Crime,LEGAL AID FUND,HAMER CHILDS,1437378:149296177,25000.00 ,Legal Aid Lower Crime
MOJ,LAA,28/03/18,Lower Crime,LEGAL AID FUND,HARRIS CUFFARO & NICHOLS,1432685:149295856,33400.00 ,Legal Aid Lower Crime
MOJ,LAA,28/03/18,Higher Crime,LEGAL AID FUND,HARRIS SOLICITORS LTD,1434487:149261942,25025.09 ,Legal Aid Higher Crime
MOJ,LAA,28/03/18,Lower Crime,LEGAL AID FUND,HASKELL & CO,1433127:149296700,34173.00 ,Legal Aid Lower Crime
MOJ,LAA,28/03/18,Lower Crime,LEGAL AID FUND,HDH LAW,1434504:149296204,34500.00 ,Legal Aid Lower Crime
MOJ,LAA,28/03/18,Lower Crime,LEGAL AID FUND,HEALEY COLBON,1433579:149295854,27300.00 ,Legal Aid Lower Crime
MOJ,LAA,28/03/18,Lower Crime,LEGAL AID FUND,HENNESSY & HAMMUDI,1433561:149296118,60000.00 ,Legal Aid Lower Crime
MOJ,LAA,28/03/18,Lower Crime,LEGAL AID FUND,HENRY HYAMS,1433635:149296597,52123.00 ,Legal Aid Lower Crime
MOJ,LAA,28/03/18,Lower Crime,LEGAL AID FUND,HENRY'S SOLICITORS LTD,1437248:149296689,29147.00 ,Legal Aid Lower Crime
MOJ,LAA,28/03/18,Lower Crime,LEGAL AID FUND,HGH CRIMINAL DEFENCE SOLICITORS,1433084:149296811,25903.00 ,Legal Aid Lower Crime
MOJ,LAA,28/03/18,Higher Crime,LEGAL AID FUND,HILL TWINE,1437460:149298733,68560.95 ,Legal Aid Higher Crime
MOJ,LAA,28/03/18,Lower Crime,LEGAL AID FUND,HILL TWINE,1437460:149297034,36796.00 ,Legal Aid Lower Crime
MOJ,LAA,28/03/18,Lower Crime,LEGAL AID FUND,HINE SOLICITORS,1434572:149296914,34031.00 ,Legal Aid Lower Crime
MOJ,LAA,28/03/18,Lower Crime,LEGAL AID FUND,HINE SOLICITORS,1434086:149296916,29132.00 ,Legal Aid Lower Crime
MOJ,LAA,28/03/18,Lower Crime,LEGAL AID FUND,HINE SOLICITORS,1434085:149296917,27059.00 ,Legal Aid Lower Crime
MOJ,LAA,28/03/18,Lower Crime,LEGAL AID FUND,HODGE JONES & ALLEN LLP,1436828:149296473,79586.00 ,Legal Aid Lower Crime
MOJ,LAA,28/03/18,Civil Representation,LEGAL AID FUND,HODGE JONES & ALLEN LLP,1436828:149259459,27613.06 ,Legal Aid Civil Representation
MOJ,LAA,28/03/18,Lower Crime,LEGAL AID FUND,HOWARD & BYRNE SOLICITORS,1437727:149296012,46000.00 ,Legal Aid Lower Crime
MOJ,LAA,28/03/18,Higher Crime,LEGAL AID FUND,HOWARDS SOLICITORS LTD,1437258:149298747,64510.30 ,Legal Aid Higher Crime
MOJ,LAA,28/03/18,Legal Help,LEGAL AID FUND,HOWE & CO,1437296:149295213,47083.00 ,Legal Aid Legal Help
MOJ,LAA,28/03/18,Lower Crime,LEGAL AID FUND,HOWELLS LLP,1433618:149296000,44900.00 ,Legal Aid Lower Crime
MOJ,LAA,28/03/18,Lower Crime,LEGAL AID FUND,HPJV,1436893:149296260,26478.00 ,Legal Aid Lower Crime
MOJ,LAA,28/03/18,Lower Crime,LEGAL AID FUND,HUMPHRYS DAWSON,1436816:149296294,26764.00 ,Legal Aid Lower Crime
MOJ,LAA,28/03/18,Lower Crime,LEGAL AID FUND,I B B SOLICITORS,1437758:149295897,71200.00 ,Legal Aid Lower Crime
MOJ,LAA,28/03/18,Lower Crime,LEGAL AID FUND,I B B SOLICITORS,1437758:149274055,-33600.00 ,Legal Aid Lower Crime
MOJ,LAA,28/03/18,Higher Crime,LEGAL AID FUND,IAN F HENDERSON,1435404:149269196,62237.42 ,Legal Aid Higher Crime
MOJ,LAA,28/03/18,Higher Crime,LEGAL AID FUND,IAN PERSAUD SOLICITOR,1437264:149253702,89975.11 ,Legal Aid Higher Crime
MOJ,LAA,28/03/18,Lower Crime,LEGAL AID FUND,INSTALAW,1433324:149297096,75138.00 ,Legal Aid Lower Crime
MOJ,LAA,28/03/18,Lower Crime,LEGAL AID FUND,J D SOLICITORS,1435249:149297278,64014.00 ,Legal Aid Lower Crime
MOJ,LAA,28/03/18,Lower Crime,LEGAL AID FUND,J D SPICER ZEB,1436831:149296436,86528.00 ,Legal Aid Lower Crime
MOJ,LAA,28/03/18,Lower Crime,LEGAL AID FUND,J W HUGHES & CO LLP,1435667:149295806,31500.00 ,Legal Aid Lower Crime
MOJ,LAA,28/03/18,Legal Help,LEGAL AID FUND,JACKSON LEES GROUP LTD,1433392:149295721,79544.00 ,Legal Aid Legal Help
MOJ,LAA,28/03/18,Lower Crime,LEGAL AID FUND,JACKSON LEES GROUP LTD,1433392:149297016,53552.00 ,Legal Aid Lower Crime
MOJ,LAA,28/03/18,Legal Help,LEGAL AID FUND,JACKSON LEES GROUP LTD,1437842:149295136,42089.00 ,Legal Aid Legal Help
MOJ,LAA,28/03/18,Civil Representation,LEGAL AID FUND,JACKSON QUINN,1437746:3000000648590014,26409.81 ,Legal Aid Civil Representation
MOJ,LAA,28/03/18,Higher Crime,LEGAL AID FUND,JAMES BLOOMER,1437557:149253691,33460.20 ,Legal Aid Higher Crime
MOJ,LAA,28/03/18,Higher Crime,LEGAL AID FUND,JAMES MURRAY SOLICITORS,1435638:149297694,89785.40 ,Legal Aid Higher Crime
MOJ,LAA,28/03/18,Lower Crime,LEGAL AID FUND,JAMES MURRAY SOLICITORS,1435638:149296515,27703.00 ,Legal Aid Lower Crime
MOJ,LAA,28/03/18,Higher Crime,LEGAL AID FUND,JAMES T N SCOBIE QC,1435929:149269317,63166.22 ,Legal Aid Higher Crime
MOJ,LAA,28/03/18,Higher Crime,LEGAL AID FUND,JANE C HUMPHRYES QC,1436647:149253317,55782.30 ,Legal Aid Higher Crime
MOJ,LAA,28/03/18,Lower Crime,LEGAL AID FUND,JERMAN SAMUELS & PEARSON LLP,1435221:149296233,65000.00 ,Legal Aid Lower Crime
MOJ,LAA,28/03/18,Higher Crime,LEGAL AID FUND,JOEL N BENNATHAN QC,1435548:149269567,48429.96 ,Legal Aid Higher Crime
MOJ,LAA,28/03/18,Civil Representation,LEGAL AID FUND,JOHN A HAYES QC,1433497:149205020,97297.20 ,Legal Aid Civil Representation
MOJ,LAA,28/03/18,Civil Representation,LEGAL AID FUND,JOHN A HAYES QC,1433497:3000000582320009,55352.64 ,Legal Aid Civil Representation
MOJ,LAA,28/03/18,Civil Representation,LEGAL AID FUND,JOHN A HAYES QC,263718:3000000582320009,35334.96 ,Legal Aid Civil Representation
MOJ,LAA,28/03/18,Civil Representation,LEGAL AID FUND,JOHN A HAYES QC,1433497:149209284,-43286.40 ,Legal Aid Civil Representation
MOJ,LAA,28/03/18,Civil Representation,LEGAL AID FUND,JOHN A HAYES QC,1433497:149209279,-46526.40 ,Legal Aid Civil Representation
MOJ,LAA,28/03/18,Lower Crime,LEGAL AID FUND,JOHN DELANEY & CO SOLICITORS,1437286:149296022,33000.00 ,Legal Aid Lower Crime
MOJ,LAA,28/03/18,Lower Crime,LEGAL AID FUND,JOHN FULLER & PARTNERS,1433536:149296354,34741.00 ,Legal Aid Lower Crime
MOJ,LAA,28/03/18,Lower Crime,LEGAL AID FUND,JOHN ONIONS SOLICITORS,1437380:149296791,28938.00 ,Legal Aid Lower Crime
MOJ,LAA,28/03/18,Civil Representation,LEGAL AID FUND,JOHN SWINDELL & CO SOLICITOR,263701:TFRto2M019C,35299.90 ,Legal Aid Civil Representation
MOJ,LAA,28/03/18,Lower Crime,LEGAL AID FUND,JOHNSON ASTILLS,1434642:149295831,28500.00 ,Legal Aid Lower Crime
MOJ,LAA,28/03/18,Higher Crime,LEGAL AID FUND,JONATHAN LENNON,1432988:149272369,67440.00 ,Legal Aid Higher Crime
MOJ,LAA,28/03/18,Lower Crime,LEGAL AID FUND,JOSEPH HILL & CO,1433695:149296438,30777.00 ,Legal Aid Lower Crime
MOJ,LAA,28/03/18,Lower Crime,LEGAL AID FUND,JSP LAW LTD,1432849:149297055,32404.00 ,Legal Aid Lower Crime
MOJ,LAA,28/03/18,Higher Crime,LEGAL AID FUND,JUNG & CO SOLICITORS,1433707:149254402,86310.35 ,Legal Aid Higher Crime
MOJ,LAA,28/03/18,Lower Crime,LEGAL AID FUND,K LEGAL SOLICITORS,1434991:149296968,42451.00 ,Legal Aid Lower Crime
MOJ,LAA,28/03/18,Higher Crime,LEGAL AID FUND,KANGS SOLICITORS,1437361:149298810,67726.70 ,Legal Aid Higher Crime
MOJ,LAA,28/03/18,Civil Representation,LEGAL AID FUND,KATE L AKERMAN,1436700:149274280,25423.20 ,Legal Aid Civil Representation
MOJ,LAA,28/03/18,Higher Crime,LEGAL AID FUND,KATE O'RAGHALLAIGH,1434349:149259987,37400.00 ,Legal Aid Higher Crime
MOJ,LAA,28/03/18,Lower Crime,LEGAL AID FUND,KEANEY WHITEHEAD PARTNERSHIP,1433616:149296520,26946.00 ,Legal Aid Lower Crime
MOJ,LAA,28/03/18,Higher Crime,LEGAL AID FUND,KHAN SOLICITORS LTD,1434117:149297690,105857.75 ,Legal Aid Higher Crime
MOJ,LAA,28/03/18,Civil Representation,LEGAL AID FUND,KINGSFORDS SOLICITORS LTD,1435159:3000000823120011,81350.21 ,Legal Aid Civil Representation
MOJ,LAA,28/03/18,Higher Crime,LEGAL AID FUND,L P EVANS SOLICITORS,1434045:149254007,34388.94 ,Legal Aid Higher Crime
MOJ,LAA,28/03/18,Higher Crime,LEGAL AID FUND,LAHIFF & CO,1435207:149262745,89975.11 ,Legal Aid Higher Crime
MOJ,LAA,28/03/18,Higher Crime,LEGAL AID FUND,LAM & MEERABUX SOLICITORS,1434506:149269457,28236.24 ,Legal Aid Higher Crime
MOJ,LAA,28/03/18,Lower Crime,LEGAL AID FUND,LANSBURY WORTHINGTON LTD,1432681:149295870,54900.00 ,Legal Aid Lower Crime
MOJ,LAA,28/03/18,Legal Help,LEGAL AID FUND,LAWANA & CO,1433543:149294753,64000.00 ,Legal Aid Legal Help
MOJ,LAA,28/03/18,Higher Crime,LEGAL AID FUND,LAWRENCE & CO SOLICITORS CDS LLP,1433660:149254254,81870.43 ,Legal Aid Higher Crime
MOJ,LAA,28/03/18,Lower Crime,LEGAL AID FUND,LAWRENCE & CO SOLICITORS CDS LLP,1433660:149295928,39800.00 ,Legal Aid Lower Crime
MOJ,LAA,28/03/18,Lower Crime,LEGAL AID FUND,LAWTONS SOLICITORS LTD,1434508:149296208,35500.00 ,Legal Aid Lower Crime
MOJ,LAA,28/03/18,Lower Crime,LEGAL AID FUND,LAWTONS SOLICITORS LTD,1435872:149296234,35000.00 ,Legal Aid Lower Crime
MOJ,LAA,28/03/18,Legal Help,LEGAL AID FUND,LEGAL JUSTICE SOLICITORS,1436990:149295649,26607.00 ,Legal Aid Legal Help
MOJ,LAA,28/03/18,Legal Help,LEGAL AID FUND,LEI DAT BAIG SOLICITORS LIMITED,1435532:149295510,52475.00 ,Legal Aid Legal Help
MOJ,LAA,28/03/18,Higher Crime,LEGAL AID FUND,LEONARD SMITH QC,1435986:149279146,64956.77 ,Legal Aid Higher Crime
MOJ,LAA,28/03/18,Lower Crime,LEGAL AID FUND,LESLIE FRANKS SOLICITORS,1433070:149296476,59985.00 ,Legal Aid Lower Crime
MOJ,LAA,28/03/18,Legal Help,LEGAL AID FUND,LEVY & CO SOLICITORS LLP,1433538:149295703,58943.00 ,Legal Aid Legal Help
MOJ,LAA,28/03/18,Lower Crime,LEGAL AID FUND,LEVY & CO SOLICITORS LLP,1433584:149295859,30700.00 ,Legal Aid Lower Crime
MOJ,LAA,28/03/18,Lower Crime,LEGAL AID FUND,LEVY & CO SOLICITORS LLP,1433538:149295858,25300.00 ,Legal Aid Lower Crime
MOJ,LAA,28/03/18,Lower Crime,LEGAL AID FUND,LEWIS NEDAS LAW LTD,1436288:149295918,30700.00 ,Legal Aid Lower Crime
MOJ,LAA,28/03/18,Higher Crime,LEGAL AID FUND,LEWIS RODGERS LTD,1436768:149297770,26464.44 ,Legal Aid Higher Crime
MOJ,LAA,28/03/18,Lower Crime,LEGAL AID FUND,LHD SOLICITORS LTD,1432667:149296034,36600.00 ,Legal Aid Lower Crime
MOJ,LAA,28/03/18,Higher Crime,LEGAL AID FUND,LLM SOLICITORS (LONDON) LTD,1434505:149298699,102320.46 ,Legal Aid Higher Crime
MOJ,LAA,28/03/18,Lower Crime,LEGAL AID FUND,LLM SOLICITORS (LONDON) LTD,1434505:149296960,43718.00 ,Legal Aid Lower Crime
MOJ,LAA,28/03/18,Higher Crime,LEGAL AID FUND,LLOYDS PR SOLICITORS,1433577:149278868,62541.94 ,Legal Aid Higher Crime
MOJ,LAA,28/03/18,Lower Crime,LEGAL AID FUND,LLOYDS PR SOLICITORS,1437323:149296351,32810.00 ,Legal Aid Lower Crime
MOJ,LAA,28/03/18,Lower Crime,LEGAL AID FUND,LUMB & MACGILL,1437292:149296014,35000.00 ,Legal Aid Lower Crime
MOJ,LAA,28/03/18,Legal Help,LEGAL AID FUND,LUPINS,1436246:149273842,99000.00 ,Legal Aid Legal Help
MOJ,LAA,28/03/18,Civil Representation,LEGAL AID FUND,LUPTON FAWCETT LLP,1433160:3000000872210018,26044.22 ,Legal Aid Civil Representation
MOJ,LAA,28/03/18,Legal Help,LEGAL AID FUND,LUQMANI THOMPSON & PARTNERS,1436744:149295144,41206.00 ,Legal Aid Legal Help
MOJ,LAA,28/03/18,Higher Crime,LEGAL AID FUND,M & M SOLICITORS,1437765:149299500,98710.90 ,Legal Aid Higher Crime
MOJ,LAA,28/03/18,Higher Crime,LEGAL AID FUND,M B LAW LTD,1433131:149299037,29664.55 ,Legal Aid Higher Crime
MOJ,LAA,28/03/18,Higher Crime,LEGAL AID FUND,M K LAW SOLICITORS LTD,1434536:149297686,107574.07 ,Legal Aid Higher Crime
MOJ,LAA,28/03/18,Lower Crime,LEGAL AID FUND,M K LAW SOLICITORS LTD,1434536:149296209,60000.00 ,Legal Aid Lower Crime
MOJ,LAA,28/03/18,Civil Representation,LEGAL AID FUND,MACKINTOSH LAW,1435593:149275808,-36000.00 ,Legal Aid Civil Representation
MOJ,LAA,28/03/18,Higher Crime,LEGAL AID FUND,MANN & CO SOLICITORS LTD,1436162:149254427,56017.33 ,Legal Aid Higher Crime
MOJ,LAA,28/03/18,Lower Crime,LEGAL AID FUND,MARTIN MURRAY & ASSOCIATES,1435142:149296428,53376.00 ,Legal Aid Lower Crime
MOJ,LAA,28/03/18,Lower Crime,LEGAL AID FUND,MARTIN MURRAY & ASSOCIATES,1435214:149296736,34536.00 ,Legal Aid Lower Crime
MOJ,LAA,28/03/18,Lower Crime,LEGAL AID FUND,MARTYN HEWETT,1435152:149296091,32000.00 ,Legal Aid Lower Crime
MOJ,LAA,28/03/18,Legal Help,LEGAL AID FUND,MATTHEW GOLD & CO,1437266:149295155,37328.00 ,Legal Aid Legal Help
MOJ,LAA,28/03/18,Higher Crime,LEGAL AID FUND,MAURICE ANDREWS SOLICITORS,1434585:149298707,105857.75 ,Legal Aid Higher Crime
MOJ,LAA,28/03/18,Civil Representation,LEGAL AID FUND,MCCORMACKS LAW,1434579:149259015,29717.32 ,Legal Aid Civil Representation
MOJ,LAA,28/03/18,Lower Crime,LEGAL AID FUND,MCGRATH & CO SOLICITORS,1437716:149296170,30000.00 ,Legal Aid Lower Crime
MOJ,LAA,28/03/18,Lower Crime,LEGAL AID FUND,MCLARTYS SOLICITORS,1433136:149295908,25000.00 ,Legal Aid Lower Crime
MOJ,LAA,28/03/18,Lower Crime,LEGAL AID FUND,MCMILLAN WILLIAMS SOLICITORS LTD,1437357:149295894,37600.00 ,Legal Aid Lower Crime
MOJ,LAA,28/03/18,Legal Help,LEGAL AID FUND,MCMILLAN WILLIAMS SOLICITORS LTD,1433373:149294875,26300.00 ,Legal Aid Legal Help
MOJ,LAA,28/03/18,Lower Crime,LEGAL AID FUND,MCMILLAN WILLIAMS SOLICITORS LTD,1437357:149274051,-29600.00 ,Legal Aid Lower Crime
MOJ,LAA,28/03/18,Lower Crime,LEGAL AID FUND,MCSORLEY LEWIS LAW LTD,1436300:149296280,26371.00 ,Legal Aid Lower Crime
MOJ,LAA,28/03/18,Higher Crime,LEGAL AID FUND,MEIKLES SOLICITORS LLP,1433655:149299338,60716.28 ,Legal Aid Higher Crime
MOJ,LAA,28/03/18,Higher Crime,LEGAL AID FUND,MELANIE SIMPSON,1436135:149254591,27495.96 ,Legal Aid Higher Crime
MOJ,LAA,28/03/18,Legal Help,LEGAL AID FUND,MENTAL HEALTH LEGAL REPRESENTATION LTD,1437785:149295316,31715.00 ,Legal Aid Legal Help
MOJ,LAA,28/03/18,Higher Crime,LEGAL AID FUND,MESSRS WATERFORDS SOLICITORS,1436875:149253994,46158.00 ,Legal Aid Higher Crime
MOJ,LAA,28/03/18,Higher Crime,LEGAL AID FUND,MESSRS WATERFORDS SOLICITORS,1436875:149269962,33448.48 ,Legal Aid Higher Crime
MOJ,LAA,28/03/18,Lower Crime,LEGAL AID FUND,METCALFE COPEMAN & PETTEFAR,1434165:149295866,38700.00 ,Legal Aid Lower Crime
MOJ,LAA,28/03/18,Higher Crime,LEGAL AID FUND,MI BANKS,1435104:149254351,30866.84 ,Legal Aid Higher Crime
MOJ,LAA,28/03/18,Higher Crime,LEGAL AID FUND,MIAN & CO SOLICITORS,1435123:149262675,32955.54 ,Legal Aid Higher Crime
MOJ,LAA,28/03/18,Lower Crime,LEGAL AID FUND,MICHAEL CARROLL & CO,1436205:149295934,36000.00 ,Legal Aid Lower Crime
MOJ,LAA,28/03/18,Higher Crime,LEGAL AID FUND,MICHAEL J MAHER,1437562:149262342,26066.45 ,Legal Aid Higher Crime
MOJ,LAA,28/03/18,Higher Crime,LEGAL AID FUND,MICHAEL P GOOLD,1437027:149253759,25813.44 ,Legal Aid Higher Crime
MOJ,LAA,28/03/18,Lower Crime,LEGAL AID FUND,MICHAEL PURDON,1432752:149296544,38082.00 ,Legal Aid Lower Crime
MOJ,LAA,28/03/18,Higher Crime,LEGAL AID FUND,MIDDLETON SCANLAN AT THE LAW CHAMBERS,1433097:149297766,81347.36 ,Legal Aid Higher Crime
MOJ,LAA,28/03/18,Legal Help,LEGAL AID FUND,MIGRANT LEGAL PROJECT,1436952:149295667,51973.00 ,Legal Aid Legal Help
MOJ,LAA,28/03/18,Legal Help,LEGAL AID FUND,MIGRANT LEGAL PROJECT,1434346:149295582,29859.00 ,Legal Aid Legal Help
MOJ,LAA,28/03/18,Lower Crime,LEGAL AID FUND,MORTONS SOLICITORS LTD,1437841:149296687,28444.00 ,Legal Aid Lower Crime
MOJ,LAA,28/03/18,Higher Crime,LEGAL AID FUND,MSB LAW LLP,1437859:149254105,73651.76 ,Legal Aid Higher Crime
MOJ,LAA,28/03/18,Legal Help,LEGAL AID FUND,MTG SOLICITORS,1437229:149294764,25000.00 ,Legal Aid Legal Help
MOJ,LAA,28/03/18,Higher Crime,LEGAL AID FUND,NADINE RADFORD QC,1437591:149262610,30483.36 ,Legal Aid Higher Crime
MOJ,LAA,28/03/18,Civil Representation,LEGAL AID FUND,NATSAI MANYARARA,1437903:149267417,27035.00 ,Legal Aid Civil Representation
MOJ,LAA,28/03/18,Lower Crime,LEGAL AID FUND,NEEDHAM POULIER LTD,1436742:149296499,26058.00 ,Legal Aid Lower Crime
MOJ,LAA,28/03/18,Higher Crime,LEGAL AID FUND,NEIL F BAKI,1436133:149292050,40460.00 ,Legal Aid Higher Crime
MOJ,LAA,28/03/18,Lower Crime,LEGAL AID FUND,NELSON GUEST & PARTNERS,1435149:149296432,32493.00 ,Legal Aid Lower Crime
MOJ,LAA,28/03/18,Lower Crime,LEGAL AID FUND,NIGEL WELLER & CO,1434170:149306190,41358.14 ,Legal Aid Lower Crime
MOJ,LAA,28/03/18,Lower Crime,LEGAL AID FUND,NOBLE SOLICITORS,1434556:149296874,47462.00 ,Legal Aid Lower Crime
MOJ,LAA,28/03/18,Legal Help,LEGAL AID FUND,NOBLE SOLICITORS,1435110:149295374,36490.00 ,Legal Aid Legal Help
MOJ,LAA,28/03/18,Lower Crime,LEGAL AID FUND,OBW PERERA LTD,1437800:149295864,29000.00 ,Legal Aid Lower Crime
MOJ,LAA,28/03/18,Lower Crime,LEGAL AID FUND,OLD BAILEY SOLICITORS LTD,1434483:149296912,30587.00 ,Legal Aid Lower Crime
MOJ,LAA,28/03/18,Lower Crime,LEGAL AID FUND,OLIVER D'SA SOLICITORS,1437892:149296317,31013.00 ,Legal Aid Lower Crime
MOJ,LAA,28/03/18,Lower Crime,LEGAL AID FUND,OLLIERS SOLICITORS LTD,1436175:149296650,28038.00 ,Legal Aid Lower Crime
MOJ,LAA,28/03/18,Lower Crime,LEGAL AID FUND,ONE LEGAL SERVICES LTD,1434743:149297259,31374.00 ,Legal Aid Lower Crime
MOJ,LAA,28/03/18,Lower Crime,LEGAL AID FUND,O'NEILL WRIGHT & NASH,1434488:149296861,41084.00 ,Legal Aid Lower Crime
MOJ,LAA,28/03/18,Lower Crime,LEGAL AID FUND,OSLERS SOLICITORS,1433587:149296381,29740.00 ,Legal Aid Lower Crime
MOJ,LAA,28/03/18,Lower Crime,LEGAL AID FUND,OWEN NASH & CO,1436821:149296180,35000.00 ,Legal Aid Lower Crime
MOJ,LAA,28/03/18,Legal Help,LEGAL AID FUND,PARAGON LAW LTD,1437784:149294848,50000.00 ,Legal Aid Legal Help
MOJ,LAA,28/03/18,Legal Help,LEGAL AID FUND,PARKER RHODES HICKMOTTS,1436530:149295675,37959.00 ,Legal Aid Legal Help
MOJ,LAA,28/03/18,Legal Help,LEGAL AID FUND,PARKER RHODES HICKMOTTS,1433709:149295080,29454.00 ,Legal Aid Legal Help
MOJ,LAA,28/03/18,Higher Crime,LEGAL AID FUND,PAUL R KELEHER QC,1436124:149254070,39861.61 ,Legal Aid Higher Crime
MOJ,LAA,28/03/18,Higher Crime,LEGAL AID FUND,PAUL R KELEHER QC,1436124:149254016,29128.46 ,Legal Aid Higher Crime
MOJ,LAA,28/03/18,Lower Crime,LEGAL AID FUND,PENFOLD & MCPHERSON LTD,1437373:149296737,25476.00 ,Legal Aid Lower Crime
MOJ,LAA,28/03/18,Higher Crime,LEGAL AID FUND,PETER C E MOULSON,1437190:149253868,50740.42 ,Legal Aid Higher Crime
MOJ,LAA,28/03/18,Legal Help,LEGAL AID FUND,PETER EDWARDS LAW LTD,1436209:149294749,34100.00 ,Legal Aid Legal Help
MOJ,LAA,28/03/18,Higher Crime,LEGAL AID FUND,PETHERBRIDGE BASSRA SOLICITORS LTD,1437300:149269010,29664.55 ,Legal Aid Higher Crime
MOJ,LAA,28/03/18,Lower Crime,LEGAL AID FUND,PETHERBRIDGE BASSRA SOLICITORS LTD,1437300:149296584,26312.00 ,Legal Aid Lower Crime
MOJ,LAA,28/03/18,Lower Crime,LEGAL AID FUND,POWELL SPENCER AND PARTNERS,1436832:149295879,36500.00 ,Legal Aid Lower Crime
MOJ,LAA,28/03/18,Civil Representation,LEGAL AID FUND,POWELL SPENCER AND PARTNERS,1436832:3000001914920031,25258.90 ,Legal Aid Civil Representation
MOJ,LAA,28/03/18,Lower Crime,LEGAL AID FUND,PURCELL PARKER LTD,1435121:149296172,79300.00 ,Legal Aid Lower Crime
MOJ,LAA,28/03/18,Lower Crime,LEGAL AID FUND,PURE LAW CRIMINAL DEFENCE,1435243:149297157,29881.00 ,Legal Aid Lower Crime
MOJ,LAA,28/03/18,Lower Crime,LEGAL AID FUND,QUALITYSOLICITORS JONES ROBERTSON,1436752:149296612,25752.00 ,Legal Aid Lower Crime
MOJ,LAA,28/03/18,Civil Representation,LEGAL AID FUND,R P ROBINSON,1434115:3000001224600026,27698.81 ,Legal Aid Civil Representation
MOJ,LAA,28/03/18,Civil Representation,LEGAL AID FUND,RACHAEL E BANKS,1432421:149306497,36255.60 ,Legal Aid Civil Representation
MOJ,LAA,28/03/18,Civil Representation,LEGAL AID FUND,RACHAEL E BANKS,1432421:149306571,-30607.20 ,Legal Aid Civil Representation
MOJ,LAA,28/03/18,Civil Representation,LEGAL AID FUND,RAMANJIT K KANG,1437461:149242479,51548.40 ,Legal Aid Civil Representation
MOJ,LAA,28/03/18,Higher Crime,LEGAL AID FUND,REBECCA RANDALL,1436130:149253436,25480.13 ,Legal Aid Higher Crime
MOJ,LAA,28/03/18,Lower Crime,LEGAL AID FUND,REECE THOMAS WATSON LTD,1433295:149297099,41127.00 ,Legal Aid Lower Crime
MOJ,LAA,28/03/18,Lower Crime,LEGAL AID FUND,REEDS SOLICITORS LTD,1435264:149297329,58983.00 ,Legal Aid Lower Crime
MOJ,LAA,28/03/18,Lower Crime,LEGAL AID FUND,REEDS SOLICITORS LTD,1434643:149296740,51341.00 ,Legal Aid Lower Crime
MOJ,LAA,28/03/18,Higher Crime,LEGAL AID FUND,REEDS SOLICITORS LTD,1434643:149298595,50076.07 ,Legal Aid Higher Crime
MOJ,LAA,28/03/18,Lower Crime,LEGAL AID FUND,REEDS SOLICITORS LTD,1433383:149297015,34596.00 ,Legal Aid Lower Crime
MOJ,LAA,28/03/18,Lower Crime,LEGAL AID FUND,REEDS SOLICITORS LTD,1435260:149297333,34122.00 ,Legal Aid Lower Crime
MOJ,LAA,28/03/18,Lower Crime,LEGAL AID FUND,REEDS SOLICITORS LTD,1434753:149297141,25643.00 ,Legal Aid Lower Crime
MOJ,LAA,28/03/18,Lower Crime,LEGAL AID FUND,REEVES  & CO SOLICITORS,1433615:149296702,40671.00 ,Legal Aid Lower Crime
MOJ,LAA,28/03/18,Lower Crime,LEGAL AID FUND,RENSHAW DERRICK & CO,1435757:149296748,31465.00 ,Legal Aid Lower Crime
MOJ,LAA,28/03/18,Higher Crime,LEGAL AID FUND,RICHARD G SIMONS,1433952:149278551,38342.16 ,Legal Aid Higher Crime
MOJ,LAA,28/03/18,Higher Crime,LEGAL AID FUND,RICHARD H CHRISTIE QC,1433938:149252796,143679.99 ,Legal Aid Higher Crime
MOJ,LAA,28/03/18,Lower Crime,LEGAL AID FUND,RICHARD HASWELL SOLICITORS LTD,1432679:149296542,27942.00 ,Legal Aid Lower Crime
MOJ,LAA,28/03/18,Higher Crime,LEGAL AID FUND,RICHARD M LITTLER,1437561:149306471,80920.00 ,Legal Aid Higher Crime
MOJ,LAA,28/03/18,Higher Crime,LEGAL AID FUND,RILEY HAYES & CO,1435122:149299113,75897.99 ,Legal Aid Higher Crime
MOJ,LAA,28/03/18,Lower Crime,LEGAL AID FUND,RILEY HAYES & CO,1435122:149296194,34900.00 ,Legal Aid Lower Crime
MOJ,LAA,28/03/18,Lower Crime,LEGAL AID FUND,RMNJ SOLICITORS ***,1435083:149296511,42949.00 ,Legal Aid Lower Crime
MOJ,LAA,28/03/18,Legal Help,LEGAL AID FUND,RMNJ SOLICITORS ***,1435083:149295132,35812.00 ,Legal Aid Legal Help
MOJ,LAA,28/03/18,Lower Crime,LEGAL AID FUND,ROBERT LIZAR,1437809:149296076,30000.00 ,Legal Aid Lower Crime
MOJ,LAA,28/03/18,Higher Crime,LEGAL AID FUND,ROBERTSON'S SOLICITORS,1434176:149278671,65378.40 ,Legal Aid Higher Crime
MOJ,LAA,28/03/18,Higher Crime,LEGAL AID FUND,RODNEY WARREN & CO LTD,1436262:149305734,32861.93 ,Legal Aid Higher Crime
MOJ,LAA,28/03/18,Legal Help,LEGAL AID FUND,ROEBUCKS SOLICITORS,1432713:149295253,31765.00 ,Legal Aid Legal Help
MOJ,LAA,28/03/18,Lower Crime,LEGAL AID FUND,ROWE SPARKES SOLICITORS LTD,1432678:149296107,41600.00 ,Legal Aid Lower Crime
MOJ,LAA,28/03/18,Lower Crime,LEGAL AID FUND,ROWE SPARKES SOLICITORS LTD,1434515:149296206,27500.00 ,Legal Aid Lower Crime
MOJ,LAA,28/03/18,Lower Crime,LEGAL AID FUND,ROY FOREMAN & CO SOLICITORS,1435625:149296019,27000.00 ,Legal Aid Lower Crime
MOJ,LAA,28/03/18,Higher Crime,LEGAL AID FUND,RUPERT J BOWERS,1435446:149259986,74440.01 ,Legal Aid Higher Crime
MOJ,LAA,28/03/18,Lower Crime,LEGAL AID FUND,S A LAW CHAMBERS SOLICITORS,1436773:149295874,25500.00 ,Legal Aid Lower Crime
MOJ,LAA,28/03/18,Higher Crime,LEGAL AID FUND,S SATHA & CO LTD,1433207:149269917,66481.65 ,Legal Aid Higher Crime
MOJ,LAA,28/03/18,Higher Crime,LEGAL AID FUND,SAK SOLICITORS,1433741:149278665,35440.01 ,Legal Aid Higher Crime
MOJ,LAA,28/03/18,Lower Crime,LEGAL AID FUND,SANSBURY DOUGLAS,1434094:149296201,50000.00 ,Legal Aid Lower Crime
MOJ,LAA,28/03/18,Lower Crime,LEGAL AID FUND,SAUNDERS SOLICITORS LTD,1435196:149295926,31000.00 ,Legal Aid Lower Crime
MOJ,LAA,28/03/18,Lower Crime,LEGAL AID FUND,SHELLEY & CO,1435109:149296395,26111.00 ,Legal Aid Lower Crime
MOJ,LAA,28/03/18,Lower Crime,LEGAL AID FUND,SHEPPARDS SOLICITORS LTD,1436769:149296144,30600.00 ,Legal Aid Lower Crime
MOJ,LAA,28/03/18,Higher Crime,LEGAL AID FUND,SILLS & BETTERIDGE LLP,1434594:149269004,26276.27 ,Legal Aid Higher Crime
MOJ,LAA,28/03/18,Lower Crime,LEGAL AID FUND,SINGH SOLICITORS LTD,1435812:149297358,26753.00 ,Legal Aid Lower Crime
MOJ,LAA,28/03/18,Lower Crime,LEGAL AID FUND,SMITH PARTNERSHIP,1437743:149296176,29600.00 ,Legal Aid Lower Crime
MOJ,LAA,28/03/18,Lower Crime,LEGAL AID FUND,SMITH PARTNERSHIP,1437740:149295842,27600.00 ,Legal Aid Lower Crime
MOJ,LAA,28/03/18,Higher Crime,LEGAL AID FUND,SONN MACMILLAN WALKER LTD,1435146:149261650,89975.11 ,Legal Aid Higher Crime
MOJ,LAA,28/03/18,Lower Crime,LEGAL AID FUND,SONN MACMILLAN WALKER LTD,1435146:149295871,48700.00 ,Legal Aid Lower Crime
MOJ,LAA,28/03/18,Lower Crime,LEGAL AID FUND,SOUTHERNS SOLICITORS,1432757:149296659,28781.00 ,Legal Aid Lower Crime
MOJ,LAA,28/03/18,Legal Help,LEGAL AID FUND,SOUTHERNS SOLICITORS,1432757:149295254,25892.00 ,Legal Aid Legal Help
MOJ,LAA,28/03/18,Lower Crime,LEGAL AID FUND,STEEL & SHAMASH,1436835:149295935,25100.00 ,Legal Aid Lower Crime
MOJ,LAA,28/03/18,Lower Crime,LEGAL AID FUND,STEPHEN BURDON SOLICITORS,1436247:149295837,39100.00 ,Legal Aid Lower Crime
MOJ,LAA,28/03/18,Civil Representation,LEGAL AID FUND,STEPHENS & SCOWN LLP,1436264:149290498,29843.58 ,Legal Aid Civil Representation
MOJ,LAA,28/03/18,Civil Representation,LEGAL AID FUND,STEPHENS & SCOWN LLP,1436264:149290500,-28727.88 ,Legal Aid Civil Representation
MOJ,LAA,28/03/18,Lower Crime,LEGAL AID FUND,STEPHENSONS SOLICITORS LLP,1437814:149296629,31635.00 ,Legal Aid Lower Crime
MOJ,LAA,28/03/18,Lower Crime,LEGAL AID FUND,STEVEN YOUNG & CO INC ROWBIS,1437252:149296776,25155.00 ,Legal Aid Lower Crime
MOJ,LAA,28/03/18,Lower Crime,LEGAL AID FUND,STEVENS SOLICITORS,1437854:149296160,60000.00 ,Legal Aid Lower Crime
MOJ,LAA,28/03/18,Lower Crime,LEGAL AID FUND,STEVENS SOLICITORS,1437855:149296159,52300.00 ,Legal Aid Lower Crime
MOJ,LAA,28/03/18,Higher Crime,LEGAL AID FUND,STOKOE PARTNERSHIP,1435698:149298851,65113.14 ,Legal Aid Higher Crime
MOJ,LAA,28/03/18,Higher Crime,LEGAL AID FUND,STOKOE PARTNERSHIP,1435697:149262912,31833.31 ,Legal Aid Higher Crime
MOJ,LAA,28/03/18,Lower Crime,LEGAL AID FUND,STUART MILLER SOLICITORS LTD,1432731:149296474,73663.00 ,Legal Aid Lower Crime
MOJ,LAA,28/03/18,Lower Crime,LEGAL AID FUND,SUSSEX DEFENCE SOLICITORS,1433558:149296101,25000.00 ,Legal Aid Lower Crime
MOJ,LAA,28/03/18,Lower Crime,LEGAL AID FUND,SWAIN & CO SOLICITORS,1437253:149296105,100000.00 ,Legal Aid Lower Crime
MOJ,LAA,28/03/18,Legal Help,LEGAL AID FUND,SWAIN & CO SOLICITORS,1437254:149294860,25000.00 ,Legal Aid Legal Help
MOJ,LAA,28/03/18,Legal Help,LEGAL AID FUND,SWITALSKI'S SOLICITORS LTD,1433624:149295098,28243.00 ,Legal Aid Legal Help
MOJ,LAA,28/03/18,Lower Crime,LEGAL AID FUND,T S LAW LTD,1435591:149295914,25000.00 ,Legal Aid Lower Crime
MOJ,LAA,28/03/18,Lower Crime,LEGAL AID FUND,T V EDWARDS LLP,1432682:149295912,68000.00 ,Legal Aid Lower Crime
MOJ,LAA,28/03/18,Legal Help,LEGAL AID FUND,T V EDWARDS LLP,1432682:149294756,64900.00 ,Legal Aid Legal Help
MOJ,LAA,28/03/18,Lower Crime,LEGAL AID FUND,TAYLOR STREET SOLICITORS LLP,1433221:149296094,32400.00 ,Legal Aid Lower Crime
MOJ,LAA,28/03/18,Lower Crime,LEGAL AID FUND,TEESSIDE LAW LTD,1437501:149297038,28737.00 ,Legal Aid Lower Crime
MOJ,LAA,28/03/18,Civil Representation,LEGAL AID FUND,TEMPERLEY TAYLOR LLP,1433877:3000000668970013,25296.52 ,Legal Aid Civil Representation
MOJ,LAA,28/03/18,Legal Help,LEGAL AID FUND,THALIWAL & VEJA SOLICITORS,1437271:149295314,33751.00 ,Legal Aid Legal Help
MOJ,LAA,28/03/18,Lower Crime,LEGAL AID FUND,THE CASTLE PARTNERSHIP,1434644:149296096,25000.00 ,Legal Aid Lower Crime
MOJ,LAA,28/03/18,Lower Crime,LEGAL AID FUND,THE JOHNSON PARTNERSHIP,1434601:149295833,190000.00 ,Legal Aid Lower Crime
MOJ,LAA,28/03/18,Lower Crime,LEGAL AID FUND,THE JOHNSON PARTNERSHIP,1434599:149295835,49000.00 ,Legal Aid Lower Crime
MOJ,LAA,28/03/18,Lower Crime,LEGAL AID FUND,THE JOHNSON PARTNERSHIP,1434600:149295834,37500.00 ,Legal Aid Lower Crime
MOJ,LAA,28/03/18,Lower Crime,LEGAL AID FUND,THE JOHNSON PARTNERSHIP,1434092:149296203,33000.00 ,Legal Aid Lower Crime
MOJ,LAA,28/03/18,Lower Crime,LEGAL AID FUND,THE JOHNSON PARTNERSHIP,1437507:149296219,29000.00 ,Legal Aid Lower Crime
MOJ,LAA,28/03/18,Lower Crime,LEGAL AID FUND,THE PURKISS PRACTICE,1437798:149296097,33300.00 ,Legal Aid Lower Crime
MOJ,LAA,28/03/18,Lower Crime,LEGAL AID FUND,THOMAS BOYD WHYTE,1435720:149296435,36827.00 ,Legal Aid Lower Crime
MOJ,LAA,28/03/18,Higher Crime,LEGAL AID FUND,THOMAS PRICE QC,1436661:149292049,80520.00 ,Legal Aid Higher Crime
MOJ,LAA,28/03/18,Higher Crime,LEGAL AID FUND,THOMPSON & CO SOLICITORS LTD,1437877:149297684,107574.07 ,Legal Aid Higher Crime
MOJ,LAA,28/03/18,Legal Help,LEGAL AID FUND,THOMPSON & CO SOLICITORS LTD,1437877:149294760,32600.00 ,Legal Aid Legal Help
MOJ,LAA,28/03/18,Lower Crime,LEGAL AID FUND,TOSSWILL & CO,1436179:149296498,27018.00 ,Legal Aid Lower Crime
MOJ,LAA,28/03/18,Lower Crime,LEGAL AID FUND,TRANTERS SOLICITORS LTD,1435093:149296072,30600.00 ,Legal Aid Lower Crime
MOJ,LAA,28/03/18,Lower Crime,LEGAL AID FUND,TUCKERS SOLICITORS LLP,1432728:149296071,130300.00 ,Legal Aid Lower Crime
MOJ,LAA,28/03/18,Lower Crime,LEGAL AID FUND,TUCKERS SOLICITORS LLP,1432729:149295927,90000.00 ,Legal Aid Lower Crime
MOJ,LAA,28/03/18,Lower Crime,LEGAL AID FUND,TUCKERS SOLICITORS LLP,1433588:149295931,35400.00 ,Legal Aid Lower Crime
MOJ,LAA,28/03/18,Lower Crime,LEGAL AID FUND,TUCKERS SOLICITORS LLP,1432324:149296220,35000.00 ,Legal Aid Lower Crime
MOJ,LAA,28/03/18,Lower Crime,LEGAL AID FUND,TUCKERS SOLICITORS LLP,1434283:149297137,30966.00 ,Legal Aid Lower Crime
MOJ,LAA,28/03/18,Legal Help,LEGAL AID FUND,TURPIN & MILLER LLP,1436778:149295364,51062.00 ,Legal Aid Legal Help
MOJ,LAA,28/03/18,Lower Crime,LEGAL AID FUND,USMANI KING LTD,1436777:149296359,51599.00 ,Legal Aid Lower Crime
MOJ,LAA,28/03/18,Lower Crime,LEGAL AID FUND,VHS FLETCHERS,1434577:149295836,72100.00 ,Legal Aid Lower Crime
MOJ,LAA,28/03/18,Lower Crime,LEGAL AID FUND,VHS FLETCHERS,1432820:149296228,29100.00 ,Legal Aid Lower Crime
MOJ,LAA,28/03/18,Lower Crime,LEGAL AID FUND,VICKERS CHISMAN & WISHLADE,1433645:149295965,60200.00 ,Legal Aid Lower Crime
MOJ,LAA,28/03/18,Legal Help,LEGAL AID FUND,VIRGO SOLICITORS LTD,1436462:149295692,27896.00 ,Legal Aid Legal Help
MOJ,LAA,28/03/18,Lower Crime,LEGAL AID FUND,VYMAN SOLICITORS LTD,1437321:149296692,36376.00 ,Legal Aid Lower Crime
MOJ,LAA,28/03/18,Lower Crime,LEGAL AID FUND,WAINWRIGHT & CUMMINS LLP,1437759:149295938,42000.00 ,Legal Aid Lower Crime
MOJ,LAA,28/03/18,Higher Crime,LEGAL AID FUND,WALKERS SOLICITORS LIMITED,1437879:149299197,29664.55 ,Legal Aid Higher Crime
MOJ,LAA,28/03/18,Lower Crime,LEGAL AID FUND,WANNOPS LLP,1434555:149296995,47462.00 ,Legal Aid Lower Crime
MOJ,LAA,28/03/18,Higher Crime,LEGAL AID FUND,WATSON WOODHOUSE SOLICITORS LLP,1432721:149269622,34434.97 ,Legal Aid Higher Crime
MOJ,LAA,28/03/18,Lower Crime,LEGAL AID FUND,WATSON WOODHOUSE SOLICITORS LLP,1432721:149295966,26800.00 ,Legal Aid Lower Crime
MOJ,LAA,28/03/18,Higher Crime,LEGAL AID FUND,WATSON WOODHOUSE SOLICITORS LLP,1432721:149297964,-28981.09 ,Legal Aid Higher Crime
MOJ,LAA,28/03/18,Lower Crime,LEGAL AID FUND,WELLS BURCOMBE LLP,1434544:149296923,52565.00 ,Legal Aid Lower Crime
MOJ,LAA,28/03/18,Lower Crime,LEGAL AID FUND,WELLS BURCOMBE LLP,1433565:149296355,46062.00 ,Legal Aid Lower Crime
MOJ,LAA,28/03/18,Lower Crime,LEGAL AID FUND,WESSEX SOLICITORS CHAMBERS,1434017:149296198,77100.00 ,Legal Aid Lower Crime
MOJ,LAA,28/03/18,Civil Representation,LEGAL AID FUND,WILLIAMSONS SOLICITORS LTD,1433155:3000000830580013,74028.57 ,Legal Aid Civil Representation
MOJ,LAA,28/03/18,Lower Crime,LEGAL AID FUND,WILLIAMSONS SOLICITORS LTD,1433155:149296025,41600.00 ,Legal Aid Lower Crime
MOJ,LAA,28/03/18,Civil Representation,LEGAL AID FUND,WILLIAMSONS SOLICITORS LTD,1433155:3000000830580012RC,-26830.96 ,Legal Aid Civil Representation
MOJ,LAA,28/03/18,Lower Crime,LEGAL AID FUND,WILSON DEVONALD GRIFFITHS JOHN,1435130:149295810,45000.00 ,Legal Aid Lower Crime
MOJ,LAA,28/03/18,Legal Help,LEGAL AID FUND,WILSON SOLICITORS LLP,1435117:149273840,99000.00 ,Legal Aid Legal Help
MOJ,LAA,28/03/18,Legal Help,LEGAL AID FUND,WILSON SOLICITORS LLP,1435117:149273841,82477.00 ,Legal Aid Legal Help
MOJ,LAA,28/03/18,Legal Help,LEGAL AID FUND,WILSON SOLICITORS LLP,1437022:149295694,39206.00 ,Legal Aid Legal Help
MOJ,LAA,28/03/18,Legal Help,LEGAL AID FUND,WILSON SOLICITORS LLP,1437023:149295695,26236.00 ,Legal Aid Legal Help
MOJ,LAA,28/03/18,Civil Representation,LEGAL AID FUND,WOODFINES LLP,1432592:149242476,40130.78 ,Legal Aid Civil Representation
MOJ,LAA,28/03/18,Civil Representation,LEGAL AID FUND,WRIGHT SOLICITORS LTD,1436900:3000000854740028,56124.02 ,Legal Aid Civil Representation
MOJ,LAA,28/03/18,Civil Representation,LEGAL AID FUND,WTB SOLICITORS LLP,1437817:3000000528290024,45354.60 ,Legal Aid Civil Representation
MOJ,LAA,29/03/18,EXP - PURCHASE OF GOODS/SERVICES - OFFICE RELATED - Reprographics,Centralised Costs,CORPORATE DOCUMENT SERVICES LTD,200444,57308.27 ,Printing Costs
MOJ,LAA,29/03/18,EXP - PURCHASE OF GOODS/SERVICES - OFFICE RELATED - Reprographics,Centralised Costs,CORPORATE DOCUMENT SERVICES LTD,201291,56683.73 ,Printing Costs
MOJ,LAA,29/03/18,EXP - PURCHASE OF GOODS/SERVICES - SUPPORT - HOSTING,ISD Management and Admin.,REDCENTRIC SOLUTIONS LTD,239460,70252.56 ,IT Costs
MOJ,LAA,29/03/18,EXP - PURCHASE OF GOODS/SERVICES - SUPPORT - HOSTING,ISD Management and Admin.,SOLIRIUS CONSULTING LTD,768-LAA-009,46300.80 ,IT Costs
MOJ,LAA,29/03/18,EXP - PURCHASE OF GOODS/SERVICES - SUPPORT - HOSTING,ISD Management and Admin.,SOLIRIUS CONSULTING LTD,816-LAA-010,35107.20 ,IT Costs
